Organisation Name,Organisation Code,Unique Ref No,Effective Date,Directorate  where expenditure incurred,Supplier name ,Payment Date,Net Amount,Purpose of Spend,Procurement Classification (Higher Level),Procurement Classification (Lower Level),Capital/Revenue
Walsall Council,http://opendatacommunities.org/id/metropolitan-district-council/walsall,WC78-1,31/03/2017,Childrens,11KBW,23/03/2017,"4,750.00",73014-LEGAL FEES-PRIV CONTRACTOR FEES,GENERAL MANAGEMENT SUPPORT (INC LEGAL),Third Party Payments,Revenue
Walsall Council,http://opendatacommunities.org/id/metropolitan-district-council/walsall,WC78-2,31/03/2017,Childrens,247 CARS (WILLENHALL) LIMITED,20/03/2017,"3,360.00",52000-WITH DRIVER-HIRE OF VEHICLES,SCHOOL TRANSPORT,Transport,Revenue
Walsall Council,http://opendatacommunities.org/id/metropolitan-district-council/walsall,WC78-3,31/03/2017,Change and Governance,3C TECHNOLOGY LTD,16/03/2017,419.00,63800-COMPUTER EQUIPMENT AND SUPPLIES,SIT-INFRASTRUCTURE,Supplies & Services,Revenue
Walsall Council,http://opendatacommunities.org/id/metropolitan-district-council/walsall,WC78-4,31/03/2017,Economy & Environment,3GS (UK) LIMITED,09/03/2017,"3,606.80",73025-PROFESSIONAL SERVICES-PRIV CONTRACTOR & OTHER AGENCIES,ENVIRONMENT ENFORCEMENT,Third Party Payments,Revenue
Walsall Council,http://opendatacommunities.org/id/metropolitan-district-council/walsall,WC78-5,31/03/2017,Childrens,402K CONSULTANCY,01/03/2017,"1,428.50",63102-CONSULTANTS FEES - CORPORATE,SAFEGUARDING BOARD,Supplies & Services,Revenue
Walsall Council,http://opendatacommunities.org/id/metropolitan-district-council/walsall,WC78-6,31/03/2017,Childrens,5 CARE SERVICES LTD,07/03/2017,"1,014.00",63000-PROFESSIONAL FEES AND SERVICES,DIRECTLY COMMISSIONED NURSING SERVICES,Supplies & Services,Revenue
Walsall Council,http://opendatacommunities.org/id/metropolitan-district-council/walsall,WC78-7,31/03/2017,Childrens,5 CARE SERVICES LTD,01/03/2017,"1,111.50",63000-PROFESSIONAL FEES AND SERVICES,DIRECTLY COMMISSIONED NURSING SERVICES,Supplies & Services,Revenue
Walsall Council,http://opendatacommunities.org/id/metropolitan-district-council/walsall,WC78-8,31/03/2017,Childrens,5 CARE SERVICES LTD,10/03/2017,"1,111.50",63000-PROFESSIONAL FEES AND SERVICES,DIRECTLY COMMISSIONED NURSING SERVICES,Supplies & Services,Revenue
Walsall Council,http://opendatacommunities.org/id/metropolitan-district-council/walsall,WC78-9,31/03/2017,Childrens,5 CARE SERVICES LTD,01/03/2017,"1,235.00",63000-PROFESSIONAL FEES AND SERVICES,DIRECTLY COMMISSIONED NURSING SERVICES,Supplies & Services,Revenue
Walsall Council,http://opendatacommunities.org/id/metropolitan-district-council/walsall,WC78-10,31/03/2017,Childrens,5 CARE SERVICES LTD,07/03/2017,"1,599.00",63000-PROFESSIONAL FEES AND SERVICES,DIRECTLY COMMISSIONED NURSING SERVICES,Supplies & Services,Revenue
Walsall Council,http://opendatacommunities.org/id/metropolitan-district-council/walsall,WC78-11,31/03/2017,Childrens,5 CARE SERVICES LTD,01/03/2017,"1,735.50",63000-PROFESSIONAL FEES AND SERVICES,DIRECTLY COMMISSIONED NURSING SERVICES,Supplies & Services,Revenue
Walsall Council,http://opendatacommunities.org/id/metropolitan-district-council/walsall,WC78-12,31/03/2017,Adult Social Care,5 CARE SERVICES LTD,14/03/2017,"1,820.00",73019-PSE'S-PRIV CONTRACTOR FEES,TRANSITIONAL CARE SUPPORT TEAM,Third Party Payments,Revenue
Walsall Council,http://opendatacommunities.org/id/metropolitan-district-council/walsall,WC78-13,31/03/2017,Adult Social Care,5 CARE SERVICES LTD,01/03/2017,"42,509.96",73372-DOMICILIARY CARE,OP COMMISSIONING,Third Party Payments,Revenue
Walsall Council,http://opendatacommunities.org/id/metropolitan-district-council/walsall,WC78-14,31/03/2017,Adult Social Care,5 CARE SERVICES LTD,27/03/2017,"43,473.43",73372-DOMICILIARY CARE,OP COMMISSIONING,Third Party Payments,Revenue
Walsall Council,http://opendatacommunities.org/id/metropolitan-district-council/walsall,WC78-15,31/03/2017,Change and Governance,A D T FIRE AND SECURITY PLC,15/03/2017,257.46,73002-SECURITY-PRIV CONTRACTOR FEES,RECHARGEABLE UTILITIES,Third Party Payments,Revenue
Walsall Council,http://opendatacommunities.org/id/metropolitan-district-council/walsall,WC78-16,31/03/2017,Change and Governance,A D T FIRE AND SECURITY PLC,29/03/2017,721.34,60008-MAINTENANCE-FURNITURE & EQUIPMENT,ACCOMMODATION SERVICES MANAGEMENT,Supplies & Services,Revenue
Walsall Council,http://opendatacommunities.org/id/metropolitan-district-council/walsall,WC78-17,31/03/2017,Economy & Environment,A F BLAKEMORE & SON LTD,24/03/2017,217.13,61018-DRINKS-PROVISIONS,WALSALL GALA CENTRE,Supplies & Services,Revenue
Walsall Council,http://opendatacommunities.org/id/metropolitan-district-council/walsall,WC78-18,31/03/2017,Economy & Environment,A F BLAKEMORE & SON LTD,08/03/2017,233.30,61009-BEVERAGES-PROVISIONS,DARLASTON LEISURE CENTRE,Supplies & Services,Revenue
Walsall Council,http://opendatacommunities.org/id/metropolitan-district-council/walsall,WC78-19,31/03/2017,Economy & Environment,A F BLAKEMORE & SON LTD,29/03/2017,256.56,61008-CONFECTIONERY/SNACKS-PROVISIONS,BLOXWICH LEISURE CENTRE,Supplies & Services,Revenue
Walsall Council,http://opendatacommunities.org/id/metropolitan-district-council/walsall,WC78-20,31/03/2017,Adult Social Care,A F BLAKEMORE & SON LTD,06/03/2017,266.44,61016-FOOD AND BEVERAGES-PROVISIONS,GOSCOTE,Supplies & Services,Revenue
Walsall Council,http://opendatacommunities.org/id/metropolitan-district-council/walsall,WC78-21,31/03/2017,Economy & Environment,A F BLAKEMORE & SON LTD,01/03/2017,277.32,61008-CONFECTIONERY/SNACKS-PROVISIONS,OAK PARK,Supplies & Services,Revenue
Walsall Council,http://opendatacommunities.org/id/metropolitan-district-council/walsall,WC78-22,31/03/2017,Economy & Environment,A F BLAKEMORE & SON LTD,22/03/2017,385.12,61008-CONFECTIONERY/SNACKS-PROVISIONS,BLOXWICH LEISURE CENTRE,Supplies & Services,Revenue
Walsall Council,http://opendatacommunities.org/id/metropolitan-district-council/walsall,WC78-23,31/03/2017,Economy & Environment,A F BLAKEMORE & SON LTD,14/03/2017,386.58,61008-CONFECTIONERY/SNACKS-PROVISIONS,OAK PARK,Supplies & Services,Revenue
Walsall Council,http://opendatacommunities.org/id/metropolitan-district-council/walsall,WC78-24,31/03/2017,Economy & Environment,A F BLAKEMORE & SON LTD,16/03/2017,386.78,61002-DRY FOODS-PROVISIONS,OAK PARK,Supplies & Services,Revenue
Walsall Council,http://opendatacommunities.org/id/metropolitan-district-council/walsall,WC78-25,31/03/2017,Adult Social Care,A F BLAKEMORE & SON LTD,01/03/2017,413.41,61016-FOOD AND BEVERAGES-PROVISIONS,GOSCOTE,Supplies & Services,Revenue
Walsall Council,http://opendatacommunities.org/id/metropolitan-district-council/walsall,WC78-26,31/03/2017,Economy & Environment,A F BLAKEMORE & SON LTD,08/03/2017,449.99,61002-DRY FOODS-PROVISIONS,DARLASTON LEISURE CENTRE,Supplies & Services,Revenue
Walsall Council,http://opendatacommunities.org/id/metropolitan-district-council/walsall,WC78-27,31/03/2017,Adult Social Care,A F BLAKEMORE & SON LTD,08/03/2017,624.36,61016-FOOD AND BEVERAGES-PROVISIONS,REABLEMENT TEAM - HOLLY BANK,Supplies & Services,Revenue
Walsall Council,http://opendatacommunities.org/id/metropolitan-district-council/walsall,WC78-28,31/03/2017,Adult Social Care,A F BLAKEMORE & SON LTD,27/03/2017,708.85,61016-FOOD AND BEVERAGES-PROVISIONS,GOSCOTE,Supplies & Services,Revenue
Walsall Council,http://opendatacommunities.org/id/metropolitan-district-council/walsall,WC78-29,31/03/2017,Change and Governance,A F BLAKEMORE & SON LTD,07/03/2017,941.49,61016-FOOD AND BEVERAGES-PROVISIONS,WALSALL TOWN HALL,Supplies & Services,Revenue
Walsall Council,http://opendatacommunities.org/id/metropolitan-district-council/walsall,WC78-30,31/03/2017,Economy & Environment,A F BLAKEMORE & SON LTD,09/03/2017,997.13,61008-CONFECTIONERY/SNACKS-PROVISIONS,BLOXWICH LEISURE CENTRE,Supplies & Services,Revenue
Walsall Council,http://opendatacommunities.org/id/metropolitan-district-council/walsall,WC78-31,31/03/2017,Economy & Environment,A F BLAKEMORE & SON LTD,16/03/2017,"1,867.42",61002-DRY FOODS-PROVISIONS,OAK PARK,Supplies & Services,Revenue
Walsall Council,http://opendatacommunities.org/id/metropolitan-district-council/walsall,WC78-32,31/03/2017,Childrens,REDACTED,13/03/2017,340.16,74006-HOLIDAY/CHRISTMAS ALLOWANCE-FOSTER CARERS-OTH AGENCY PROVISION,INTERNAL FOSTER CARE PROVISION,Third Party Payments,Revenue
Walsall Council,http://opendatacommunities.org/id/metropolitan-district-council/walsall,WC78-33,31/03/2017,Change and Governance,AAF LTD,14/03/2017,"7,062.38",01006-SITE WORKS MAIN CONTRACTORS,CFR 807 STATUTORY TESTING,Capital,Capital
Walsall Council,http://opendatacommunities.org/id/metropolitan-district-council/walsall,WC78-34,31/03/2017,Childrens,REDACTED,13/03/2017,472.50,76422-DIRECT PAYMENTS TO SOCIAL SERVICES CLIENTS,FAMILY SUPPORT - DIRECT PAYMENTS,Transfer Payments,Revenue
Walsall Council,http://opendatacommunities.org/id/metropolitan-district-council/walsall,WC78-35,31/03/2017,Childrens,ABBEY BLINDS 001,07/03/2017,"2,070.45",60008-MAINTENANCE-FURNITURE & EQUIPMENT,SAFEGUARDING & FAMILY SUPPORT,Supplies & Services,Revenue
Walsall Council,http://opendatacommunities.org/id/metropolitan-district-council/walsall,WC78-36,31/03/2017,Adult Social Care,ABBEY COURT NURSING & RESIDEN,15/03/2017,"1,786.40",73373-RESIDENTIAL & NURSING CARE PLACEMENTS,OP COMMISSIONING,Third Party Payments,Revenue
Walsall Council,http://opendatacommunities.org/id/metropolitan-district-council/walsall,WC78-37,31/03/2017,Adult Social Care,ABBEY COURT NURSING & RESIDEN,15/03/2017,"1,786.40",73373-RESIDENTIAL & NURSING CARE PLACEMENTS,OP COMMISSIONING,Third Party Payments,Revenue
Walsall Council,http://opendatacommunities.org/id/metropolitan-district-council/walsall,WC78-38,31/03/2017,Adult Social Care,ABBEY COURT NURSING & RESIDEN,15/03/2017,"1,878.91",73373-RESIDENTIAL & NURSING CARE PLACEMENTS,MH COMMISSIONING,Third Party Payments,Revenue
Walsall Council,http://opendatacommunities.org/id/metropolitan-district-council/walsall,WC78-39,31/03/2017,Adult Social Care,ABBEY COURT NURSING & RESIDEN,15/03/2017,"2,144.62",73373-RESIDENTIAL & NURSING CARE PLACEMENTS,OP COMMISSIONING,Third Party Payments,Revenue
Walsall Council,http://opendatacommunities.org/id/metropolitan-district-council/walsall,WC78-40,31/03/2017,Adult Social Care,ABBEY HEALTHCARE HOMES LTD,07/03/2017,"1,699.16",73373-RESIDENTIAL & NURSING CARE PLACEMENTS,PD COMMISSIONING,Third Party Payments,Revenue
Walsall Council,http://opendatacommunities.org/id/metropolitan-district-council/walsall,WC78-41,31/03/2017,Adult Social Care,ABBEY HEALTHCARE HOMES LTD,07/03/2017,"2,294.08",73373-RESIDENTIAL & NURSING CARE PLACEMENTS,PD COMMISSIONING,Third Party Payments,Revenue
Walsall Council,http://opendatacommunities.org/id/metropolitan-district-council/walsall,WC78-42,31/03/2017,Childrens,ABBEY PRIMARY SCHOOL,21/03/2017,"1,050.00",63000-PROFESSIONAL FEES AND SERVICES,SCHOOL IMPROVEMENT-ASSESSMENT,Supplies & Services,Revenue
Walsall Council,http://opendatacommunities.org/id/metropolitan-district-council/walsall,WC78-43,31/03/2017,Childrens,ABC CHILDRENS HOME,09/03/2017,"-1,285.71",74036-EXTERNAL RESIDENTIAL CARE-OTH AGENCY PROVISION,INDEPENDENT RESIDENTIAL HOMES,Third Party Payments,Revenue
Walsall Council,http://opendatacommunities.org/id/metropolitan-district-council/walsall,WC78-44,31/03/2017,Childrens,ABC CHILDRENS HOME,14/03/2017,"9,750.00",74036-EXTERNAL RESIDENTIAL CARE-OTH AGENCY PROVISION,INDEPENDENT RESIDENTIAL HOMES,Third Party Payments,Revenue
Walsall Council,http://opendatacommunities.org/id/metropolitan-district-council/walsall,WC78-45,31/03/2017,Childrens,ABC DAY NURSERY (WILLENHALL) LIMITED,22/03/2017,375.00,63000-PROFESSIONAL FEES AND SERVICES,SAFEGUARDING & FAMILY SUPPORT,Supplies & Services,Revenue
Walsall Council,http://opendatacommunities.org/id/metropolitan-district-council/walsall,WC78-46,31/03/2017,Childrens,ABC DAY NURSERY (WILLENHALL) LIMITED,10/03/2017,"2,692.80",66505-OTHER-GRANTS TO OTHER ORGS,EARLY YEARS - 3 YR OLDS,Third Party Payments,Revenue
Walsall Council,http://opendatacommunities.org/id/metropolitan-district-council/walsall,WC78-47,31/03/2017,Childrens,ABC DAY NURSERY (WILLENHALL) LIMITED,09/03/2017,"2,816.64",66505-OTHER-GRANTS TO OTHER ORGS,EARLY YEARS - 2 YR OLDS,Third Party Payments,Revenue
Walsall Council,http://opendatacommunities.org/id/metropolitan-district-council/walsall,WC78-48,31/03/2017,Childrens,ABC FOSTERING,10/03/2017,"1,954.29",74037-INDEPENDENT FOSTER CARE-OTH AGENCY PROVISION,EXTERNAL FOSTER CARE PROVISION,Third Party Payments,Revenue
Walsall Council,http://opendatacommunities.org/id/metropolitan-district-council/walsall,WC78-49,31/03/2017,Childrens,ABC FOSTERING,10/03/2017,"2,635.20",74037-INDEPENDENT FOSTER CARE-OTH AGENCY PROVISION,EXTERNAL FOSTER CARE PROVISION,Third Party Payments,Revenue
Walsall Council,http://opendatacommunities.org/id/metropolitan-district-council/walsall,WC78-50,31/03/2017,Childrens,ABC FOSTERING,10/03/2017,"2,635.20",74037-INDEPENDENT FOSTER CARE-OTH AGENCY PROVISION,EXTERNAL FOSTER CARE PROVISION,Third Party Payments,Revenue
Walsall Council,http://opendatacommunities.org/id/metropolitan-district-council/walsall,WC78-51,31/03/2017,Childrens,ABC FOSTERING,10/03/2017,"2,933.35",74037-INDEPENDENT FOSTER CARE-OTH AGENCY PROVISION,EXTERNAL FOSTER CARE PROVISION,Third Party Payments,Revenue
Walsall Council,http://opendatacommunities.org/id/metropolitan-district-council/walsall,WC78-52,31/03/2017,Adult Social Care,REDACTED,13/03/2017,"1,947.10",76422-DIRECT PAYMENTS TO SOCIAL SERVICES CLIENTS,LD COMMISSIONING,Transfer Payments,Revenue
Walsall Council,http://opendatacommunities.org/id/metropolitan-district-council/walsall,WC78-53,31/03/2017,Adult Social Care,REDACTED,13/03/2017,"2,947.49",76422-DIRECT PAYMENTS TO SOCIAL SERVICES CLIENTS,LD COMMISSIONING,Transfer Payments,Revenue
Walsall Council,http://opendatacommunities.org/id/metropolitan-district-council/walsall,WC78-54,31/03/2017,Childrens,ABLEWELL CARS,08/03/2017,503.50,52000-WITH DRIVER-HIRE OF VEHICLES,SCHOOL TRANSPORT,Transport,Revenue
Walsall Council,http://opendatacommunities.org/id/metropolitan-district-council/walsall,WC78-55,31/03/2017,Childrens,ABLEWELL CARS,03/03/2017,530.00,52000-WITH DRIVER-HIRE OF VEHICLES,SCHOOL TRANSPORT,Transport,Revenue
Walsall Council,http://opendatacommunities.org/id/metropolitan-district-council/walsall,WC78-56,31/03/2017,Childrens,ABLEWELL CARS,20/03/2017,530.00,52000-WITH DRIVER-HIRE OF VEHICLES,SCHOOL TRANSPORT,Transport,Revenue
Walsall Council,http://opendatacommunities.org/id/metropolitan-district-council/walsall,WC78-57,31/03/2017,Childrens,ABLEWELL CARS,08/03/2017,689.00,52000-WITH DRIVER-HIRE OF VEHICLES,SCHOOL TRANSPORT,Transport,Revenue
Walsall Council,http://opendatacommunities.org/id/metropolitan-district-council/walsall,WC78-58,31/03/2017,Childrens,AC EDUCATION,27/03/2017,"4,400.00",30030-EXTERNAL TRAINING,VIRTUAL SCHOOL CENTRAL PUPIL PREMIUM,Employees,Revenue
Walsall Council,http://opendatacommunities.org/id/metropolitan-district-council/walsall,WC78-59,31/03/2017,Adult Social Care,ACCORD HOUSING ASSOCIATION LTD#135,03/03/2017,578.25,73374-SUPPORTED & OTHER ACCOMMODATION,LD COMMISSIONING,Third Party Payments,Revenue
Walsall Council,http://opendatacommunities.org/id/metropolitan-district-council/walsall,WC78-60,31/03/2017,Adult Social Care,ACCORD HOUSING ASSOCIATION LTD#135,13/03/2017,578.25,73374-SUPPORTED & OTHER ACCOMMODATION,LD COMMISSIONING,Third Party Payments,Revenue
Walsall Council,http://opendatacommunities.org/id/metropolitan-district-council/walsall,WC78-61,31/03/2017,Adult Social Care,ACCORD HOUSING ASSOCIATION LTD#135,15/03/2017,"4,285.72",73373-RESIDENTIAL & NURSING CARE PLACEMENTS,LD COMMISSIONING,Third Party Payments,Revenue
Walsall Council,http://opendatacommunities.org/id/metropolitan-district-council/walsall,WC78-62,31/03/2017,Adult Social Care,ACCORD HOUSING ASSOCIATION LTD#135,15/03/2017,"4,285.72",73373-RESIDENTIAL & NURSING CARE PLACEMENTS,LD COMMISSIONING,Third Party Payments,Revenue
Walsall Council,http://opendatacommunities.org/id/metropolitan-district-council/walsall,WC78-63,31/03/2017,Adult Social Care,ACCORD HOUSING ASSOCIATION LTD#135,15/03/2017,"4,285.72",73373-RESIDENTIAL & NURSING CARE PLACEMENTS,LD COMMISSIONING,Third Party Payments,Revenue
Walsall Council,http://opendatacommunities.org/id/metropolitan-district-council/walsall,WC78-64,31/03/2017,Adult Social Care,ACCORD HOUSING ASSOCIATION LTD#135,15/03/2017,"4,285.72",73373-RESIDENTIAL & NURSING CARE PLACEMENTS,LD COMMISSIONING,Third Party Payments,Revenue
Walsall Council,http://opendatacommunities.org/id/metropolitan-district-council/walsall,WC78-65,31/03/2017,Adult Social Care,ACCORD HOUSING ASSOCIATION LTD#135,15/03/2017,"5,981.48",73373-RESIDENTIAL & NURSING CARE PLACEMENTS,LD COMMISSIONING,Third Party Payments,Revenue
Walsall Council,http://opendatacommunities.org/id/metropolitan-district-council/walsall,WC78-66,31/03/2017,Adult Social Care,ACCORD HOUSING ASSOCIATION LTD#135,15/03/2017,"5,981.48",73373-RESIDENTIAL & NURSING CARE PLACEMENTS,LD COMMISSIONING,Third Party Payments,Revenue
Walsall Council,http://opendatacommunities.org/id/metropolitan-district-council/walsall,WC78-67,31/03/2017,Adult Social Care,ACCORD HOUSING ASSOCIATION LTD#135,15/03/2017,"5,981.48",73373-RESIDENTIAL & NURSING CARE PLACEMENTS,LD COMMISSIONING,Third Party Payments,Revenue
Walsall Council,http://opendatacommunities.org/id/metropolitan-district-council/walsall,WC78-68,31/03/2017,Adult Social Care,ACCORD HOUSING ASSOCIATION LTD#135,01/03/2017,"8,224.93",73372-DOMICILIARY CARE,OP COMMISSIONING,Third Party Payments,Revenue
Walsall Council,http://opendatacommunities.org/id/metropolitan-district-council/walsall,WC78-69,31/03/2017,Adult Social Care,ACCORD HOUSING ASSOCIATION LTD#135,07/03/2017,"25,436.80",73373-RESIDENTIAL & NURSING CARE PLACEMENTS,PD COMMISSIONING,Third Party Payments,Revenue
Walsall Council,http://opendatacommunities.org/id/metropolitan-district-council/walsall,WC78-70,31/03/2017,Adult Social Care,ACCORD HOUSING ASSOCIATION LTD#135,01/03/2017,"27,771.46",73372-DOMICILIARY CARE,OP COMMISSIONING,Third Party Payments,Revenue
Walsall Council,http://opendatacommunities.org/id/metropolitan-district-council/walsall,WC78-71,31/03/2017,Adult Social Care,ACCORD HOUSING ASSOCIATION LTD#135,24/03/2017,"29,330.75",73365-BLOCK GROSS-SUPPORTING PEOPLE,OLDER PEOPLES CONTRACTS/SLA,Third Party Payments,Revenue
Walsall Council,http://opendatacommunities.org/id/metropolitan-district-council/walsall,WC78-72,31/03/2017,Adult Social Care,ACCORD HOUSING ASSOCIATION LTD#135,27/03/2017,"34,071.72",73372-DOMICILIARY CARE,OP COMMISSIONING,Third Party Payments,Revenue
Walsall Council,http://opendatacommunities.org/id/metropolitan-district-council/walsall,WC78-73,31/03/2017,Economy & Environment,ACCORD HOUSING ASSOCIATION LTD#135,28/03/2017,"141,766.04",66500-GRANTS TO OTHER ORGS,CITY DEAL WELFARE PILOT,Third Party Payments,Revenue
Walsall Council,http://opendatacommunities.org/id/metropolitan-district-council/walsall,WC78-74,31/03/2017,Adult Social Care,ACE CARE AGENCY,06/03/2017,362.84,73372-DOMICILIARY CARE,OP COMMISSIONING,Third Party Payments,Revenue
Walsall Council,http://opendatacommunities.org/id/metropolitan-district-council/walsall,WC78-75,31/03/2017,Adult Social Care,ACE CARE AGENCY,29/03/2017,371.50,73372-DOMICILIARY CARE,OP COMMISSIONING,Third Party Payments,Revenue
Walsall Council,http://opendatacommunities.org/id/metropolitan-district-council/walsall,WC78-76,31/03/2017,Adult Social Care,ACE CARE AGENCY,06/03/2017,584.83,73372-DOMICILIARY CARE,OP COMMISSIONING,Third Party Payments,Revenue
Walsall Council,http://opendatacommunities.org/id/metropolitan-district-council/walsall,WC78-77,31/03/2017,Adult Social Care,ACE CARE AGENCY,29/03/2017,584.83,73372-DOMICILIARY CARE,OP COMMISSIONING,Third Party Payments,Revenue
Walsall Council,http://opendatacommunities.org/id/metropolitan-district-council/walsall,WC78-78,31/03/2017,Adult Social Care,ACE CARE AGENCY,29/03/2017,607.05,73372-DOMICILIARY CARE,MH COMMISSIONING,Third Party Payments,Revenue
Walsall Council,http://opendatacommunities.org/id/metropolitan-district-council/walsall,WC78-79,31/03/2017,Adult Social Care,ACE CARE AGENCY,06/03/2017,647.52,73372-DOMICILIARY CARE,MH COMMISSIONING,Third Party Payments,Revenue
Walsall Council,http://opendatacommunities.org/id/metropolitan-district-council/walsall,WC78-80,31/03/2017,Adult Social Care,ACE CARE AGENCY,06/03/2017,728.00,73372-DOMICILIARY CARE,OP COMMISSIONING,Third Party Payments,Revenue
Walsall Council,http://opendatacommunities.org/id/metropolitan-district-council/walsall,WC78-81,31/03/2017,Adult Social Care,ACE CARE AGENCY,29/03/2017,728.00,73372-DOMICILIARY CARE,OP COMMISSIONING,Third Party Payments,Revenue
Walsall Council,http://opendatacommunities.org/id/metropolitan-district-council/walsall,WC78-82,31/03/2017,Adult Social Care,ACE CARE AGENCY,06/03/2017,806.00,73372-DOMICILIARY CARE,OP COMMISSIONING,Third Party Payments,Revenue
Walsall Council,http://opendatacommunities.org/id/metropolitan-district-council/walsall,WC78-83,31/03/2017,Adult Social Care,ACE CARE AGENCY,29/03/2017,806.00,73372-DOMICILIARY CARE,OP COMMISSIONING,Third Party Payments,Revenue
Walsall Council,http://opendatacommunities.org/id/metropolitan-district-council/walsall,WC78-84,31/03/2017,Adult Social Care,ACEPAY LTD (COTTAGE NUR HOME),15/03/2017,"-1,657.71",73373-RESIDENTIAL & NURSING CARE PLACEMENTS,OP COMMISSIONING,Third Party Payments,Revenue
Walsall Council,http://opendatacommunities.org/id/metropolitan-district-council/walsall,WC78-85,31/03/2017,Adult Social Care,ACEPAY LTD (COTTAGE NUR HOME),15/03/2017,"-1,056.16",73373-RESIDENTIAL & NURSING CARE PLACEMENTS,OP COMMISSIONING,Third Party Payments,Revenue
Walsall Council,http://opendatacommunities.org/id/metropolitan-district-council/walsall,WC78-86,31/03/2017,Adult Social Care,ACEPAY LTD (COTTAGE NUR HOME),15/03/2017,"2,274.80",73373-RESIDENTIAL & NURSING CARE PLACEMENTS,OP COMMISSIONING,Third Party Payments,Revenue
Walsall Council,http://opendatacommunities.org/id/metropolitan-district-council/walsall,WC78-87,31/03/2017,Adult Social Care,ACEPAY LTD (COTTAGE NUR HOME),15/03/2017,"2,274.80",73373-RESIDENTIAL & NURSING CARE PLACEMENTS,OP COMMISSIONING,Third Party Payments,Revenue
Walsall Council,http://opendatacommunities.org/id/metropolitan-district-council/walsall,WC78-88,31/03/2017,Adult Social Care,ACEPAY LTD (COTTAGE NUR HOME),15/03/2017,"2,274.80",73373-RESIDENTIAL & NURSING CARE PLACEMENTS,OP COMMISSIONING,Third Party Payments,Revenue
Walsall Council,http://opendatacommunities.org/id/metropolitan-district-council/walsall,WC78-89,31/03/2017,Adult Social Care,ACEPAY LTD (COTTAGE NUR HOME),15/03/2017,"2,274.80",73373-RESIDENTIAL & NURSING CARE PLACEMENTS,OP COMMISSIONING,Third Party Payments,Revenue
Walsall Council,http://opendatacommunities.org/id/metropolitan-district-council/walsall,WC78-90,31/03/2017,Adult Social Care,ACEPAY LTD (COTTAGE NUR HOME),15/03/2017,"2,320.80",73373-RESIDENTIAL & NURSING CARE PLACEMENTS,OP COMMISSIONING,Third Party Payments,Revenue
Walsall Council,http://opendatacommunities.org/id/metropolitan-district-council/walsall,WC78-91,31/03/2017,Adult Social Care,ACEPAY LTD (COTTAGE NUR HOME),22/03/2017,"2,320.80",73373-RESIDENTIAL & NURSING CARE PLACEMENTS,OP COMMISSIONING,Third Party Payments,Revenue
Walsall Council,http://opendatacommunities.org/id/metropolitan-district-council/walsall,WC78-92,31/03/2017,Childrens,ACHIEVEMENT FOR ALL (3AS) LTD,24/03/2017,"1,400.00",77000-TRANSFER PAYMENTS-MANDATORY AWARDS,HIGH NEEDS ADDITIONAL TARGETED FUNDING,Transfer Payments,Revenue
Walsall Council,http://opendatacommunities.org/id/metropolitan-district-council/walsall,WC78-93,31/03/2017,Childrens,ACORN CARE & EDUCATION LTD (SALES),30/03/2017,"12,650.00",66502-TOP UP FUNDING -GRANTS TO SCHOOLS,MAINTAINED PROVIDERS,Third Party Payments,Revenue
Walsall Council,http://opendatacommunities.org/id/metropolitan-district-council/walsall,WC78-94,31/03/2017,Adult Social Care,ACORN CARE LTD,15/03/2017,"15,174.19",73373-RESIDENTIAL & NURSING CARE PLACEMENTS,LD COMMISSIONING,Third Party Payments,Revenue
Walsall Council,http://opendatacommunities.org/id/metropolitan-district-council/walsall,WC78-95,31/03/2017,Adult Social Care,ACORN REST HOME,15/03/2017,"1,620.00",73373-RESIDENTIAL & NURSING CARE PLACEMENTS,OP COMMISSIONING,Third Party Payments,Revenue
Walsall Council,http://opendatacommunities.org/id/metropolitan-district-council/walsall,WC78-96,31/03/2017,Childrens,ACORNS CHILDRENS HOSPICE TRUST,01/03/2017,750.00,63000-PROFESSIONAL FEES AND SERVICES,DIRECTLY COMMISSIONED NURSING SERVICES,Supplies & Services,Revenue
Walsall Council,http://opendatacommunities.org/id/metropolitan-district-council/walsall,WC78-97,31/03/2017,Childrens,ACORNS CHILDRENS HOSPICE TRUST,27/03/2017,750.00,63000-PROFESSIONAL FEES AND SERVICES,DIRECTLY COMMISSIONED NURSING SERVICES,Supplies & Services,Revenue
Walsall Council,http://opendatacommunities.org/id/metropolitan-district-council/walsall,WC78-98,31/03/2017,Adult Social Care,ACTION ON HEARING LOSS,27/03/2017,"2,520.22",60520-HEALTH & SAFETY-MATERIALS,SENSORY/DEAF SERVICES,Supplies & Services,Revenue
Walsall Council,http://opendatacommunities.org/id/metropolitan-district-council/walsall,WC78-99,31/03/2017,Childrens,ACTIVATING CREATIVE TALENT CIC,02/03/2017,"10,532.17",66500-GRANTS TO OTHER ORGS,EIG-TYS MODEL,Third Party Payments,Revenue
Walsall Council,http://opendatacommunities.org/id/metropolitan-district-council/walsall,WC78-100,31/03/2017,Adult Social Care,ACTON BANKS LTD,08/03/2017,693.33,34305-AGENCY STAFF-EMPLOYEES,GOSCOTE,Employees,Revenue
Walsall Council,http://opendatacommunities.org/id/metropolitan-district-council/walsall,WC78-101,31/03/2017,Adult Social Care,ACTON BANKS LTD,08/03/2017,762.09,34305-AGENCY STAFF-EMPLOYEES,GOSCOTE,Employees,Revenue
Walsall Council,http://opendatacommunities.org/id/metropolitan-district-council/walsall,WC78-102,31/03/2017,Adult Social Care,ACTON BANKS LTD,10/03/2017,853.77,34305-AGENCY STAFF-EMPLOYEES,GOSCOTE,Employees,Revenue
Walsall Council,http://opendatacommunities.org/id/metropolitan-district-council/walsall,WC78-103,31/03/2017,Adult Social Care,ACTON BANKS LTD,03/03/2017,"3,545.46",34305-AGENCY STAFF-EMPLOYEES,REABLEMENT TEAM - HOLLY BANK,Employees,Revenue
Walsall Council,http://opendatacommunities.org/id/metropolitan-district-council/walsall,WC78-104,31/03/2017,Adult Social Care,ACTON BANKS LTD,22/03/2017,"3,680.91",34305-AGENCY STAFF-EMPLOYEES,REABLEMENT TEAM - HOLLY BANK,Employees,Revenue
Walsall Council,http://opendatacommunities.org/id/metropolitan-district-council/walsall,WC78-105,31/03/2017,Adult Social Care,ACTON BANKS LTD,14/03/2017,"3,739.67",34305-AGENCY STAFF-EMPLOYEES,REABLEMENT TEAM - HOLLY BANK,Employees,Revenue
Walsall Council,http://opendatacommunities.org/id/metropolitan-district-council/walsall,WC78-106,31/03/2017,Adult Social Care,ACTON BANKS LTD,27/03/2017,"4,173.36",34305-AGENCY STAFF-EMPLOYEES,REABLEMENT TEAM - HOLLY BANK,Employees,Revenue
Walsall Council,http://opendatacommunities.org/id/metropolitan-district-council/walsall,WC78-107,31/03/2017,Adult Social Care,ACTON BANKS LTD,03/03/2017,"4,927.77",34305-AGENCY STAFF-EMPLOYEES,REABLEMENT TEAM - HOLLY BANK,Employees,Revenue
Walsall Council,http://opendatacommunities.org/id/metropolitan-district-council/walsall,WC78-108,31/03/2017,Economy & Environment,REDACTED,14/03/2017,362.50,63239-EXTERNAL WORKS-PAYMENT TO CONTRACTOR,PHOTOGRAPHY EXHIBITION NO. 2 WSA,Third Party Payments,Revenue
Walsall Council,http://opendatacommunities.org/id/metropolitan-district-council/walsall,WC78-109,31/03/2017,Economy & Environment,REDACTED,14/03/2017,418.75,63239-EXTERNAL WORKS-PAYMENT TO CONTRACTOR,NAG - TEMPORARY EXHIBITIONS,Third Party Payments,Revenue
Walsall Council,http://opendatacommunities.org/id/metropolitan-district-council/walsall,WC78-110,31/03/2017,Economy & Environment,REDACTED,14/03/2017,965.63,63239-EXTERNAL WORKS-PAYMENT TO CONTRACTOR,NAG - TEMPORARY EXHIBITIONS,Third Party Payments,Revenue
Walsall Council,http://opendatacommunities.org/id/metropolitan-district-council/walsall,WC78-111,31/03/2017,Economy & Environment,REDACTED,22/03/2017,965.63,63239-EXTERNAL WORKS-PAYMENT TO CONTRACTOR,EXHIBITIONS - SPECIAL PROJECTS/PARTNERSHIPS,Third Party Payments,Revenue
Walsall Council,http://opendatacommunities.org/id/metropolitan-district-council/walsall,WC78-112,31/03/2017,Adult Social Care,REDACTED,13/03/2017,607.50,76422-DIRECT PAYMENTS TO SOCIAL SERVICES CLIENTS,LD COMMISSIONING,Transfer Payments,Revenue
Walsall Council,http://opendatacommunities.org/id/metropolitan-district-council/walsall,WC78-113,31/03/2017,Adult Social Care,REDACTED,13/03/2017,"1,205.00",76422-DIRECT PAYMENTS TO SOCIAL SERVICES CLIENTS,OP COMMISSIONING,Transfer Payments,Revenue
Walsall Council,http://opendatacommunities.org/id/metropolitan-district-council/walsall,WC78-114,31/03/2017,Adult Social Care,ADMIRAL SELF STORAGE LTD,27/03/2017,215.10,43000-RENTS,MENTAL HEALTH MANAGEMENT TEAM,Premises,Revenue
Walsall Council,http://opendatacommunities.org/id/metropolitan-district-council/walsall,WC78-115,31/03/2017,Childrens,ADOPTION UK,24/03/2017,"1,250.00",74009-ADOPTION ALLOWANCE,ADOPTION TEAM,Transfer Payments,Revenue
Walsall Council,http://opendatacommunities.org/id/metropolitan-district-council/walsall,WC78-116,31/03/2017,Childrens,REDACTED,13/03/2017,694.24,74006-HOLIDAY/CHRISTMAS ALLOWANCE-FOSTER CARERS-OTH AGENCY PROVISION,INTERNAL FOSTER CARE PROVISION,Third Party Payments,Revenue
Walsall Council,http://opendatacommunities.org/id/metropolitan-district-council/walsall,WC78-117,31/03/2017,Adult Social Care,ADVANCE HEALTH CARE (UK) LTD,29/03/2017,-476.60,73372-DOMICILIARY CARE,OP COMMISSIONING,Third Party Payments,Revenue
Walsall Council,http://opendatacommunities.org/id/metropolitan-district-council/walsall,WC78-118,31/03/2017,Adult Social Care,ADVANCE HEALTH CARE (UK) LTD,20/03/2017,"3,523.90",73025-PROFESSIONAL SERVICES-PRIV CONTRACTOR & OTHER AGENCIES,COMMUNITY INTERMEDIATE CARE,Third Party Payments,Revenue
Walsall Council,http://opendatacommunities.org/id/metropolitan-district-council/walsall,WC78-119,31/03/2017,Adult Social Care,ADVANCE HEALTH CARE (UK) LTD,20/03/2017,"5,092.63",73025-PROFESSIONAL SERVICES-PRIV CONTRACTOR & OTHER AGENCIES,COMMUNITY INTERMEDIATE CARE,Third Party Payments,Revenue
Walsall Council,http://opendatacommunities.org/id/metropolitan-district-council/walsall,WC78-120,31/03/2017,Adult Social Care,ADVANCE HEALTH CARE (UK) LTD,08/03/2017,"5,397.20",73025-PROFESSIONAL SERVICES-PRIV CONTRACTOR & OTHER AGENCIES,COMMUNITY INTERMEDIATE CARE,Third Party Payments,Revenue
Walsall Council,http://opendatacommunities.org/id/metropolitan-district-council/walsall,WC78-121,31/03/2017,Adult Social Care,ADVANCE HEALTH CARE (UK) LTD,08/03/2017,"6,065.30",73025-PROFESSIONAL SERVICES-PRIV CONTRACTOR & OTHER AGENCIES,COMMUNITY INTERMEDIATE CARE,Third Party Payments,Revenue
Walsall Council,http://opendatacommunities.org/id/metropolitan-district-council/walsall,WC78-122,31/03/2017,Adult Social Care,ADVANCE HEALTH CARE (UK) LTD,08/03/2017,"6,952.83",73025-PROFESSIONAL SERVICES-PRIV CONTRACTOR & OTHER AGENCIES,COMMUNITY INTERMEDIATE CARE,Third Party Payments,Revenue
Walsall Council,http://opendatacommunities.org/id/metropolitan-district-council/walsall,WC78-123,31/03/2017,Adult Social Care,ADVANCE HEALTH CARE (UK) LTD,01/03/2017,"59,369.05",73372-DOMICILIARY CARE,OP COMMISSIONING,Third Party Payments,Revenue
Walsall Council,http://opendatacommunities.org/id/metropolitan-district-council/walsall,WC78-124,31/03/2017,Adult Social Care,ADVANCE HEALTH CARE (UK) LTD,27/03/2017,"65,297.95",73372-DOMICILIARY CARE,OP COMMISSIONING,Third Party Payments,Revenue
Walsall Council,http://opendatacommunities.org/id/metropolitan-district-council/walsall,WC78-125,31/03/2017,Change and Governance,ADVANCED DIGITAL IMAGING,03/03/2017,305.00,62008-OUTWORK-PRINT ROOM,PRINTING SERVICES,Supplies & Services,Revenue
Walsall Council,http://opendatacommunities.org/id/metropolitan-district-council/walsall,WC78-126,31/03/2017,Change and Governance,ADVANCED DIGITAL IMAGING,03/03/2017,397.00,62001-STATIONERY & GENERAL SUPPLIES-OFFICE EXP,PRINTING SERVICES,Supplies & Services,Revenue
Walsall Council,http://opendatacommunities.org/id/metropolitan-district-council/walsall,WC78-127,31/03/2017,Adult Social Care,ADVANCED HEALTH AND CARE,22/03/2017,"8,110.21",63800-COMPUTER EQUIPMENT AND SUPPLIES,COMMUNITY INTERMEDIATE CARE,Supplies & Services,Revenue
Walsall Council,http://opendatacommunities.org/id/metropolitan-district-council/walsall,WC78-128,31/03/2017,Childrens,ADVENTURELAND DAY NURSERY,10/03/2017,"7,135.92",66505-OTHER-GRANTS TO OTHER ORGS,EARLY YEARS - 3 YR OLDS,Third Party Payments,Revenue
Walsall Council,http://opendatacommunities.org/id/metropolitan-district-council/walsall,WC78-129,31/03/2017,Economy & Environment,AEBI SCHMIDT UK LIMITED,17/03/2017,276.52,60514-MATERIALS TO STORES,FLEET PARTS STOCK ACCOUNT,Supplies & Services,Revenue
Walsall Council,http://opendatacommunities.org/id/metropolitan-district-council/walsall,WC78-130,31/03/2017,Economy & Environment,AEBI SCHMIDT UK LIMITED,03/03/2017,545.04,60500-GENERAL MATERIALS,FLEET,Supplies & Services,Revenue
Walsall Council,http://opendatacommunities.org/id/metropolitan-district-council/walsall,WC78-131,31/03/2017,Economy & Environment,AECOM LIMITED,17/03/2017,995.00,01009-SITE WORKS - OTHER CONTRACTORS,CFR 1147 MEASURES TO ENCOURAGE CYCLING-LITTLE BLOXWICH TO PELSALL,Capital,Capital
Walsall Council,http://opendatacommunities.org/id/metropolitan-district-council/walsall,WC78-132,31/03/2017,Economy & Environment,AECOM LIMITED,06/03/2017,997.00,01001-OTHER CONSULTANTS FEES,CFR 876 DARLASTON DSDA,Capital,Capital
Walsall Council,http://opendatacommunities.org/id/metropolitan-district-council/walsall,WC78-133,31/03/2017,Economy & Environment,AECOM LIMITED,06/03/2017,"5,075.16",01001-OTHER CONSULTANTS FEES,CFR 876 DARLASTON DSDA,Capital,Capital
Walsall Council,http://opendatacommunities.org/id/metropolitan-district-council/walsall,WC78-134,31/03/2017,Economy & Environment,AECOM LIMITED,14/03/2017,"15,171.95",63000-PROFESSIONAL FEES AND SERVICES,UNCAPITALISED SPEND,Supplies & Services,Revenue
Walsall Council,http://opendatacommunities.org/id/metropolitan-district-council/walsall,WC78-135,31/03/2017,Change and Governance,AFGHAN COMMUNITY & WELFARE CENTRE,29/03/2017,"1,500.00",66500-GRANTS TO OTHER ORGS,COHESION,Third Party Payments,Revenue
Walsall Council,http://opendatacommunities.org/id/metropolitan-district-council/walsall,WC78-136,31/03/2017,Childrens,AFTER ADOPTION,01/03/2017,"1,080.10",73025-PROFESSIONAL SERVICES-PRIV CONTRACTOR & OTHER AGENCIES,ADOPTION TEAM,Third Party Payments,Revenue
Walsall Council,http://opendatacommunities.org/id/metropolitan-district-council/walsall,WC78-137,31/03/2017,Adult Social Care,AGE UK WALSALL,22/03/2017,"6,226.00",76423-DIRECT PAYMENTS SUPPORT,DIRECT PAYMENT SUPPORT ORGANISATIONS,Transfer Payments,Revenue
Walsall Council,http://opendatacommunities.org/id/metropolitan-district-council/walsall,WC78-138,31/03/2017,Adult Social Care,AGE UK WALSALL,28/03/2017,"7,872.50",76423-DIRECT PAYMENTS SUPPORT,DIRECT PAYMENT SUPPORT ORGANISATIONS,Transfer Payments,Revenue
Walsall Council,http://opendatacommunities.org/id/metropolitan-district-council/walsall,WC78-139,31/03/2017,Change and Governance,AGGORA TECHNICAL LTD,14/03/2017,327.00,60006-NEW-FURNITURE & EQUIPMENT,CA OLD HALL SPECIAL SCHOOL,Supplies & Services,Revenue
Walsall Council,http://opendatacommunities.org/id/metropolitan-district-council/walsall,WC78-140,31/03/2017,Adult Social Care,REDACTED,13/03/2017,"2,352.50",76422-DIRECT PAYMENTS TO SOCIAL SERVICES CLIENTS,LD COMMISSIONING,Transfer Payments,Revenue
Walsall Council,http://opendatacommunities.org/id/metropolitan-district-council/walsall,WC78-141,31/03/2017,Adult Social Care,REDACTED,13/03/2017,"1,142.75",76422-DIRECT PAYMENTS TO SOCIAL SERVICES CLIENTS,OP COMMISSIONING,Transfer Payments,Revenue
Walsall Council,http://opendatacommunities.org/id/metropolitan-district-council/walsall,WC78-142,31/03/2017,Childrens,AJK TRAVEL,03/03/2017,"14,056.10",52000-WITH DRIVER-HIRE OF VEHICLES,SCHOOL TRANSPORT,Transport,Revenue
Walsall Council,http://opendatacommunities.org/id/metropolitan-district-council/walsall,WC78-143,31/03/2017,Childrens,ALAN CRITCHLEY ASSOCIATES,06/03/2017,"5,400.00",63102-CONSULTANTS FEES - CORPORATE,SAFEGUARDING BOARD,Supplies & Services,Revenue
Walsall Council,http://opendatacommunities.org/id/metropolitan-district-council/walsall,WC78-144,31/03/2017,Economy & Environment,ALDERBROOK HEALTHCARE LTD,03/03/2017,567.30,63000-PROFESSIONAL FEES AND SERVICES,CORONERS SERVICE,Supplies & Services,Revenue
Walsall Council,http://opendatacommunities.org/id/metropolitan-district-council/walsall,WC78-145,31/03/2017,Economy & Environment,ALDERBROOK HEALTHCARE LTD,03/03/2017,747.40,63000-PROFESSIONAL FEES AND SERVICES,CORONERS SERVICE,Supplies & Services,Revenue
Walsall Council,http://opendatacommunities.org/id/metropolitan-district-council/walsall,WC78-146,31/03/2017,Economy & Environment,ALDERBROOK HEALTHCARE LTD,09/03/2017,941.00,63000-PROFESSIONAL FEES AND SERVICES,CORONERS SERVICE,Supplies & Services,Revenue
Walsall Council,http://opendatacommunities.org/id/metropolitan-district-council/walsall,WC78-147,31/03/2017,Economy & Environment,ALDERBROOK HEALTHCARE LTD,03/03/2017,"1,192.30",63000-PROFESSIONAL FEES AND SERVICES,CORONERS SERVICE,Supplies & Services,Revenue
Walsall Council,http://opendatacommunities.org/id/metropolitan-district-council/walsall,WC78-148,31/03/2017,Economy & Environment,ALDERBROOK HEALTHCARE LTD,03/03/2017,"1,399.40",63000-PROFESSIONAL FEES AND SERVICES,CORONERS SERVICE,Supplies & Services,Revenue
Walsall Council,http://opendatacommunities.org/id/metropolitan-district-council/walsall,WC78-149,31/03/2017,Economy & Environment,ALDERBROOK HEALTHCARE LTD,09/03/2017,"1,543.90",63000-PROFESSIONAL FEES AND SERVICES,CORONERS SERVICE,Supplies & Services,Revenue
Walsall Council,http://opendatacommunities.org/id/metropolitan-district-council/walsall,WC78-150,31/03/2017,Economy & Environment,ALDERBROOK HEALTHCARE LTD,03/03/2017,"1,605.10",63000-PROFESSIONAL FEES AND SERVICES,CORONERS SERVICE,Supplies & Services,Revenue
Walsall Council,http://opendatacommunities.org/id/metropolitan-district-council/walsall,WC78-151,31/03/2017,Economy & Environment,ALDERBROOK HEALTHCARE LTD,03/03/2017,"1,759.60",63000-PROFESSIONAL FEES AND SERVICES,CORONERS SERVICE,Supplies & Services,Revenue
Walsall Council,http://opendatacommunities.org/id/metropolitan-district-council/walsall,WC78-152,31/03/2017,Economy & Environment,ALDERBROOK HEALTHCARE LTD,09/03/2017,"2,252.20",63000-PROFESSIONAL FEES AND SERVICES,CORONERS SERVICE,Supplies & Services,Revenue
Walsall Council,http://opendatacommunities.org/id/metropolitan-district-council/walsall,WC78-153,31/03/2017,Adult Social Care,ALDERGROVE MANOR LTD,22/03/2017,"1,839.68",73373-RESIDENTIAL & NURSING CARE PLACEMENTS,MH COMMISSIONING,Third Party Payments,Revenue
Walsall Council,http://opendatacommunities.org/id/metropolitan-district-council/walsall,WC78-154,31/03/2017,Childrens,ALDRIDGE & BARONS LIMITED,03/03/2017,"6,239.05",52000-WITH DRIVER-HIRE OF VEHICLES,SCHOOL TRANSPORT,Transport,Revenue
Walsall Council,http://opendatacommunities.org/id/metropolitan-district-council/walsall,WC78-155,31/03/2017,Childrens,ALDRIDGE & BARONS LIMITED,03/03/2017,"17,319.10",52000-WITH DRIVER-HIRE OF VEHICLES,SCHOOL TRANSPORT,Transport,Revenue
Walsall Council,http://opendatacommunities.org/id/metropolitan-district-council/walsall,WC78-156,31/03/2017,Childrens,ALDRIDGE & BARONS LIMITED,03/03/2017,"21,877.80",52000-WITH DRIVER-HIRE OF VEHICLES,SCHOOL TRANSPORT,Transport,Revenue
Walsall Council,http://opendatacommunities.org/id/metropolitan-district-council/walsall,WC78-157,31/03/2017,Childrens,ALDRIDGE SCHOOL A SCIENCE COLLEGE.,14/03/2017,469.00,63000-PROFESSIONAL FEES AND SERVICES,SCHOOL IMPROVEMENT-CORE,Supplies & Services,Revenue
Walsall Council,http://opendatacommunities.org/id/metropolitan-district-council/walsall,WC78-158,31/03/2017,Childrens,ALDRIDGE SCHOOL A SCIENCE COLLEGE.,01/03/2017,600.00,77300-ISB-FORMULA ALLOCATION,ALDRIDGE SCHOOL SCIENCE COLLEGE (ACADEMY),Transfer Payments,Revenue
Walsall Council,http://opendatacommunities.org/id/metropolitan-district-council/walsall,WC78-159,31/03/2017,Childrens,ALDRIDGE SCHOOL A SCIENCE COLLEGE.,10/03/2017,600.00,77300-ISB-FORMULA ALLOCATION,ALDRIDGE SCHOOL SCIENCE COLLEGE (ACADEMY),Transfer Payments,Revenue
Walsall Council,http://opendatacommunities.org/id/metropolitan-district-council/walsall,WC78-160,31/03/2017,Change and Governance,ALDRIDGE SHED,01/03/2017,"1,748.44",62515-MISCELLANEOUS SUPPLIES,AREA 2 - ALDRIDGE/STREETLY/PHEASEY,Supplies & Services,Revenue
Walsall Council,http://opendatacommunities.org/id/metropolitan-district-council/walsall,WC78-161,31/03/2017,Adult Social Care,REDACTED,13/03/2017,"1,505.00",76422-DIRECT PAYMENTS TO SOCIAL SERVICES CLIENTS,PD COMMISSIONING,Transfer Payments,Revenue
Walsall Council,http://opendatacommunities.org/id/metropolitan-district-council/walsall,WC78-162,31/03/2017,Adult Social Care,ALEXANDRA HOUSE CARE SERVICES LTD T/A STONEBRIDGE NURSING HOME,22/03/2017,"1,270.97",73373-RESIDENTIAL & NURSING CARE PLACEMENTS,LD COMMISSIONING,Third Party Payments,Revenue
Walsall Council,http://opendatacommunities.org/id/metropolitan-district-council/walsall,WC78-163,31/03/2017,Adult Social Care,ALEXANDRA HOUSE CARE SERVICES LTD T/A STONEBRIDGE NURSING HOME,22/03/2017,"5,846.47",73373-RESIDENTIAL & NURSING CARE PLACEMENTS,LD COMMISSIONING,Third Party Payments,Revenue
Walsall Council,http://opendatacommunities.org/id/metropolitan-district-council/walsall,WC78-164,31/03/2017,Adult Social Care,ALEXANDRA HOUSE CARE SERVICES LTD T/A STONEBRIDGE NURSING HOME,07/03/2017,"7,117.44",73373-RESIDENTIAL & NURSING CARE PLACEMENTS,LD COMMISSIONING,Third Party Payments,Revenue
Walsall Council,http://opendatacommunities.org/id/metropolitan-district-council/walsall,WC78-165,31/03/2017,Childrens,REDACTED,13/03/2017,728.33,76422-DIRECT PAYMENTS TO SOCIAL SERVICES CLIENTS,FAMILY SUPPORT - DIRECT PAYMENTS,Transfer Payments,Revenue
Walsall Council,http://opendatacommunities.org/id/metropolitan-district-council/walsall,WC78-166,31/03/2017,Adult Social Care,REDACTED,13/03/2017,"1,122.50",76422-DIRECT PAYMENTS TO SOCIAL SERVICES CLIENTS,PD COMMISSIONING,Transfer Payments,Revenue
Walsall Council,http://opendatacommunities.org/id/metropolitan-district-council/walsall,WC78-167,31/03/2017,Adult Social Care,REDACTED,13/03/2017,765.00,76422-DIRECT PAYMENTS TO SOCIAL SERVICES CLIENTS,OP COMMISSIONING,Transfer Payments,Revenue
Walsall Council,http://opendatacommunities.org/id/metropolitan-district-council/walsall,WC78-168,31/03/2017,Childrens,REDACTED,27/03/2017,518.15,62515-MISCELLANEOUS SUPPLIES,INTERNAL FOSTER CARE PROVISION,Supplies & Services,Revenue
Walsall Council,http://opendatacommunities.org/id/metropolitan-district-council/walsall,WC78-169,31/03/2017,Adult Social Care,REDACTED,10/03/2017,"1,627.05",73374-SUPPORTED & OTHER ACCOMMODATION,LD COMMISSIONING,Third Party Payments,Revenue
Walsall Council,http://opendatacommunities.org/id/metropolitan-district-council/walsall,WC78-170,31/03/2017,Childrens,REDACTED,10/03/2017,716.40,66505-OTHER-GRANTS TO OTHER ORGS,EARLY YEARS - 3 YR OLDS,Third Party Payments,Revenue
Walsall Council,http://opendatacommunities.org/id/metropolitan-district-council/walsall,WC78-171,31/03/2017,Childrens,REDACTED,13/03/2017,571.44,74006-HOLIDAY/CHRISTMAS ALLOWANCE-FOSTER CARERS-OTH AGENCY PROVISION,INTERNAL FOSTER CARE PROVISION,Third Party Payments,Revenue
Walsall Council,http://opendatacommunities.org/id/metropolitan-district-council/walsall,WC78-172,31/03/2017,Childrens,REDACTED,13/03/2017,552.96,74006-HOLIDAY/CHRISTMAS ALLOWANCE-FOSTER CARERS-OTH AGENCY PROVISION,INTERNAL FOSTER CARE PROVISION,Third Party Payments,Revenue
Walsall Council,http://opendatacommunities.org/id/metropolitan-district-council/walsall,WC78-173,31/03/2017,Economy & Environment,REDACTED,10/03/2017,750.00,63000-PROFESSIONAL FEES AND SERVICES,HEALTH PROTECTION,Supplies & Services,Revenue
Walsall Council,http://opendatacommunities.org/id/metropolitan-district-council/walsall,WC78-174,31/03/2017,Change and Governance,ALLTECH SERVICE ENGINEERS LTD,16/03/2017,"1,350.04",60007-REPAIR OF EQUIPMENT-EQUIPMENT,PRINTING SERVICES,Supplies & Services,Revenue
Walsall Council,http://opendatacommunities.org/id/metropolitan-district-council/walsall,WC78-175,31/03/2017,Adult Social Care,ALMA COURT,15/03/2017,"6,316.87",73373-RESIDENTIAL & NURSING CARE PLACEMENTS,MH COMMISSIONING,Third Party Payments,Revenue
Walsall Council,http://opendatacommunities.org/id/metropolitan-district-council/walsall,WC78-176,31/03/2017,Childrens,ALMOZENE NURSERY & CHILDRENS CENTRE,17/03/2017,320.00,63120-CRECHE FACILITIES-SERVICES-FEES,BUDDY COSTS 0-5,Supplies & Services,Revenue
Walsall Council,http://opendatacommunities.org/id/metropolitan-district-council/walsall,WC78-177,31/03/2017,Childrens,ALMOZENE NURSERY & CHILDRENS CENTRE,16/03/2017,400.00,63120-CRECHE FACILITIES-SERVICES-FEES,BUDDY COSTS 0-5,Supplies & Services,Revenue
Walsall Council,http://opendatacommunities.org/id/metropolitan-district-council/walsall,WC78-178,31/03/2017,Childrens,ALMOZENE NURSERY & CHILDRENS CENTRE,10/03/2017,"3,769.92",66505-OTHER-GRANTS TO OTHER ORGS,EARLY YEARS - 3 YR OLDS,Third Party Payments,Revenue
Walsall Council,http://opendatacommunities.org/id/metropolitan-district-council/walsall,WC78-179,31/03/2017,Childrens,ALPHA HAIR DESIGN ACADEMY,20/03/2017,"1,650.00",60500-GENERAL MATERIALS,PUPIL REFERAL UNIT EXCLUSIONS,Supplies & Services,Revenue
Walsall Council,http://opendatacommunities.org/id/metropolitan-district-council/walsall,WC78-180,31/03/2017,Childrens,ALPHA HAIR DESIGN ACADEMY,20/03/2017,"2,200.00",60500-GENERAL MATERIALS,PUPIL REFERAL UNIT EXCLUSIONS,Supplies & Services,Revenue
Walsall Council,http://opendatacommunities.org/id/metropolitan-district-council/walsall,WC78-181,31/03/2017,Adult Social Care,ALPHA HEALTH CARE LTD,07/03/2017,"-10,182.85",73373-RESIDENTIAL & NURSING CARE PLACEMENTS,OP COMMISSIONING,Third Party Payments,Revenue
Walsall Council,http://opendatacommunities.org/id/metropolitan-district-council/walsall,WC78-182,31/03/2017,Adult Social Care,ALPHA HEALTH CARE LTD,15/03/2017,"-1,607.14",73373-RESIDENTIAL & NURSING CARE PLACEMENTS,OP COMMISSIONING,Third Party Payments,Revenue
Walsall Council,http://opendatacommunities.org/id/metropolitan-district-council/walsall,WC78-183,31/03/2017,Adult Social Care,ALPHA HEALTH CARE LTD,15/03/2017,"-1,285.71",73373-RESIDENTIAL & NURSING CARE PLACEMENTS,OP COMMISSIONING,Third Party Payments,Revenue
Walsall Council,http://opendatacommunities.org/id/metropolitan-district-council/walsall,WC78-184,31/03/2017,Adult Social Care,ALPHA HEALTH CARE LTD,15/03/2017,"1,677.85",73373-RESIDENTIAL & NURSING CARE PLACEMENTS,OP COMMISSIONING,Third Party Payments,Revenue
Walsall Council,http://opendatacommunities.org/id/metropolitan-district-council/walsall,WC78-185,31/03/2017,Adult Social Care,ALPHA HEALTH CARE LTD,15/03/2017,"1,677.85",73373-RESIDENTIAL & NURSING CARE PLACEMENTS,OP COMMISSIONING,Third Party Payments,Revenue
Walsall Council,http://opendatacommunities.org/id/metropolitan-district-council/walsall,WC78-186,31/03/2017,Adult Social Care,ALPHA HEALTH CARE LTD,15/03/2017,"1,677.86",73373-RESIDENTIAL & NURSING CARE PLACEMENTS,OP COMMISSIONING,Third Party Payments,Revenue
Walsall Council,http://opendatacommunities.org/id/metropolitan-district-council/walsall,WC78-187,31/03/2017,Adult Social Care,ALPHA HEALTH CARE LTD,15/03/2017,"1,708.72",73373-RESIDENTIAL & NURSING CARE PLACEMENTS,OP COMMISSIONING,Third Party Payments,Revenue
Walsall Council,http://opendatacommunities.org/id/metropolitan-district-council/walsall,WC78-188,31/03/2017,Adult Social Care,ALPHA HEALTH CARE LTD,15/03/2017,"1,708.72",73373-RESIDENTIAL & NURSING CARE PLACEMENTS,OP COMMISSIONING,Third Party Payments,Revenue
Walsall Council,http://opendatacommunities.org/id/metropolitan-district-council/walsall,WC78-189,31/03/2017,Adult Social Care,ALPHA HEALTH CARE LTD,15/03/2017,"1,708.72",73373-RESIDENTIAL & NURSING CARE PLACEMENTS,OP COMMISSIONING,Third Party Payments,Revenue
Walsall Council,http://opendatacommunities.org/id/metropolitan-district-council/walsall,WC78-190,31/03/2017,Adult Social Care,ALPHA HEALTH CARE LTD,15/03/2017,"1,708.72",73373-RESIDENTIAL & NURSING CARE PLACEMENTS,OP COMMISSIONING,Third Party Payments,Revenue
Walsall Council,http://opendatacommunities.org/id/metropolitan-district-council/walsall,WC78-191,31/03/2017,Adult Social Care,ALPHA HEALTH CARE LTD,15/03/2017,"1,708.72",73373-RESIDENTIAL & NURSING CARE PLACEMENTS,MH COMMISSIONING,Third Party Payments,Revenue
Walsall Council,http://opendatacommunities.org/id/metropolitan-district-council/walsall,WC78-192,31/03/2017,Adult Social Care,ALPHA HEALTH CARE LTD,15/03/2017,"1,708.72",73373-RESIDENTIAL & NURSING CARE PLACEMENTS,OP COMMISSIONING,Third Party Payments,Revenue
Walsall Council,http://opendatacommunities.org/id/metropolitan-district-council/walsall,WC78-193,31/03/2017,Adult Social Care,ALPHA HEALTH CARE LTD,15/03/2017,"1,708.72",73373-RESIDENTIAL & NURSING CARE PLACEMENTS,OP COMMISSIONING,Third Party Payments,Revenue
Walsall Council,http://opendatacommunities.org/id/metropolitan-district-council/walsall,WC78-194,31/03/2017,Adult Social Care,ALPHA HEALTH CARE LTD,15/03/2017,"1,708.72",73373-RESIDENTIAL & NURSING CARE PLACEMENTS,OP COMMISSIONING,Third Party Payments,Revenue
Walsall Council,http://opendatacommunities.org/id/metropolitan-district-council/walsall,WC78-195,31/03/2017,Adult Social Care,ALPHA HEALTH CARE LTD,15/03/2017,"1,708.72",73373-RESIDENTIAL & NURSING CARE PLACEMENTS,OP COMMISSIONING,Third Party Payments,Revenue
Walsall Council,http://opendatacommunities.org/id/metropolitan-district-council/walsall,WC78-196,31/03/2017,Adult Social Care,ALPHA HEALTH CARE LTD,15/03/2017,"1,708.72",73373-RESIDENTIAL & NURSING CARE PLACEMENTS,MH COMMISSIONING,Third Party Payments,Revenue
Walsall Council,http://opendatacommunities.org/id/metropolitan-district-council/walsall,WC78-197,31/03/2017,Adult Social Care,ALPHA HEALTH CARE LTD,15/03/2017,"1,708.73",73373-RESIDENTIAL & NURSING CARE PLACEMENTS,OP COMMISSIONING,Third Party Payments,Revenue
Walsall Council,http://opendatacommunities.org/id/metropolitan-district-council/walsall,WC78-198,31/03/2017,Adult Social Care,ALPHA HEALTH CARE LTD,15/03/2017,"1,864.28",73373-RESIDENTIAL & NURSING CARE PLACEMENTS,OP COMMISSIONING,Third Party Payments,Revenue
Walsall Council,http://opendatacommunities.org/id/metropolitan-district-council/walsall,WC78-199,31/03/2017,Adult Social Care,ALPHA HEALTH CARE LTD,07/03/2017,"2,095.00",73373-RESIDENTIAL & NURSING CARE PLACEMENTS,OP COMMISSIONING,Third Party Payments,Revenue
Walsall Council,http://opendatacommunities.org/id/metropolitan-district-council/walsall,WC78-200,31/03/2017,Adult Social Care,ALPHA HEALTH CARE LTD,07/03/2017,"2,095.00",73373-RESIDENTIAL & NURSING CARE PLACEMENTS,OP COMMISSIONING,Third Party Payments,Revenue
Walsall Council,http://opendatacommunities.org/id/metropolitan-district-council/walsall,WC78-201,31/03/2017,Adult Social Care,ALPHA HEALTH CARE LTD,15/03/2017,"2,169.82",73373-RESIDENTIAL & NURSING CARE PLACEMENTS,OP COMMISSIONING,Third Party Payments,Revenue
Walsall Council,http://opendatacommunities.org/id/metropolitan-district-council/walsall,WC78-202,31/03/2017,Adult Social Care,ALPHA HEALTH CARE LTD,15/03/2017,"2,169.82",73373-RESIDENTIAL & NURSING CARE PLACEMENTS,OP COMMISSIONING,Third Party Payments,Revenue
Walsall Council,http://opendatacommunities.org/id/metropolitan-district-council/walsall,WC78-203,31/03/2017,Adult Social Care,ALPHA HEALTH CARE LTD,15/03/2017,"2,252.68",73373-RESIDENTIAL & NURSING CARE PLACEMENTS,MH COMMISSIONING,Third Party Payments,Revenue
Walsall Council,http://opendatacommunities.org/id/metropolitan-district-council/walsall,WC78-204,31/03/2017,Adult Social Care,ALPHA HEALTH CARE LTD,15/03/2017,"2,409.07",73373-RESIDENTIAL & NURSING CARE PLACEMENTS,MH COMMISSIONING,Third Party Payments,Revenue
Walsall Council,http://opendatacommunities.org/id/metropolitan-district-council/walsall,WC78-205,31/03/2017,Adult Social Care,ALPHA HEALTH CARE LTD,15/03/2017,"2,966.58",73373-RESIDENTIAL & NURSING CARE PLACEMENTS,MH COMMISSIONING,Third Party Payments,Revenue
Walsall Council,http://opendatacommunities.org/id/metropolitan-district-council/walsall,WC78-206,31/03/2017,Adult Social Care,ALPHA HEALTH CARE LTD,15/03/2017,"3,166.43",73373-RESIDENTIAL & NURSING CARE PLACEMENTS,MH COMMISSIONING,Third Party Payments,Revenue
Walsall Council,http://opendatacommunities.org/id/metropolitan-district-council/walsall,WC78-207,31/03/2017,Adult Social Care,ALPHA HEALTH CARE LTD,15/03/2017,"6,007.14",73373-RESIDENTIAL & NURSING CARE PLACEMENTS,MH COMMISSIONING,Third Party Payments,Revenue
Walsall Council,http://opendatacommunities.org/id/metropolitan-district-council/walsall,WC78-208,31/03/2017,Adult Social Care,ALPHA HEALTH CARE LTD,15/03/2017,"6,007.14",73373-RESIDENTIAL & NURSING CARE PLACEMENTS,MH COMMISSIONING,Third Party Payments,Revenue
Walsall Council,http://opendatacommunities.org/id/metropolitan-district-council/walsall,WC78-209,31/03/2017,Adult Social Care,ALPHA HEALTH CARE LTD,07/03/2017,"13,168.57",73373-RESIDENTIAL & NURSING CARE PLACEMENTS,OP COMMISSIONING,Third Party Payments,Revenue
Walsall Council,http://opendatacommunities.org/id/metropolitan-district-council/walsall,WC78-210,31/03/2017,Economy & Environment,ALPHA SAM PPE RECYCLING LTD,02/03/2017,379.50,60514-MATERIALS TO STORES,FLEET PARTS STOCK ACCOUNT,Supplies & Services,Revenue
Walsall Council,http://opendatacommunities.org/id/metropolitan-district-council/walsall,WC78-211,31/03/2017,Childrens,ALPHABIOLABS,24/03/2017,240.00,73014-LEGAL FEES-PRIV CONTRACTOR FEES,GENERAL MANAGEMENT SUPPORT (INC LEGAL),Third Party Payments,Revenue
Walsall Council,http://opendatacommunities.org/id/metropolitan-district-council/walsall,WC78-212,31/03/2017,Childrens,ALPHABIOLABS,14/03/2017,340.00,63000-PROFESSIONAL FEES AND SERVICES,SAFEGUARDING & FAMILY SUPPORT,Supplies & Services,Revenue
Walsall Council,http://opendatacommunities.org/id/metropolitan-district-council/walsall,WC78-213,31/03/2017,Childrens,ALPHABIOLABS,09/03/2017,380.00,63000-PROFESSIONAL FEES AND SERVICES,SAFEGUARDING & FAMILY SUPPORT,Supplies & Services,Revenue
Walsall Council,http://opendatacommunities.org/id/metropolitan-district-council/walsall,WC78-214,31/03/2017,Economy & Environment,ALTODIGITAL NETWORKS LTD,24/03/2017,330.00,60009-LEASING/HIRE/RENTAL-EQUIPMENT,SCHOOL LIBRARY SUPPORT,Supplies & Services,Revenue
Walsall Council,http://opendatacommunities.org/id/metropolitan-district-council/walsall,WC78-215,31/03/2017,Childrens,AMAH NURSERIES LIMITED T/A BANANA MOON WALSALL,10/03/2017,807.84,66505-OTHER-GRANTS TO OTHER ORGS,EARLY YEARS - 3 YR OLDS,Third Party Payments,Revenue
Walsall Council,http://opendatacommunities.org/id/metropolitan-district-council/walsall,WC78-216,31/03/2017,Childrens,REDACTED,13/03/2017,808.04,74006-HOLIDAY/CHRISTMAS ALLOWANCE-FOSTER CARERS-OTH AGENCY PROVISION,INTERNAL FOSTER CARE PROVISION,Third Party Payments,Revenue
Walsall Council,http://opendatacommunities.org/id/metropolitan-district-council/walsall,WC78-217,31/03/2017,Childrens,REDACTED,27/03/2017,540.20,62515-MISCELLANEOUS SUPPLIES,INTERNAL FOSTER CARE PROVISION,Supplies & Services,Revenue
Walsall Council,http://opendatacommunities.org/id/metropolitan-district-council/walsall,WC78-218,31/03/2017,Childrens,REDACTED,01/03/2017,650.92,74006-HOLIDAY/CHRISTMAS ALLOWANCE-FOSTER CARERS-OTH AGENCY PROVISION,INTERNAL FOSTER CARE PROVISION,Third Party Payments,Revenue
Walsall Council,http://opendatacommunities.org/id/metropolitan-district-council/walsall,WC78-219,31/03/2017,Childrens,REDACTED,27/03/2017,650.92,74006-HOLIDAY/CHRISTMAS ALLOWANCE-FOSTER CARERS-OTH AGENCY PROVISION,INTERNAL FOSTER CARE PROVISION,Third Party Payments,Revenue
Walsall Council,http://opendatacommunities.org/id/metropolitan-district-council/walsall,WC78-220,31/03/2017,Childrens,REDACTED,13/03/2017,421.15,76422-DIRECT PAYMENTS TO SOCIAL SERVICES CLIENTS,FAMILY SUPPORT - DIRECT PAYMENTS,Transfer Payments,Revenue
Walsall Council,http://opendatacommunities.org/id/metropolitan-district-council/walsall,WC78-221,31/03/2017,Change and Governance,AMEY LG LIMITED,01/03/2017,-290.32,60008-MAINTENANCE-FURNITURE & EQUIPMENT,AREA PARTNERSHIPS,Supplies & Services,Revenue
Walsall Council,http://opendatacommunities.org/id/metropolitan-district-council/walsall,WC78-222,31/03/2017,Economy & Environment,AMEY LG LIMITED,20/03/2017,219.45,01009-SITE WORKS - OTHER CONTRACTORS,CFR 1147 WEDNESBURY RD (HILARY ST TO MILTON ST),Capital,Capital
Walsall Council,http://opendatacommunities.org/id/metropolitan-district-council/walsall,WC78-223,31/03/2017,Change and Governance,AMEY LG LIMITED,01/03/2017,290.32,60008-MAINTENANCE-FURNITURE & EQUIPMENT,AREA PARTNERSHIPS,Supplies & Services,Revenue
Walsall Council,http://opendatacommunities.org/id/metropolitan-district-council/walsall,WC78-224,31/03/2017,Economy & Environment,AMEY LG LIMITED,14/03/2017,440.41,73002-SECURITY-PRIV CONTRACTOR FEES,TRAFFIC CONTROL,Third Party Payments,Revenue
Walsall Council,http://opendatacommunities.org/id/metropolitan-district-council/walsall,WC78-225,31/03/2017,Economy & Environment,AMEY LG LIMITED,20/03/2017,"1,291.46",01006-SITE WORKS MAIN CONTRACTORS,CFR 1147 BIRMINGHAM RD INCL. JCT BROADWAY,Capital,Capital
Walsall Council,http://opendatacommunities.org/id/metropolitan-district-council/walsall,WC78-226,31/03/2017,Economy & Environment,AMEY LG LIMITED,20/03/2017,"1,505.56",01006-SITE WORKS MAIN CONTRACTORS,CFR 1147 BIRMINGHAM RD INCL. JCT BROADWAY,Capital,Capital
Walsall Council,http://opendatacommunities.org/id/metropolitan-district-council/walsall,WC78-227,31/03/2017,Economy & Environment,AMEY LG LIMITED,09/03/2017,"3,391.28",01006-SITE WORKS MAIN CONTRACTORS,CFR 1037 ACTIVE LIVING BLOXWICH (COUNCIL FUNDED),Capital,Capital
Walsall Council,http://opendatacommunities.org/id/metropolitan-district-council/walsall,WC78-228,31/03/2017,Economy & Environment,AMEY LG LIMITED,20/03/2017,"3,488.88",01006-SITE WORKS MAIN CONTRACTORS,CFR 1147 SAFER ROUTES TO SCHOOLS-BIRCHILLS,Capital,Capital
Walsall Council,http://opendatacommunities.org/id/metropolitan-district-council/walsall,WC78-229,31/03/2017,Economy & Environment,AMEY LG LIMITED,29/03/2017,"3,843.59",01009-SITE WORKS - OTHER CONTRACTORS,CFR 819 LTP-YORKS BRIDGE,Capital,Capital
Walsall Council,http://opendatacommunities.org/id/metropolitan-district-council/walsall,WC78-230,31/03/2017,Economy & Environment,AMEY LG LIMITED,24/03/2017,"5,125.58",01006-SITE WORKS MAIN CONTRACTORS,CFR 1147 HIGHWAY EFFICENCY MEASURES 2016/17,Capital,Capital
Walsall Council,http://opendatacommunities.org/id/metropolitan-district-council/walsall,WC78-231,31/03/2017,Economy & Environment,AMEY LG LIMITED,10/03/2017,"5,635.48",01006-SITE WORKS MAIN CONTRACTORS,CFR 1147 HIGHWAY EFFICENCY MEASURES 2016/17,Capital,Capital
Walsall Council,http://opendatacommunities.org/id/metropolitan-district-council/walsall,WC78-232,31/03/2017,Economy & Environment,AMEY LG LIMITED,20/03/2017,"5,902.28",01006-SITE WORKS MAIN CONTRACTORS,CFR 1147 SAFER ROUTES TO SCHOOLS-PHEASEY PARK FARM,Capital,Capital
Walsall Council,http://opendatacommunities.org/id/metropolitan-district-council/walsall,WC78-233,31/03/2017,Economy & Environment,AMEY LG LIMITED,17/03/2017,"7,731.36",42003-ELECTRICITY-ENERGY COSTS,TRAFFIC CONTROL,Premises,Revenue
Walsall Council,http://opendatacommunities.org/id/metropolitan-district-council/walsall,WC78-234,31/03/2017,Economy & Environment,AMEY LG LIMITED,14/03/2017,"9,931.13",01006-SITE WORKS MAIN CONTRACTORS,CFR 1072 TRANSPORTATION GROWTH DEAL ACCESSING GROWTH,Capital,Capital
Walsall Council,http://opendatacommunities.org/id/metropolitan-district-council/walsall,WC78-235,31/03/2017,Economy & Environment,AMEY LG LIMITED,22/03/2017,"10,083.65",73025-PROFESSIONAL SERVICES-PRIV CONTRACTOR & OTHER AGENCIES,TRAFFIC MANAGEMENT,Third Party Payments,Revenue
Walsall Council,http://opendatacommunities.org/id/metropolitan-district-council/walsall,WC78-236,31/03/2017,Economy & Environment,AMEY LG LIMITED,14/03/2017,"10,918.50",01006-SITE WORKS MAIN CONTRACTORS,CFR 1147 WEDNESBURY RD (HILARY ST TO MILTON ST),Capital,Capital
Walsall Council,http://opendatacommunities.org/id/metropolitan-district-council/walsall,WC78-237,31/03/2017,Economy & Environment,AMEY LG LIMITED,22/03/2017,"11,476.18",01006-SITE WORKS MAIN CONTRACTORS,CFR 1147 HIGHWAY EFFICENCY MEASURES 2016/17,Capital,Capital
Walsall Council,http://opendatacommunities.org/id/metropolitan-district-council/walsall,WC78-238,31/03/2017,Economy & Environment,AMEY LG LIMITED,14/03/2017,"11,710.88",01006-SITE WORKS MAIN CONTRACTORS,CFR 1147 SAFER ROUTES TO SCHOOLS-MOORCROFT WOOD,Capital,Capital
Walsall Council,http://opendatacommunities.org/id/metropolitan-district-council/walsall,WC78-239,31/03/2017,Economy & Environment,AMEY LG LIMITED,09/03/2017,"12,053.06",73025-PROFESSIONAL SERVICES-PRIV CONTRACTOR & OTHER AGENCIES,TRAFFIC MANAGEMENT,Third Party Payments,Revenue
Walsall Council,http://opendatacommunities.org/id/metropolitan-district-council/walsall,WC78-240,31/03/2017,Economy & Environment,AMEY LG LIMITED,15/03/2017,"16,968.72",71000-PAYMENTS FOR SERVICES FROM OTHER LOCAL AUTHORITIES,ROAD SAFETY & SUSTAINABLE TRAVEL,Third Party Payments,Revenue
Walsall Council,http://opendatacommunities.org/id/metropolitan-district-council/walsall,WC78-241,31/03/2017,Economy & Environment,AMEY LG LIMITED,21/03/2017,"19,862.25",01006-SITE WORKS MAIN CONTRACTORS,CFR 1147 HIGHWAY EFFICENCY MEASURES 2016/17,Capital,Capital
Walsall Council,http://opendatacommunities.org/id/metropolitan-district-council/walsall,WC78-242,31/03/2017,Economy & Environment,AMEY LG LIMITED,14/03/2017,"26,617.60",62515-MISCELLANEOUS SUPPLIES,VASS IMPLEMENTATION,Supplies & Services,Revenue
Walsall Council,http://opendatacommunities.org/id/metropolitan-district-council/walsall,WC78-243,31/03/2017,Childrens,AMG NURSING CARE SERVICES,15/03/2017,740.48,63000-PROFESSIONAL FEES AND SERVICES,DIRECTLY COMMISSIONED NURSING SERVICES,Supplies & Services,Revenue
Walsall Council,http://opendatacommunities.org/id/metropolitan-district-council/walsall,WC78-244,31/03/2017,Childrens,AMG NURSING CARE SERVICES,01/03/2017,"2,274.48",63000-PROFESSIONAL FEES AND SERVICES,DIRECTLY COMMISSIONED NURSING SERVICES,Supplies & Services,Revenue
Walsall Council,http://opendatacommunities.org/id/metropolitan-district-council/walsall,WC78-245,31/03/2017,Adult Social Care,AMG NURSING CARE SERVICES,30/03/2017,"10,655.89",73374-SUPPORTED & OTHER ACCOMMODATION,OP COMMISSIONING,Third Party Payments,Revenue
Walsall Council,http://opendatacommunities.org/id/metropolitan-district-council/walsall,WC78-246,31/03/2017,Adult Social Care,REDACTED,13/03/2017,"1,416.80",76422-DIRECT PAYMENTS TO SOCIAL SERVICES CLIENTS,OP COMMISSIONING,Transfer Payments,Revenue
Walsall Council,http://opendatacommunities.org/id/metropolitan-district-council/walsall,WC78-247,31/03/2017,Childrens,REDACTED,13/03/2017,925.92,74006-HOLIDAY/CHRISTMAS ALLOWANCE-FOSTER CARERS-OTH AGENCY PROVISION,INTERNAL FOSTER CARE PROVISION,Third Party Payments,Revenue
Walsall Council,http://opendatacommunities.org/id/metropolitan-district-council/walsall,WC78-248,31/03/2017,Childrens,REDACTED,13/03/2017,425.08,74006-HOLIDAY/CHRISTMAS ALLOWANCE-FOSTER CARERS-OTH AGENCY PROVISION,INTERNAL FOSTER CARE PROVISION,Third Party Payments,Revenue
Walsall Council,http://opendatacommunities.org/id/metropolitan-district-council/walsall,WC78-249,31/03/2017,Adult Social Care,REDACTED,13/03/2017,720.00,76422-DIRECT PAYMENTS TO SOCIAL SERVICES CLIENTS,OP COMMISSIONING,Transfer Payments,Revenue
Walsall Council,http://opendatacommunities.org/id/metropolitan-district-council/walsall,WC78-250,31/03/2017,Adult Social Care,ANCHOR,15/03/2017,"1,620.00",73373-RESIDENTIAL & NURSING CARE PLACEMENTS,OP COMMISSIONING,Third Party Payments,Revenue
Walsall Council,http://opendatacommunities.org/id/metropolitan-district-council/walsall,WC78-251,31/03/2017,Adult Social Care,ANCHOR,15/03/2017,"1,620.00",73373-RESIDENTIAL & NURSING CARE PLACEMENTS,OP COMMISSIONING,Third Party Payments,Revenue
Walsall Council,http://opendatacommunities.org/id/metropolitan-district-council/walsall,WC78-252,31/03/2017,Adult Social Care,ANCHOR,15/03/2017,"1,800.00",73373-RESIDENTIAL & NURSING CARE PLACEMENTS,OP COMMISSIONING,Third Party Payments,Revenue
Walsall Council,http://opendatacommunities.org/id/metropolitan-district-council/walsall,WC78-253,31/03/2017,Adult Social Care,ANCHOR,15/03/2017,"1,800.00",73373-RESIDENTIAL & NURSING CARE PLACEMENTS,MH COMMISSIONING,Third Party Payments,Revenue
Walsall Council,http://opendatacommunities.org/id/metropolitan-district-council/walsall,WC78-254,31/03/2017,Adult Social Care,ANCHOR,15/03/2017,"1,800.00",73373-RESIDENTIAL & NURSING CARE PLACEMENTS,OP COMMISSIONING,Third Party Payments,Revenue
Walsall Council,http://opendatacommunities.org/id/metropolitan-district-council/walsall,WC78-255,31/03/2017,Adult Social Care,ANCHOR,15/03/2017,"1,800.00",73373-RESIDENTIAL & NURSING CARE PLACEMENTS,OP COMMISSIONING,Third Party Payments,Revenue
Walsall Council,http://opendatacommunities.org/id/metropolitan-district-council/walsall,WC78-256,31/03/2017,Adult Social Care,ANCHOR,15/03/2017,"1,800.00",73373-RESIDENTIAL & NURSING CARE PLACEMENTS,OP COMMISSIONING,Third Party Payments,Revenue
Walsall Council,http://opendatacommunities.org/id/metropolitan-district-council/walsall,WC78-257,31/03/2017,Adult Social Care,ANCHOR,15/03/2017,"1,800.00",73373-RESIDENTIAL & NURSING CARE PLACEMENTS,OP COMMISSIONING,Third Party Payments,Revenue
Walsall Council,http://opendatacommunities.org/id/metropolitan-district-council/walsall,WC78-258,31/03/2017,Adult Social Care,ANCHOR,15/03/2017,"1,800.00",73373-RESIDENTIAL & NURSING CARE PLACEMENTS,OP COMMISSIONING,Third Party Payments,Revenue
Walsall Council,http://opendatacommunities.org/id/metropolitan-district-council/walsall,WC78-259,31/03/2017,Adult Social Care,ANCHOR,15/03/2017,"1,800.00",73373-RESIDENTIAL & NURSING CARE PLACEMENTS,OP COMMISSIONING,Third Party Payments,Revenue
Walsall Council,http://opendatacommunities.org/id/metropolitan-district-council/walsall,WC78-260,31/03/2017,Adult Social Care,ANCHOR,15/03/2017,"1,800.00",73373-RESIDENTIAL & NURSING CARE PLACEMENTS,OP COMMISSIONING,Third Party Payments,Revenue
Walsall Council,http://opendatacommunities.org/id/metropolitan-district-council/walsall,WC78-261,31/03/2017,Adult Social Care,ANCHOR,15/03/2017,"1,800.00",73373-RESIDENTIAL & NURSING CARE PLACEMENTS,OP COMMISSIONING,Third Party Payments,Revenue
Walsall Council,http://opendatacommunities.org/id/metropolitan-district-council/walsall,WC78-262,31/03/2017,Adult Social Care,ANCHOR,15/03/2017,"1,800.00",73373-RESIDENTIAL & NURSING CARE PLACEMENTS,OP COMMISSIONING,Third Party Payments,Revenue
Walsall Council,http://opendatacommunities.org/id/metropolitan-district-council/walsall,WC78-263,31/03/2017,Adult Social Care,ANCHOR,15/03/2017,"1,800.00",73373-RESIDENTIAL & NURSING CARE PLACEMENTS,OP COMMISSIONING,Third Party Payments,Revenue
Walsall Council,http://opendatacommunities.org/id/metropolitan-district-council/walsall,WC78-264,31/03/2017,Adult Social Care,ANCHOR,15/03/2017,"1,800.00",73373-RESIDENTIAL & NURSING CARE PLACEMENTS,OP COMMISSIONING,Third Party Payments,Revenue
Walsall Council,http://opendatacommunities.org/id/metropolitan-district-council/walsall,WC78-265,31/03/2017,Adult Social Care,ANCHOR,15/03/2017,"1,800.00",73373-RESIDENTIAL & NURSING CARE PLACEMENTS,OP COMMISSIONING,Third Party Payments,Revenue
Walsall Council,http://opendatacommunities.org/id/metropolitan-district-council/walsall,WC78-266,31/03/2017,Adult Social Care,ANCHOR,15/03/2017,"1,800.00",73373-RESIDENTIAL & NURSING CARE PLACEMENTS,MH COMMISSIONING,Third Party Payments,Revenue
Walsall Council,http://opendatacommunities.org/id/metropolitan-district-council/walsall,WC78-267,31/03/2017,Adult Social Care,ANCHOR,15/03/2017,"1,800.00",73373-RESIDENTIAL & NURSING CARE PLACEMENTS,OP COMMISSIONING,Third Party Payments,Revenue
Walsall Council,http://opendatacommunities.org/id/metropolitan-district-council/walsall,WC78-268,31/03/2017,Adult Social Care,ANCHOR,15/03/2017,"1,800.00",73373-RESIDENTIAL & NURSING CARE PLACEMENTS,OP COMMISSIONING,Third Party Payments,Revenue
Walsall Council,http://opendatacommunities.org/id/metropolitan-district-council/walsall,WC78-269,31/03/2017,Childrens,REDACTED,01/03/2017,810.32,74006-HOLIDAY/CHRISTMAS ALLOWANCE-FOSTER CARERS-OTH AGENCY PROVISION,INTERNAL FOSTER CARE PROVISION,Third Party Payments,Revenue
Walsall Council,http://opendatacommunities.org/id/metropolitan-district-council/walsall,WC78-270,31/03/2017,Childrens,REDACTED,27/03/2017,810.32,74006-HOLIDAY/CHRISTMAS ALLOWANCE-FOSTER CARERS-OTH AGENCY PROVISION,INTERNAL FOSTER CARE PROVISION,Third Party Payments,Revenue
Walsall Council,http://opendatacommunities.org/id/metropolitan-district-council/walsall,WC78-271,31/03/2017,Childrens,REDACTED,27/03/2017,"1,150.30",62515-MISCELLANEOUS SUPPLIES,INTERNAL FOSTER CARE PROVISION,Supplies & Services,Revenue
Walsall Council,http://opendatacommunities.org/id/metropolitan-district-council/walsall,WC78-272,31/03/2017,Adult Social Care,REDACTED,13/03/2017,472.50,76422-DIRECT PAYMENTS TO SOCIAL SERVICES CLIENTS,PD COMMISSIONING,Transfer Payments,Revenue
Walsall Council,http://opendatacommunities.org/id/metropolitan-district-council/walsall,WC78-273,31/03/2017,Childrens,REDACTED,13/03/2017,"1,237.68",74006-HOLIDAY/CHRISTMAS ALLOWANCE-FOSTER CARERS-OTH AGENCY PROVISION,INTERNAL FOSTER CARE PROVISION,Third Party Payments,Revenue
Walsall Council,http://opendatacommunities.org/id/metropolitan-district-council/walsall,WC78-274,31/03/2017,Childrens,REDACTED,13/03/2017,349.16,74006-HOLIDAY/CHRISTMAS ALLOWANCE-FOSTER CARERS-OTH AGENCY PROVISION,INTERNAL FOSTER CARE PROVISION,Third Party Payments,Revenue
Walsall Council,http://opendatacommunities.org/id/metropolitan-district-council/walsall,WC78-275,31/03/2017,Adult Social Care,REDACTED,13/03/2017,430.00,76422-DIRECT PAYMENTS TO SOCIAL SERVICES CLIENTS,LD COMMISSIONING,Transfer Payments,Revenue
Walsall Council,http://opendatacommunities.org/id/metropolitan-district-council/walsall,WC78-276,31/03/2017,Adult Social Care,REDACTED,09/03/2017,293.20,73374-SUPPORTED & OTHER ACCOMMODATION,LD COMMISSIONING,Third Party Payments,Revenue
Walsall Council,http://opendatacommunities.org/id/metropolitan-district-council/walsall,WC78-277,31/03/2017,Adult Social Care,ANSON COURT RESIDENTIAL HOME,07/03/2017,392.16,73373-RESIDENTIAL & NURSING CARE PLACEMENTS,OP COMMISSIONING,Third Party Payments,Revenue
Walsall Council,http://opendatacommunities.org/id/metropolitan-district-council/walsall,WC78-278,31/03/2017,Adult Social Care,ANSON COURT RESIDENTIAL HOME,15/03/2017,"1,864.28",73373-RESIDENTIAL & NURSING CARE PLACEMENTS,OP COMMISSIONING,Third Party Payments,Revenue
Walsall Council,http://opendatacommunities.org/id/metropolitan-district-council/walsall,WC78-279,31/03/2017,Adult Social Care,ANSON COURT RESIDENTIAL HOME,15/03/2017,"1,864.28",73373-RESIDENTIAL & NURSING CARE PLACEMENTS,OP COMMISSIONING,Third Party Payments,Revenue
Walsall Council,http://opendatacommunities.org/id/metropolitan-district-council/walsall,WC78-280,31/03/2017,Adult Social Care,ANSON COURT RESIDENTIAL HOME,15/03/2017,"1,864.28",73373-RESIDENTIAL & NURSING CARE PLACEMENTS,OP COMMISSIONING,Third Party Payments,Revenue
Walsall Council,http://opendatacommunities.org/id/metropolitan-district-council/walsall,WC78-281,31/03/2017,Adult Social Care,ANSON COURT RESIDENTIAL HOME,15/03/2017,"1,864.28",73373-RESIDENTIAL & NURSING CARE PLACEMENTS,MH COMMISSIONING,Third Party Payments,Revenue
Walsall Council,http://opendatacommunities.org/id/metropolitan-district-council/walsall,WC78-282,31/03/2017,Adult Social Care,ANSON COURT RESIDENTIAL HOME,15/03/2017,"1,864.28",73373-RESIDENTIAL & NURSING CARE PLACEMENTS,OP COMMISSIONING,Third Party Payments,Revenue
Walsall Council,http://opendatacommunities.org/id/metropolitan-district-council/walsall,WC78-283,31/03/2017,Adult Social Care,ANSON COURT RESIDENTIAL HOME,15/03/2017,"1,864.28",73373-RESIDENTIAL & NURSING CARE PLACEMENTS,OP COMMISSIONING,Third Party Payments,Revenue
Walsall Council,http://opendatacommunities.org/id/metropolitan-district-council/walsall,WC78-284,31/03/2017,Adult Social Care,ANSON COURT RESIDENTIAL HOME,15/03/2017,"1,864.28",73373-RESIDENTIAL & NURSING CARE PLACEMENTS,OP COMMISSIONING,Third Party Payments,Revenue
Walsall Council,http://opendatacommunities.org/id/metropolitan-district-council/walsall,WC78-285,31/03/2017,Adult Social Care,ANSON COURT RESIDENTIAL HOME,15/03/2017,"1,864.28",73373-RESIDENTIAL & NURSING CARE PLACEMENTS,OP COMMISSIONING,Third Party Payments,Revenue
Walsall Council,http://opendatacommunities.org/id/metropolitan-district-council/walsall,WC78-286,31/03/2017,Adult Social Care,ANSON COURT RESIDENTIAL HOME,15/03/2017,"1,864.28",73373-RESIDENTIAL & NURSING CARE PLACEMENTS,OP COMMISSIONING,Third Party Payments,Revenue
Walsall Council,http://opendatacommunities.org/id/metropolitan-district-council/walsall,WC78-287,31/03/2017,Adult Social Care,ANSON COURT RESIDENTIAL HOME,15/03/2017,"1,864.29",73373-RESIDENTIAL & NURSING CARE PLACEMENTS,OP COMMISSIONING,Third Party Payments,Revenue
Walsall Council,http://opendatacommunities.org/id/metropolitan-district-council/walsall,WC78-288,31/03/2017,Adult Social Care,ANSON COURT RESIDENTIAL HOME,15/03/2017,"1,864.29",73373-RESIDENTIAL & NURSING CARE PLACEMENTS,MH COMMISSIONING,Third Party Payments,Revenue
Walsall Council,http://opendatacommunities.org/id/metropolitan-district-council/walsall,WC78-289,31/03/2017,Adult Social Care,ANSON COURT RESIDENTIAL HOME,15/03/2017,"1,864.29",73373-RESIDENTIAL & NURSING CARE PLACEMENTS,OP COMMISSIONING,Third Party Payments,Revenue
Walsall Council,http://opendatacommunities.org/id/metropolitan-district-council/walsall,WC78-290,31/03/2017,Adult Social Care,ANSON COURT RESIDENTIAL HOME,15/03/2017,"1,864.29",73373-RESIDENTIAL & NURSING CARE PLACEMENTS,MH COMMISSIONING,Third Party Payments,Revenue
Walsall Council,http://opendatacommunities.org/id/metropolitan-district-council/walsall,WC78-291,31/03/2017,Adult Social Care,ANSON COURT RESIDENTIAL HOME,15/03/2017,"1,864.29",73373-RESIDENTIAL & NURSING CARE PLACEMENTS,OP COMMISSIONING,Third Party Payments,Revenue
Walsall Council,http://opendatacommunities.org/id/metropolitan-district-council/walsall,WC78-292,31/03/2017,Adult Social Care,ANSON COURT RESIDENTIAL HOME,15/03/2017,"1,864.29",73373-RESIDENTIAL & NURSING CARE PLACEMENTS,OP COMMISSIONING,Third Party Payments,Revenue
Walsall Council,http://opendatacommunities.org/id/metropolitan-district-council/walsall,WC78-293,31/03/2017,Adult Social Care,ANSON COURT RESIDENTIAL HOME,15/03/2017,"1,864.29",73373-RESIDENTIAL & NURSING CARE PLACEMENTS,MH COMMISSIONING,Third Party Payments,Revenue
Walsall Council,http://opendatacommunities.org/id/metropolitan-district-council/walsall,WC78-294,31/03/2017,Adult Social Care,ANSON COURT RESIDENTIAL HOME,15/03/2017,"1,864.29",73373-RESIDENTIAL & NURSING CARE PLACEMENTS,MH COMMISSIONING,Third Party Payments,Revenue
Walsall Council,http://opendatacommunities.org/id/metropolitan-district-council/walsall,WC78-295,31/03/2017,Adult Social Care,ANSON COURT RESIDENTIAL HOME,15/03/2017,"1,864.29",73373-RESIDENTIAL & NURSING CARE PLACEMENTS,OP COMMISSIONING,Third Party Payments,Revenue
Walsall Council,http://opendatacommunities.org/id/metropolitan-district-council/walsall,WC78-296,31/03/2017,Adult Social Care,ANSON COURT RESIDENTIAL HOME,15/03/2017,"1,864.29",73373-RESIDENTIAL & NURSING CARE PLACEMENTS,OP COMMISSIONING,Third Party Payments,Revenue
Walsall Council,http://opendatacommunities.org/id/metropolitan-district-council/walsall,WC78-297,31/03/2017,Adult Social Care,ANSON COURT RESIDENTIAL HOME,15/03/2017,"1,864.29",73373-RESIDENTIAL & NURSING CARE PLACEMENTS,OP COMMISSIONING,Third Party Payments,Revenue
Walsall Council,http://opendatacommunities.org/id/metropolitan-district-council/walsall,WC78-298,31/03/2017,Adult Social Care,ANSON COURT RESIDENTIAL HOME,15/03/2017,"1,864.29",73373-RESIDENTIAL & NURSING CARE PLACEMENTS,OP COMMISSIONING,Third Party Payments,Revenue
Walsall Council,http://opendatacommunities.org/id/metropolitan-district-council/walsall,WC78-299,31/03/2017,Adult Social Care,ANSON COURT RESIDENTIAL HOME,15/03/2017,"1,864.29",73373-RESIDENTIAL & NURSING CARE PLACEMENTS,OP COMMISSIONING,Third Party Payments,Revenue
Walsall Council,http://opendatacommunities.org/id/metropolitan-district-council/walsall,WC78-300,31/03/2017,Adult Social Care,ANSON COURT RESIDENTIAL HOME,15/03/2017,"1,947.14",73373-RESIDENTIAL & NURSING CARE PLACEMENTS,OP COMMISSIONING,Third Party Payments,Revenue
Walsall Council,http://opendatacommunities.org/id/metropolitan-district-council/walsall,WC78-301,31/03/2017,Adult Social Care,ANSON COURT RESIDENTIAL HOME,15/03/2017,"5,054.28",73373-RESIDENTIAL & NURSING CARE PLACEMENTS,MH COMMISSIONING,Third Party Payments,Revenue
Walsall Council,http://opendatacommunities.org/id/metropolitan-district-council/walsall,WC78-302,31/03/2017,Childrens,REDACTED,13/03/2017,669.32,74006-HOLIDAY/CHRISTMAS ALLOWANCE-FOSTER CARERS-OTH AGENCY PROVISION,INTERNAL FOSTER CARE PROVISION,Third Party Payments,Revenue
Walsall Council,http://opendatacommunities.org/id/metropolitan-district-council/walsall,WC78-303,31/03/2017,Childrens,REDACTED,13/03/2017,312.76,74006-HOLIDAY/CHRISTMAS ALLOWANCE-FOSTER CARERS-OTH AGENCY PROVISION,INTERNAL FOSTER CARE PROVISION,Third Party Payments,Revenue
Walsall Council,http://opendatacommunities.org/id/metropolitan-district-council/walsall,WC78-304,31/03/2017,Economy & Environment,APCOA PARKING SERVICES (UK) LTD,08/03/2017,"44,089.69",73025-PROFESSIONAL SERVICES-PRIV CONTRACTOR & OTHER AGENCIES,PARKING SERVICES OFF-STREET,Third Party Payments,Revenue
Walsall Council,http://opendatacommunities.org/id/metropolitan-district-council/walsall,WC78-305,31/03/2017,Adult Social Care,APNA HOUSE LTD,15/03/2017,"5,586.96",73373-RESIDENTIAL & NURSING CARE PLACEMENTS,LD COMMISSIONING,Third Party Payments,Revenue
Walsall Council,http://opendatacommunities.org/id/metropolitan-district-council/walsall,WC78-306,31/03/2017,Economy & Environment,AQUALYMPIC,01/03/2017,285.00,34305-AGENCY STAFF-EMPLOYEES,BLOXWICH LEISURE CENTRE,Employees,Revenue
Walsall Council,http://opendatacommunities.org/id/metropolitan-district-council/walsall,WC78-307,31/03/2017,Economy & Environment,AQUALYMPIC,22/03/2017,352.50,34305-AGENCY STAFF-EMPLOYEES,BLOXWICH LEISURE CENTRE,Employees,Revenue
Walsall Council,http://opendatacommunities.org/id/metropolitan-district-council/walsall,WC78-308,31/03/2017,Economy & Environment,AQUALYMPIC,06/03/2017,420.00,34305-AGENCY STAFF-EMPLOYEES,BLOXWICH LEISURE CENTRE,Employees,Revenue
Walsall Council,http://opendatacommunities.org/id/metropolitan-district-council/walsall,WC78-309,31/03/2017,Economy & Environment,AQUALYMPIC,01/03/2017,"1,072.50",34305-AGENCY STAFF-EMPLOYEES,OAK PARK,Employees,Revenue
Walsall Council,http://opendatacommunities.org/id/metropolitan-district-council/walsall,WC78-310,31/03/2017,Economy & Environment,AQUALYMPIC,01/03/2017,"1,507.50",34305-AGENCY STAFF-EMPLOYEES,OAK PARK,Employees,Revenue
Walsall Council,http://opendatacommunities.org/id/metropolitan-district-council/walsall,WC78-311,31/03/2017,Economy & Environment,AQUALYMPIC,14/03/2017,"1,732.50",34305-AGENCY STAFF-EMPLOYEES,OAK PARK,Employees,Revenue
Walsall Council,http://opendatacommunities.org/id/metropolitan-district-council/walsall,WC78-312,31/03/2017,Economy & Environment,AQUALYMPIC,14/03/2017,"2,242.50",34305-AGENCY STAFF-EMPLOYEES,OAK PARK,Employees,Revenue
Walsall Council,http://opendatacommunities.org/id/metropolitan-district-council/walsall,WC78-313,31/03/2017,Adult Social Care,ARBORETUM NURSING HOME.,22/03/2017,"1,137.40",73373-RESIDENTIAL & NURSING CARE PLACEMENTS,OP COMMISSIONING,Third Party Payments,Revenue
Walsall Council,http://opendatacommunities.org/id/metropolitan-district-council/walsall,WC78-314,31/03/2017,Adult Social Care,ARBORETUM NURSING HOME.,22/03/2017,"1,137.40",73373-RESIDENTIAL & NURSING CARE PLACEMENTS,OP COMMISSIONING,Third Party Payments,Revenue
Walsall Council,http://opendatacommunities.org/id/metropolitan-district-council/walsall,WC78-315,31/03/2017,Adult Social Care,ARBORETUM NURSING HOME.,22/03/2017,"2,274.80",73373-RESIDENTIAL & NURSING CARE PLACEMENTS,OP COMMISSIONING,Third Party Payments,Revenue
Walsall Council,http://opendatacommunities.org/id/metropolitan-district-council/walsall,WC78-316,31/03/2017,Adult Social Care,ARBORETUM NURSING HOME.,22/03/2017,"2,274.80",73373-RESIDENTIAL & NURSING CARE PLACEMENTS,OP COMMISSIONING,Third Party Payments,Revenue
Walsall Council,http://opendatacommunities.org/id/metropolitan-district-council/walsall,WC78-317,31/03/2017,Adult Social Care,ARBORETUM NURSING HOME.,07/03/2017,"2,429.14",73373-RESIDENTIAL & NURSING CARE PLACEMENTS,OP COMMISSIONING,Third Party Payments,Revenue
Walsall Council,http://opendatacommunities.org/id/metropolitan-district-council/walsall,WC78-318,31/03/2017,Adult Social Care,ARBORETUM NURSING HOME.,15/03/2017,"2,500.24",73373-RESIDENTIAL & NURSING CARE PLACEMENTS,OP COMMISSIONING,Third Party Payments,Revenue
Walsall Council,http://opendatacommunities.org/id/metropolitan-district-council/walsall,WC78-319,31/03/2017,Adult Social Care,ARBORETUM NURSING HOME.,15/03/2017,"2,607.10",73373-RESIDENTIAL & NURSING CARE PLACEMENTS,OP COMMISSIONING,Third Party Payments,Revenue
Walsall Council,http://opendatacommunities.org/id/metropolitan-district-council/walsall,WC78-320,31/03/2017,Adult Social Care,ARBORETUM NURSING HOME.,15/03/2017,"2,924.74",73373-RESIDENTIAL & NURSING CARE PLACEMENTS,OP COMMISSIONING,Third Party Payments,Revenue
Walsall Council,http://opendatacommunities.org/id/metropolitan-district-council/walsall,WC78-321,31/03/2017,Adult Social Care,ARBORETUM NURSING HOME.,22/03/2017,"2,924.74",73373-RESIDENTIAL & NURSING CARE PLACEMENTS,PD COMMISSIONING,Third Party Payments,Revenue
Walsall Council,http://opendatacommunities.org/id/metropolitan-district-council/walsall,WC78-322,31/03/2017,Adult Social Care,ARBORETUM NURSING HOME.,15/03/2017,"2,981.67",73373-RESIDENTIAL & NURSING CARE PLACEMENTS,OP COMMISSIONING,Third Party Payments,Revenue
Walsall Council,http://opendatacommunities.org/id/metropolitan-district-council/walsall,WC78-323,31/03/2017,Adult Social Care,ARBORETUM NURSING HOME.,15/03/2017,"2,982.65",73373-RESIDENTIAL & NURSING CARE PLACEMENTS,OP COMMISSIONING,Third Party Payments,Revenue
Walsall Council,http://opendatacommunities.org/id/metropolitan-district-council/walsall,WC78-324,31/03/2017,Adult Social Care,ARBORETUM NURSING HOME.,06/03/2017,"14,900.00",73019-PSE'S-PRIV CONTRACTOR FEES,TRANSITIONAL CARE SUPPORT TEAM,Third Party Payments,Revenue
Walsall Council,http://opendatacommunities.org/id/metropolitan-district-council/walsall,WC78-325,31/03/2017,Adult Social Care,ARBORETUM NURSING HOME.,27/03/2017,"14,900.00",73019-PSE'S-PRIV CONTRACTOR FEES,TRANSITIONAL CARE SUPPORT TEAM,Third Party Payments,Revenue
Walsall Council,http://opendatacommunities.org/id/metropolitan-district-council/walsall,WC78-326,31/03/2017,Economy & Environment,ARBURY WALSALL,21/03/2017,212.49,60500-GENERAL MATERIALS,FLEET,Supplies & Services,Revenue
Walsall Council,http://opendatacommunities.org/id/metropolitan-district-council/walsall,WC78-327,31/03/2017,Economy & Environment,ARBURY WALSALL,10/03/2017,556.17,60500-GENERAL MATERIALS,FLEET,Supplies & Services,Revenue
Walsall Council,http://opendatacommunities.org/id/metropolitan-district-council/walsall,WC78-328,31/03/2017,Economy & Environment,ARCADIS CONSULTING (UK) LIMITED,06/03/2017,"34,400.00",01001-OTHER CONSULTANTS FEES,CFR 1147 WALSALL TO WOLVERHAMPTON RAPID TRANSIT,Capital,Capital
Walsall Council,http://opendatacommunities.org/id/metropolitan-district-council/walsall,WC78-329,31/03/2017,Childrens,ARNFIELD CARE LIMITED,10/03/2017,"15,615.88",74036-EXTERNAL RESIDENTIAL CARE-OTH AGENCY PROVISION,INDEPENDENT RESIDENTIAL HOMES,Third Party Payments,Revenue
Walsall Council,http://opendatacommunities.org/id/metropolitan-district-council/walsall,WC78-330,31/03/2017,Childrens,ARNFIELD CARE LIMITED,13/03/2017,"17,289.01",74036-EXTERNAL RESIDENTIAL CARE-OTH AGENCY PROVISION,INDEPENDENT RESIDENTIAL HOMES,Third Party Payments,Revenue
Walsall Council,http://opendatacommunities.org/id/metropolitan-district-council/walsall,WC78-331,31/03/2017,Childrens,ARRIVA MIDLANDS LTD,27/03/2017,"1,101.00",52000-WITH DRIVER-HIRE OF VEHICLES,SCHOOL TRANSPORT,Transport,Revenue
Walsall Council,http://opendatacommunities.org/id/metropolitan-district-council/walsall,WC78-332,31/03/2017,Childrens,ARTHUR M GRIFFITHS & SON LTD,22/03/2017,"72,893.47",01006-SITE WORKS MAIN CONTRACTORS,CFR 929 KING CHARLES PRIMARY SIGNIFICANT ENLARGEMENT,Capital,Capital
Walsall Council,http://opendatacommunities.org/id/metropolitan-district-council/walsall,WC78-333,31/03/2017,Childrens,ARUNDALE PRIMARY SCHOOL,06/03/2017,"1,000.00",77300-ISB-FORMULA ALLOCATION,OUT OF BOROUGH SCHOOLS,Transfer Payments,Revenue
Walsall Council,http://opendatacommunities.org/id/metropolitan-district-council/walsall,WC78-334,31/03/2017,Change and Governance,ASCENDANT SOLUTIONS LTD,29/03/2017,"30,440.00",63114-OTHER FEES & LICENCES-SERVICES-FEES,REVENUES,Supplies & Services,Revenue
Walsall Council,http://opendatacommunities.org/id/metropolitan-district-council/walsall,WC78-335,31/03/2017,Adult Social Care,ASH GRANGE CARE HOME,22/03/2017,-355.04,73373-RESIDENTIAL & NURSING CARE PLACEMENTS,OP COMMISSIONING,Third Party Payments,Revenue
Walsall Council,http://opendatacommunities.org/id/metropolitan-district-council/walsall,WC78-336,31/03/2017,Adult Social Care,ASH GRANGE CARE HOME,28/03/2017,344.61,73373-RESIDENTIAL & NURSING CARE PLACEMENTS,OP COMMISSIONING,Third Party Payments,Revenue
Walsall Council,http://opendatacommunities.org/id/metropolitan-district-council/walsall,WC78-337,31/03/2017,Adult Social Care,ASH GRANGE CARE HOME,28/03/2017,551.37,73373-RESIDENTIAL & NURSING CARE PLACEMENTS,OP COMMISSIONING,Third Party Payments,Revenue
Walsall Council,http://opendatacommunities.org/id/metropolitan-district-council/walsall,WC78-338,31/03/2017,Adult Social Care,ASH GRANGE CARE HOME,28/03/2017,578.57,73373-RESIDENTIAL & NURSING CARE PLACEMENTS,OP COMMISSIONING,Third Party Payments,Revenue
Walsall Council,http://opendatacommunities.org/id/metropolitan-district-council/walsall,WC78-339,31/03/2017,Adult Social Care,ASH GRANGE CARE HOME,28/03/2017,578.57,73373-RESIDENTIAL & NURSING CARE PLACEMENTS,OP COMMISSIONING,Third Party Payments,Revenue
Walsall Council,http://opendatacommunities.org/id/metropolitan-district-council/walsall,WC78-340,31/03/2017,Adult Social Care,ASH GRANGE CARE HOME,28/03/2017,620.29,73373-RESIDENTIAL & NURSING CARE PLACEMENTS,OP COMMISSIONING,Third Party Payments,Revenue
Walsall Council,http://opendatacommunities.org/id/metropolitan-district-council/walsall,WC78-341,31/03/2017,Adult Social Care,ASH GRANGE CARE HOME,28/03/2017,665.50,73373-RESIDENTIAL & NURSING CARE PLACEMENTS,OP COMMISSIONING,Third Party Payments,Revenue
Walsall Council,http://opendatacommunities.org/id/metropolitan-district-council/walsall,WC78-342,31/03/2017,Adult Social Care,ASH GRANGE CARE HOME,28/03/2017,689.21,73373-RESIDENTIAL & NURSING CARE PLACEMENTS,OP COMMISSIONING,Third Party Payments,Revenue
Walsall Council,http://opendatacommunities.org/id/metropolitan-district-council/walsall,WC78-343,31/03/2017,Adult Social Care,ASH GRANGE CARE HOME,28/03/2017,812.43,73373-RESIDENTIAL & NURSING CARE PLACEMENTS,OP COMMISSIONING,Third Party Payments,Revenue
Walsall Council,http://opendatacommunities.org/id/metropolitan-district-council/walsall,WC78-344,31/03/2017,Adult Social Care,ASH GRANGE CARE HOME,28/03/2017,812.43,73373-RESIDENTIAL & NURSING CARE PLACEMENTS,OP COMMISSIONING,Third Party Payments,Revenue
Walsall Council,http://opendatacommunities.org/id/metropolitan-district-council/walsall,WC78-345,31/03/2017,Adult Social Care,ASH GRANGE CARE HOME,28/03/2017,817.28,73373-RESIDENTIAL & NURSING CARE PLACEMENTS,OP COMMISSIONING,Third Party Payments,Revenue
Walsall Council,http://opendatacommunities.org/id/metropolitan-district-council/walsall,WC78-346,31/03/2017,Adult Social Care,ASH GRANGE CARE HOME,28/03/2017,817.28,73373-RESIDENTIAL & NURSING CARE PLACEMENTS,OP COMMISSIONING,Third Party Payments,Revenue
Walsall Council,http://opendatacommunities.org/id/metropolitan-district-council/walsall,WC78-347,31/03/2017,Adult Social Care,ASH GRANGE CARE HOME,28/03/2017,817.28,73373-RESIDENTIAL & NURSING CARE PLACEMENTS,MH COMMISSIONING,Third Party Payments,Revenue
Walsall Council,http://opendatacommunities.org/id/metropolitan-district-council/walsall,WC78-348,31/03/2017,Adult Social Care,ASH GRANGE CARE HOME,28/03/2017,817.28,73373-RESIDENTIAL & NURSING CARE PLACEMENTS,OP COMMISSIONING,Third Party Payments,Revenue
Walsall Council,http://opendatacommunities.org/id/metropolitan-district-council/walsall,WC78-349,31/03/2017,Adult Social Care,ASH GRANGE CARE HOME,28/03/2017,817.29,73373-RESIDENTIAL & NURSING CARE PLACEMENTS,OP COMMISSIONING,Third Party Payments,Revenue
Walsall Council,http://opendatacommunities.org/id/metropolitan-district-council/walsall,WC78-350,31/03/2017,Adult Social Care,ASH GRANGE CARE HOME,28/03/2017,817.29,73373-RESIDENTIAL & NURSING CARE PLACEMENTS,OP COMMISSIONING,Third Party Payments,Revenue
Walsall Council,http://opendatacommunities.org/id/metropolitan-district-council/walsall,WC78-351,31/03/2017,Adult Social Care,ASH GRANGE CARE HOME,28/03/2017,817.29,73373-RESIDENTIAL & NURSING CARE PLACEMENTS,OP COMMISSIONING,Third Party Payments,Revenue
Walsall Council,http://opendatacommunities.org/id/metropolitan-district-council/walsall,WC78-352,31/03/2017,Adult Social Care,ASH GRANGE CARE HOME,28/03/2017,817.29,73373-RESIDENTIAL & NURSING CARE PLACEMENTS,OP COMMISSIONING,Third Party Payments,Revenue
Walsall Council,http://opendatacommunities.org/id/metropolitan-district-council/walsall,WC78-353,31/03/2017,Adult Social Care,ASH GRANGE CARE HOME,28/03/2017,817.29,73373-RESIDENTIAL & NURSING CARE PLACEMENTS,OP COMMISSIONING,Third Party Payments,Revenue
Walsall Council,http://opendatacommunities.org/id/metropolitan-district-council/walsall,WC78-354,31/03/2017,Adult Social Care,ASH GRANGE CARE HOME,28/03/2017,847.15,73373-RESIDENTIAL & NURSING CARE PLACEMENTS,OP COMMISSIONING,Third Party Payments,Revenue
Walsall Council,http://opendatacommunities.org/id/metropolitan-district-council/walsall,WC78-355,31/03/2017,Adult Social Care,ASH GRANGE CARE HOME,28/03/2017,888.71,73373-RESIDENTIAL & NURSING CARE PLACEMENTS,OP COMMISSIONING,Third Party Payments,Revenue
Walsall Council,http://opendatacommunities.org/id/metropolitan-district-council/walsall,WC78-356,31/03/2017,Adult Social Care,ASH GRANGE CARE HOME,28/03/2017,894.43,73373-RESIDENTIAL & NURSING CARE PLACEMENTS,MH COMMISSIONING,Third Party Payments,Revenue
Walsall Council,http://opendatacommunities.org/id/metropolitan-district-council/walsall,WC78-357,31/03/2017,Adult Social Care,ASH GRANGE CARE HOME,28/03/2017,"1,041.43",73373-RESIDENTIAL & NURSING CARE PLACEMENTS,OP COMMISSIONING,Third Party Payments,Revenue
Walsall Council,http://opendatacommunities.org/id/metropolitan-district-council/walsall,WC78-358,31/03/2017,Adult Social Care,ASH GRANGE CARE HOME,28/03/2017,"1,041.43",73373-RESIDENTIAL & NURSING CARE PLACEMENTS,OP COMMISSIONING,Third Party Payments,Revenue
Walsall Council,http://opendatacommunities.org/id/metropolitan-district-council/walsall,WC78-359,31/03/2017,Adult Social Care,ASH GRANGE CARE HOME,28/03/2017,"1,114.54",73373-RESIDENTIAL & NURSING CARE PLACEMENTS,PD COMMISSIONING,Third Party Payments,Revenue
Walsall Council,http://opendatacommunities.org/id/metropolitan-district-council/walsall,WC78-360,31/03/2017,Adult Social Care,ASH GRANGE CARE HOME,28/03/2017,"1,197.90",73373-RESIDENTIAL & NURSING CARE PLACEMENTS,OP COMMISSIONING,Third Party Payments,Revenue
Walsall Council,http://opendatacommunities.org/id/metropolitan-district-council/walsall,WC78-361,31/03/2017,Adult Social Care,ASH GRANGE CARE HOME,28/03/2017,"1,240.59",73373-RESIDENTIAL & NURSING CARE PLACEMENTS,OP COMMISSIONING,Third Party Payments,Revenue
Walsall Council,http://opendatacommunities.org/id/metropolitan-district-council/walsall,WC78-362,31/03/2017,Adult Social Care,ASH GRANGE CARE HOME,28/03/2017,"1,462.37",73373-RESIDENTIAL & NURSING CARE PLACEMENTS,OP COMMISSIONING,Third Party Payments,Revenue
Walsall Council,http://opendatacommunities.org/id/metropolitan-district-council/walsall,WC78-363,31/03/2017,Adult Social Care,ASH GRANGE CARE HOME,28/03/2017,"1,462.37",73373-RESIDENTIAL & NURSING CARE PLACEMENTS,OP COMMISSIONING,Third Party Payments,Revenue
Walsall Council,http://opendatacommunities.org/id/metropolitan-district-council/walsall,WC78-364,31/03/2017,Adult Social Care,ASH GRANGE CARE HOME,28/03/2017,"1,471.11",73373-RESIDENTIAL & NURSING CARE PLACEMENTS,OP COMMISSIONING,Third Party Payments,Revenue
Walsall Council,http://opendatacommunities.org/id/metropolitan-district-council/walsall,WC78-365,31/03/2017,Adult Social Care,ASH GRANGE CARE HOME,28/03/2017,"1,471.11",73373-RESIDENTIAL & NURSING CARE PLACEMENTS,OP COMMISSIONING,Third Party Payments,Revenue
Walsall Council,http://opendatacommunities.org/id/metropolitan-district-council/walsall,WC78-366,31/03/2017,Adult Social Care,ASH GRANGE CARE HOME,28/03/2017,"1,471.11",73373-RESIDENTIAL & NURSING CARE PLACEMENTS,OP COMMISSIONING,Third Party Payments,Revenue
Walsall Council,http://opendatacommunities.org/id/metropolitan-district-council/walsall,WC78-367,31/03/2017,Adult Social Care,ASH GRANGE CARE HOME,28/03/2017,"1,471.11",73373-RESIDENTIAL & NURSING CARE PLACEMENTS,OP COMMISSIONING,Third Party Payments,Revenue
Walsall Council,http://opendatacommunities.org/id/metropolitan-district-council/walsall,WC78-368,31/03/2017,Adult Social Care,ASH GRANGE CARE HOME,28/03/2017,"1,471.11",73373-RESIDENTIAL & NURSING CARE PLACEMENTS,OP COMMISSIONING,Third Party Payments,Revenue
Walsall Council,http://opendatacommunities.org/id/metropolitan-district-council/walsall,WC78-369,31/03/2017,Adult Social Care,ASH GRANGE CARE HOME,28/03/2017,"1,471.12",73373-RESIDENTIAL & NURSING CARE PLACEMENTS,OP COMMISSIONING,Third Party Payments,Revenue
Walsall Council,http://opendatacommunities.org/id/metropolitan-district-council/walsall,WC78-370,31/03/2017,Adult Social Care,ASH GRANGE CARE HOME,28/03/2017,"1,471.12",73373-RESIDENTIAL & NURSING CARE PLACEMENTS,OP COMMISSIONING,Third Party Payments,Revenue
Walsall Council,http://opendatacommunities.org/id/metropolitan-district-council/walsall,WC78-371,31/03/2017,Adult Social Care,ASH GRANGE CARE HOME,28/03/2017,"1,471.12",73373-RESIDENTIAL & NURSING CARE PLACEMENTS,MH COMMISSIONING,Third Party Payments,Revenue
Walsall Council,http://opendatacommunities.org/id/metropolitan-district-council/walsall,WC78-372,31/03/2017,Adult Social Care,ASH GRANGE CARE HOME,28/03/2017,"1,471.12",73373-RESIDENTIAL & NURSING CARE PLACEMENTS,OP COMMISSIONING,Third Party Payments,Revenue
Walsall Council,http://opendatacommunities.org/id/metropolitan-district-council/walsall,WC78-373,31/03/2017,Adult Social Care,ASH GRANGE CARE HOME,28/03/2017,"1,524.89",73373-RESIDENTIAL & NURSING CARE PLACEMENTS,OP COMMISSIONING,Third Party Payments,Revenue
Walsall Council,http://opendatacommunities.org/id/metropolitan-district-council/walsall,WC78-374,31/03/2017,Adult Social Care,ASH GRANGE CARE HOME,28/03/2017,"1,599.69",73373-RESIDENTIAL & NURSING CARE PLACEMENTS,OP COMMISSIONING,Third Party Payments,Revenue
Walsall Council,http://opendatacommunities.org/id/metropolitan-district-council/walsall,WC78-375,31/03/2017,Adult Social Care,ASH GRANGE CARE HOME,28/03/2017,"1,609.97",73373-RESIDENTIAL & NURSING CARE PLACEMENTS,MH COMMISSIONING,Third Party Payments,Revenue
Walsall Council,http://opendatacommunities.org/id/metropolitan-district-council/walsall,WC78-376,31/03/2017,Adult Social Care,ASH GRANGE CARE HOME,28/03/2017,"1,929.80",73373-RESIDENTIAL & NURSING CARE PLACEMENTS,OP COMMISSIONING,Third Party Payments,Revenue
Walsall Council,http://opendatacommunities.org/id/metropolitan-district-council/walsall,WC78-377,31/03/2017,Adult Social Care,ASH GRANGE CARE HOME,28/03/2017,"1,929.80",73373-RESIDENTIAL & NURSING CARE PLACEMENTS,OP COMMISSIONING,Third Party Payments,Revenue
Walsall Council,http://opendatacommunities.org/id/metropolitan-district-council/walsall,WC78-378,31/03/2017,Adult Social Care,ASH GRANGE CARE HOME,28/03/2017,"2,006.18",73373-RESIDENTIAL & NURSING CARE PLACEMENTS,PD COMMISSIONING,Third Party Payments,Revenue
Walsall Council,http://opendatacommunities.org/id/metropolitan-district-council/walsall,WC78-379,31/03/2017,Adult Social Care,ASHBOURNE LODGE,22/03/2017,"1,963.60",73373-RESIDENTIAL & NURSING CARE PLACEMENTS,OP COMMISSIONING,Third Party Payments,Revenue
Walsall Council,http://opendatacommunities.org/id/metropolitan-district-council/walsall,WC78-380,31/03/2017,Adult Social Care,ASHBOURNE LODGE,22/03/2017,"2,103.86",73373-RESIDENTIAL & NURSING CARE PLACEMENTS,OP COMMISSIONING,Third Party Payments,Revenue
Walsall Council,http://opendatacommunities.org/id/metropolitan-district-council/walsall,WC78-381,31/03/2017,Adult Social Care,ASHBOURNE LODGE,15/03/2017,"2,173.99",73373-RESIDENTIAL & NURSING CARE PLACEMENTS,OP COMMISSIONING,Third Party Payments,Revenue
Walsall Council,http://opendatacommunities.org/id/metropolitan-district-council/walsall,WC78-382,31/03/2017,Adult Social Care,REDACTED,13/03/2017,945.00,76422-DIRECT PAYMENTS TO SOCIAL SERVICES CLIENTS,PD COMMISSIONING,Transfer Payments,Revenue
Walsall Council,http://opendatacommunities.org/id/metropolitan-district-council/walsall,WC78-383,31/03/2017,Adult Social Care,REDACTED,07/03/2017,"3,249.50",76422-DIRECT PAYMENTS TO SOCIAL SERVICES CLIENTS,PD COMMISSIONING,Transfer Payments,Revenue
Walsall Council,http://opendatacommunities.org/id/metropolitan-district-council/walsall,WC78-384,31/03/2017,Childrens,ASPIRE RESIDENTIAL CARE HOME,15/03/2017,"2,429.32",74036-EXTERNAL RESIDENTIAL CARE-OTH AGENCY PROVISION,INDEPENDENT RESIDENTIAL HOMES,Third Party Payments,Revenue
Walsall Council,http://opendatacommunities.org/id/metropolitan-district-council/walsall,WC78-385,31/03/2017,Childrens,ASPIRE RESIDENTIAL CARE HOME,15/03/2017,"3,401.05",74036-EXTERNAL RESIDENTIAL CARE-OTH AGENCY PROVISION,INDEPENDENT RESIDENTIAL HOMES,Third Party Payments,Revenue
Walsall Council,http://opendatacommunities.org/id/metropolitan-district-council/walsall,WC78-386,31/03/2017,Childrens,ASPIRE RESIDENTIAL CARE HOME,15/03/2017,"3,401.05",74036-EXTERNAL RESIDENTIAL CARE-OTH AGENCY PROVISION,INDEPENDENT RESIDENTIAL HOMES,Third Party Payments,Revenue
Walsall Council,http://opendatacommunities.org/id/metropolitan-district-council/walsall,WC78-387,31/03/2017,Childrens,ASPIRE RESIDENTIAL CARE HOME,15/03/2017,"3,401.05",74036-EXTERNAL RESIDENTIAL CARE-OTH AGENCY PROVISION,INDEPENDENT RESIDENTIAL HOMES,Third Party Payments,Revenue
Walsall Council,http://opendatacommunities.org/id/metropolitan-district-council/walsall,WC78-388,31/03/2017,Childrens,ASPIRE RESIDENTIAL CARE HOME,27/03/2017,"3,401.05",74036-EXTERNAL RESIDENTIAL CARE-OTH AGENCY PROVISION,INDEPENDENT RESIDENTIAL HOMES,Third Party Payments,Revenue
Walsall Council,http://opendatacommunities.org/id/metropolitan-district-council/walsall,WC78-389,31/03/2017,Childrens,ASTON CHILDRENS CARE,13/03/2017,"9,999.92",74036-EXTERNAL RESIDENTIAL CARE-OTH AGENCY PROVISION,INDEPENDENT RESIDENTIAL HOMES,Third Party Payments,Revenue
Walsall Council,http://opendatacommunities.org/id/metropolitan-district-council/walsall,WC78-390,31/03/2017,Childrens,ASTON CHILDRENS CARE,13/03/2017,"11,071.34",74036-EXTERNAL RESIDENTIAL CARE-OTH AGENCY PROVISION,INDEPENDENT RESIDENTIAL HOMES,Third Party Payments,Revenue
Walsall Council,http://opendatacommunities.org/id/metropolitan-district-council/walsall,WC78-391,31/03/2017,Childrens,ASTON CHILDRENS CARE,15/03/2017,"11,071.34",74036-EXTERNAL RESIDENTIAL CARE-OTH AGENCY PROVISION,INDEPENDENT RESIDENTIAL HOMES,Third Party Payments,Revenue
Walsall Council,http://opendatacommunities.org/id/metropolitan-district-council/walsall,WC78-392,31/03/2017,Economy & Environment,ATHWAL NEWS LTD,15/03/2017,316.87,60501-LIBRARY BOOKS,LIBRARY STOCK AND PERFORMANCE,Supplies & Services,Revenue
Walsall Council,http://opendatacommunities.org/id/metropolitan-district-council/walsall,WC78-393,31/03/2017,Change and Governance,ATKINS HAZARDOUS SCENE RECOVERY LTD,06/03/2017,"3,675.60",01006-SITE WORKS MAIN CONTRACTORS,CFR 771 BACKLOG AIDS & ADAPTATIONS,Capital,Capital
Walsall Council,http://opendatacommunities.org/id/metropolitan-district-council/walsall,WC78-394,31/03/2017,Childrens,ATTACHMENT WORKS LTD,21/03/2017,"4,989.50",63000-PROFESSIONAL FEES AND SERVICES,ADOPTION TEAM,Supplies & Services,Revenue
Walsall Council,http://opendatacommunities.org/id/metropolitan-district-council/walsall,WC78-395,31/03/2017,Economy & Environment,AUDIENCE SYSTEMS LTD,15/03/2017,"1,042.80",63000-PROFESSIONAL FEES AND SERVICES,FOREST ARTS CENTRE,Supplies & Services,Revenue
Walsall Council,http://opendatacommunities.org/id/metropolitan-district-council/walsall,WC78-396,31/03/2017,Childrens,AUDLEY PRIMARY SCHOOL,01/03/2017,302.10,77300-ISB-FORMULA ALLOCATION,OUT OF BOROUGH SCHOOLS,Transfer Payments,Revenue
Walsall Council,http://opendatacommunities.org/id/metropolitan-district-council/walsall,WC78-397,31/03/2017,Childrens,AUDLEY PRIMARY SCHOOL,01/03/2017,"1,000.00",77300-ISB-FORMULA ALLOCATION,OUT OF BOROUGH SCHOOLS,Transfer Payments,Revenue
Walsall Council,http://opendatacommunities.org/id/metropolitan-district-council/walsall,WC78-398,31/03/2017,Economy & Environment,AUGEAN PLC,17/03/2017,144.29,73029-HAZARDOUS WASTE REMOVAL/DISPOSAL-PRIV CONTRACTOR FEES,WASTE DISPOSAL - RESIDUAL,Third Party Payments,Revenue
Walsall Council,http://opendatacommunities.org/id/metropolitan-district-council/walsall,WC78-399,31/03/2017,Economy & Environment,AUGEAN PLC,17/03/2017,281.90,73039-LANDFILL TAX-PRIV CONTRACTOR FEES,WASTE DISPOSAL - RESIDUAL,Third Party Payments,Revenue
Walsall Council,http://opendatacommunities.org/id/metropolitan-district-council/walsall,WC78-400,31/03/2017,Adult Social Care,AUTISM WEST MIDLANDS,07/03/2017,"6,755.24",73373-RESIDENTIAL & NURSING CARE PLACEMENTS,LD COMMISSIONING,Third Party Payments,Revenue
Walsall Council,http://opendatacommunities.org/id/metropolitan-district-council/walsall,WC78-401,31/03/2017,Adult Social Care,AUTISM WEST MIDLANDS 001,07/03/2017,"4,515.52",73373-RESIDENTIAL & NURSING CARE PLACEMENTS,LD COMMISSIONING,Third Party Payments,Revenue
Walsall Council,http://opendatacommunities.org/id/metropolitan-district-council/walsall,WC78-402,31/03/2017,Economy & Environment,AVIDITY TRAINING LIMITED,01/03/2017,"2,250.00",66500-GRANTS TO OTHER ORGS,RES-WALSALL WORKS,Third Party Payments,Revenue
Walsall Council,http://opendatacommunities.org/id/metropolitan-district-council/walsall,WC78-403,31/03/2017,Adult Social Care,REDACTED,13/03/2017,"1,236.30",76422-DIRECT PAYMENTS TO SOCIAL SERVICES CLIENTS,OP COMMISSIONING,Transfer Payments,Revenue
Walsall Council,http://opendatacommunities.org/id/metropolitan-district-council/walsall,WC78-404,31/03/2017,Childrens,AXCIS EDUCATION RECRUITMENT,01/03/2017,485.00,66502-TOP UP FUNDING -GRANTS TO SCHOOLS,INDEPENDENT PROVIDERS - SPECIAL & AP,Third Party Payments,Revenue
Walsall Council,http://opendatacommunities.org/id/metropolitan-district-council/walsall,WC78-405,31/03/2017,Childrens,AXCIS EDUCATION RECRUITMENT,01/03/2017,485.00,66502-TOP UP FUNDING -GRANTS TO SCHOOLS,INDEPENDENT PROVIDERS - SPECIAL & AP,Third Party Payments,Revenue
Walsall Council,http://opendatacommunities.org/id/metropolitan-district-council/walsall,WC78-406,31/03/2017,Childrens,AXCIS EDUCATION RECRUITMENT,20/03/2017,485.00,66502-TOP UP FUNDING -GRANTS TO SCHOOLS,INDEPENDENT PROVIDERS - SPECIAL & AP,Third Party Payments,Revenue
Walsall Council,http://opendatacommunities.org/id/metropolitan-district-council/walsall,WC78-407,31/03/2017,Economy & Environment,AXIELL LIMITED,20/03/2017,371.00,63000-PROFESSIONAL FEES AND SERVICES,LIBRARY DEVELOPMENT 1,Supplies & Services,Revenue
Walsall Council,http://opendatacommunities.org/id/metropolitan-district-council/walsall,WC78-408,31/03/2017,Economy & Environment,AXIOMATIC TECHNOLOGY LTD,20/03/2017,689.00,63000-PROFESSIONAL FEES AND SERVICES,FOREST ARTS CENTRE,Supplies & Services,Revenue
Walsall Council,http://opendatacommunities.org/id/metropolitan-district-council/walsall,WC78-409,31/03/2017,Childrens,REDACTED,13/03/2017,"1,605.00",76422-DIRECT PAYMENTS TO SOCIAL SERVICES CLIENTS,FAMILY SUPPORT - DIRECT PAYMENTS,Transfer Payments,Revenue
Walsall Council,http://opendatacommunities.org/id/metropolitan-district-council/walsall,WC78-410,31/03/2017,Adult Social Care,REDACTED,13/03/2017,"3,510.00",76422-DIRECT PAYMENTS TO SOCIAL SERVICES CLIENTS,LD COMMISSIONING,Transfer Payments,Revenue
Walsall Council,http://opendatacommunities.org/id/metropolitan-district-council/walsall,WC78-411,31/03/2017,Childrens,REDACTED,13/03/2017,"1,638.89",74006-HOLIDAY/CHRISTMAS ALLOWANCE-FOSTER CARERS-OTH AGENCY PROVISION,INTERNAL FOSTER CARE PROVISION,Third Party Payments,Revenue
Walsall Council,http://opendatacommunities.org/id/metropolitan-district-council/walsall,WC78-412,31/03/2017,Childrens,REDACTED,27/03/2017,367.41,62515-MISCELLANEOUS SUPPLIES,INTERNAL FOSTER CARE PROVISION,Supplies & Services,Revenue
Walsall Council,http://opendatacommunities.org/id/metropolitan-district-council/walsall,WC78-413,31/03/2017,Childrens,REDACTED,27/03/2017,492.88,74006-HOLIDAY/CHRISTMAS ALLOWANCE-FOSTER CARERS-OTH AGENCY PROVISION,INTERNAL FOSTER CARE PROVISION,Third Party Payments,Revenue
Walsall Council,http://opendatacommunities.org/id/metropolitan-district-council/walsall,WC78-414,31/03/2017,Childrens,REDACTED,01/03/2017,985.76,74006-HOLIDAY/CHRISTMAS ALLOWANCE-FOSTER CARERS-OTH AGENCY PROVISION,INTERNAL FOSTER CARE PROVISION,Third Party Payments,Revenue
Walsall Council,http://opendatacommunities.org/id/metropolitan-district-council/walsall,WC78-415,31/03/2017,Childrens,REDACTED,07/03/2017,464.00,76000-TRANSFER PAYMENTS - SOCIAL SERVICES CLIENTS,TRANSITION AND LEAVING CARE,Transfer Payments,Revenue
Walsall Council,http://opendatacommunities.org/id/metropolitan-district-council/walsall,WC78-416,31/03/2017,Childrens,REDACTED,14/03/2017,464.00,76000-TRANSFER PAYMENTS - SOCIAL SERVICES CLIENTS,TRANSITION AND LEAVING CARE,Transfer Payments,Revenue
Walsall Council,http://opendatacommunities.org/id/metropolitan-district-council/walsall,WC78-417,31/03/2017,Childrens,REDACTED,14/03/2017,464.00,76000-TRANSFER PAYMENTS - SOCIAL SERVICES CLIENTS,TRANSITION AND LEAVING CARE,Transfer Payments,Revenue
Walsall Council,http://opendatacommunities.org/id/metropolitan-district-council/walsall,WC78-418,31/03/2017,Childrens,REDACTED,28/03/2017,464.00,76000-TRANSFER PAYMENTS - SOCIAL SERVICES CLIENTS,TRANSITION AND LEAVING CARE,Transfer Payments,Revenue
Walsall Council,http://opendatacommunities.org/id/metropolitan-district-council/walsall,WC78-419,31/03/2017,Childrens,REDACTED,28/03/2017,464.00,76000-TRANSFER PAYMENTS - SOCIAL SERVICES CLIENTS,TRANSITION AND LEAVING CARE,Transfer Payments,Revenue
Walsall Council,http://opendatacommunities.org/id/metropolitan-district-council/walsall,WC78-420,31/03/2017,Adult Social Care,BAART HARRIES NEWALL,09/03/2017,"1,350.00",01006-SITE WORKS MAIN CONTRACTORS,CFR 772 SUPPORTING INDEPENDENCE,Capital,Capital
Walsall Council,http://opendatacommunities.org/id/metropolitan-district-council/walsall,WC78-421,31/03/2017,Childrens,BACK CARE SOLUTIONS LTD,22/03/2017,530.00,60006-NEW-FURNITURE & EQUIPMENT,CHILDREN'S ADMIN,Supplies & Services,Revenue
Walsall Council,http://opendatacommunities.org/id/metropolitan-district-council/walsall,WC78-422,31/03/2017,Change and Governance,BADENOCH & CLARK 002,08/03/2017,"4,655.00",34305-AGENCY STAFF-EMPLOYEES,CORPORATE MANAGEMENT TEAM,Employees,Revenue
Walsall Council,http://opendatacommunities.org/id/metropolitan-district-council/walsall,WC78-423,31/03/2017,Change and Governance,BADENOCH & CLARK 002,16/03/2017,"4,655.00",34305-AGENCY STAFF-EMPLOYEES,CORPORATE MANAGEMENT TEAM,Employees,Revenue
Walsall Council,http://opendatacommunities.org/id/metropolitan-district-council/walsall,WC78-424,31/03/2017,Change and Governance,BADENOCH & CLARK 002,16/03/2017,"4,655.00",34305-AGENCY STAFF-EMPLOYEES,CORPORATE MANAGEMENT TEAM,Employees,Revenue
Walsall Council,http://opendatacommunities.org/id/metropolitan-district-council/walsall,WC78-425,31/03/2017,Economy & Environment,BAHIA PROPERTIES,07/03/2017,687.50,43000-RENTS,WILLENHALL MARKET,Premises,Revenue
Walsall Council,http://opendatacommunities.org/id/metropolitan-district-council/walsall,WC78-426,31/03/2017,Economy & Environment,BAKER HALL PARTNERSHIP,10/03/2017,731.50,63000-PROFESSIONAL FEES AND SERVICES,BUILDING CONTROL REVENUE FUNDED,Supplies & Services,Revenue
Walsall Council,http://opendatacommunities.org/id/metropolitan-district-council/walsall,WC78-427,31/03/2017,Adult Social Care,REDACTED,13/03/2017,600.00,76422-DIRECT PAYMENTS TO SOCIAL SERVICES CLIENTS,MH COMMISSIONING,Transfer Payments,Revenue
Walsall Council,http://opendatacommunities.org/id/metropolitan-district-council/walsall,WC78-428,31/03/2017,Adult Social Care,REDACTED,13/03/2017,"3,562.40",76422-DIRECT PAYMENTS TO SOCIAL SERVICES CLIENTS,LD COMMISSIONING,Transfer Payments,Revenue
Walsall Council,http://opendatacommunities.org/id/metropolitan-district-council/walsall,WC78-429,31/03/2017,Leasing,BALMERS GM LTD,24/03/2017,"19,400.00",01018-VEHICLES LEASING,VEHICLE MAINTENANCE VEHICLES,Capital,Capital
Walsall Council,http://opendatacommunities.org/id/metropolitan-district-council/walsall,WC78-430,31/03/2017,Adult Social Care,REDACTED,13/03/2017,"1,000.00",76422-DIRECT PAYMENTS TO SOCIAL SERVICES CLIENTS,OP COMMISSIONING,Transfer Payments,Revenue
Walsall Council,http://opendatacommunities.org/id/metropolitan-district-council/walsall,WC78-431,31/03/2017,Adult Social Care,REDACTED,13/03/2017,"1,978.58",76422-DIRECT PAYMENTS TO SOCIAL SERVICES CLIENTS,OP COMMISSIONING,Transfer Payments,Revenue
Walsall Council,http://opendatacommunities.org/id/metropolitan-district-council/walsall,WC78-432,31/03/2017,Childrens,REDACTED,13/03/2017,"1,338.24",74006-HOLIDAY/CHRISTMAS ALLOWANCE-FOSTER CARERS-OTH AGENCY PROVISION,INTERNAL FOSTER CARE PROVISION,Third Party Payments,Revenue
Walsall Council,http://opendatacommunities.org/id/metropolitan-district-council/walsall,WC78-433,31/03/2017,Adult Social Care,REDACTED,13/03/2017,"1,062.05",76422-DIRECT PAYMENTS TO SOCIAL SERVICES CLIENTS,OP COMMISSIONING,Transfer Payments,Revenue
Walsall Council,http://opendatacommunities.org/id/metropolitan-district-council/walsall,WC78-434,31/03/2017,Childrens,BARNARDOS SERVICES LTD,16/03/2017,"2,169.00",63000-PROFESSIONAL FEES AND SERVICES,GENERAL MANAGEMENT SUPPORT (INC LEGAL),Supplies & Services,Revenue
Walsall Council,http://opendatacommunities.org/id/metropolitan-district-council/walsall,WC78-435,31/03/2017,Childrens,BARNARDOS SERVICES LTD,16/03/2017,"4,884.00",63000-PROFESSIONAL FEES AND SERVICES,DIRECTLY COMMISSIONED NURSING SERVICES,Supplies & Services,Revenue
Walsall Council,http://opendatacommunities.org/id/metropolitan-district-council/walsall,WC78-436,31/03/2017,Childrens,BARR BEACON SCHOOL TRUST,20/03/2017,307.00,77300-ISB-FORMULA ALLOCATION,BARR BEACON SCHOOL TRUST (ACADEMY),Transfer Payments,Revenue
Walsall Council,http://opendatacommunities.org/id/metropolitan-district-council/walsall,WC78-437,31/03/2017,Childrens,BARR BEACON SCHOOL TRUST,10/03/2017,"1,125.00",77300-ISB-FORMULA ALLOCATION,BARR BEACON SCHOOL TRUST (ACADEMY),Transfer Payments,Revenue
Walsall Council,http://opendatacommunities.org/id/metropolitan-district-council/walsall,WC78-438,31/03/2017,Childrens,BARR BEACON SCHOOL TRUST,01/03/2017,"1,160.00",77300-ISB-FORMULA ALLOCATION,BARR BEACON SCHOOL TRUST (ACADEMY),Transfer Payments,Revenue
Walsall Council,http://opendatacommunities.org/id/metropolitan-district-council/walsall,WC78-439,31/03/2017,Childrens,BARR BEACON SCHOOL TRUST,30/03/2017,"3,784.62",66502-TOP UP FUNDING -GRANTS TO SCHOOLS,BARR BEACON SCHOOL TRUST (ACADEMY),Third Party Payments,Revenue
Walsall Council,http://opendatacommunities.org/id/metropolitan-district-council/walsall,WC78-440,31/03/2017,Economy & Environment,BASEMAP LTD,20/03/2017,"1,100.00",30030-EXTERNAL TRAINING,PUBLIC HEALTH BUSINESS SUPPORT,Employees,Revenue
Walsall Council,http://opendatacommunities.org/id/metropolitan-district-council/walsall,WC78-441,31/03/2017,Adult Social Care,REDACTED,13/03/2017,613.00,76422-DIRECT PAYMENTS TO SOCIAL SERVICES CLIENTS,OP COMMISSIONING,Transfer Payments,Revenue
Walsall Council,http://opendatacommunities.org/id/metropolitan-district-council/walsall,WC78-442,31/03/2017,Economy & Environment,BAT FABRICATIONS LTD,02/03/2017,730.00,60500-GENERAL MATERIALS,INFRASTRUCTURE MAINTENANCE,Supplies & Services,Revenue
Walsall Council,http://opendatacommunities.org/id/metropolitan-district-council/walsall,WC78-443,31/03/2017,Economy & Environment,BAT FABRICATIONS LTD,06/03/2017,"4,000.00",60500-GENERAL MATERIALS,GREEN SPACE MANAGEMENT,Supplies & Services,Revenue
Walsall Council,http://opendatacommunities.org/id/metropolitan-district-council/walsall,WC78-444,31/03/2017,Economy & Environment,BAT FABRICATIONS LTD,02/03/2017,"5,400.00",60500-GENERAL MATERIALS,GREEN SPACE MANAGEMENT,Supplies & Services,Revenue
Walsall Council,http://opendatacommunities.org/id/metropolitan-district-council/walsall,WC78-445,31/03/2017,Economy & Environment,BAUER CORPORATE SERVICES - BAUER RADIO LTD,14/03/2017,"1,135.00",62523-EVENTS,BONFIRES,Supplies & Services,Revenue
Walsall Council,http://opendatacommunities.org/id/metropolitan-district-council/walsall,WC78-446,31/03/2017,Economy & Environment,BAUER CORPORATE SERVICES - BAUER RADIO LTD,14/03/2017,"5,465.00",62523-EVENTS,BONFIRES,Supplies & Services,Revenue
Walsall Council,http://opendatacommunities.org/id/metropolitan-district-council/walsall,WC78-447,31/03/2017,Childrens,BEACON PRIMARY,27/03/2017,280.00,77000-TRANSFER PAYMENTS-MANDATORY AWARDS,WEST LOCALITY - SCHOOL READY,Transfer Payments,Revenue
Walsall Council,http://opendatacommunities.org/id/metropolitan-district-council/walsall,WC78-448,31/03/2017,Childrens,REDACTED,01/03/2017,278.97,74006-HOLIDAY/CHRISTMAS ALLOWANCE-FOSTER CARERS-OTH AGENCY PROVISION,INTERNAL FOSTER CARE PROVISION,Third Party Payments,Revenue
Walsall Council,http://opendatacommunities.org/id/metropolitan-district-council/walsall,WC78-449,31/03/2017,Childrens,REDACTED,27/03/2017,960.12,62515-MISCELLANEOUS SUPPLIES,INTERNAL FOSTER CARE PROVISION,Supplies & Services,Revenue
Walsall Council,http://opendatacommunities.org/id/metropolitan-district-council/walsall,WC78-450,31/03/2017,Adult Social Care,BEARWOOD NURSING HOME LTD,15/03/2017,"1,649.80",73373-RESIDENTIAL & NURSING CARE PLACEMENTS,OP COMMISSIONING,Third Party Payments,Revenue
Walsall Council,http://opendatacommunities.org/id/metropolitan-district-council/walsall,WC78-451,31/03/2017,Childrens,REDACTED,01/03/2017,571.44,74006-HOLIDAY/CHRISTMAS ALLOWANCE-FOSTER CARERS-OTH AGENCY PROVISION,INTERNAL FOSTER CARE PROVISION,Third Party Payments,Revenue
Walsall Council,http://opendatacommunities.org/id/metropolitan-district-council/walsall,WC78-452,31/03/2017,Childrens,REDACTED,27/03/2017,571.44,74006-HOLIDAY/CHRISTMAS ALLOWANCE-FOSTER CARERS-OTH AGENCY PROVISION,INTERNAL FOSTER CARE PROVISION,Third Party Payments,Revenue
Walsall Council,http://opendatacommunities.org/id/metropolitan-district-council/walsall,WC78-453,31/03/2017,Childrens,REDACTED,27/03/2017,738.72,62515-MISCELLANEOUS SUPPLIES,INTERNAL FOSTER CARE PROVISION,Supplies & Services,Revenue
Walsall Council,http://opendatacommunities.org/id/metropolitan-district-council/walsall,WC78-454,31/03/2017,Adult Social Care,BELVIDERE COURT,22/03/2017,"1,826.56",73373-RESIDENTIAL & NURSING CARE PLACEMENTS,OP COMMISSIONING,Third Party Payments,Revenue
Walsall Council,http://opendatacommunities.org/id/metropolitan-district-council/walsall,WC78-455,31/03/2017,Adult Social Care,BELVIDERE COURT,22/03/2017,"1,826.56",73373-RESIDENTIAL & NURSING CARE PLACEMENTS,OP COMMISSIONING,Third Party Payments,Revenue
Walsall Council,http://opendatacommunities.org/id/metropolitan-district-council/walsall,WC78-456,31/03/2017,Adult Social Care,BELVIDERE COURT,22/03/2017,"1,886.26",73373-RESIDENTIAL & NURSING CARE PLACEMENTS,MH COMMISSIONING,Third Party Payments,Revenue
Walsall Council,http://opendatacommunities.org/id/metropolitan-district-council/walsall,WC78-457,31/03/2017,Adult Social Care,BELVIDERE COURT,22/03/2017,"3,764.29",73373-RESIDENTIAL & NURSING CARE PLACEMENTS,MH COMMISSIONING,Third Party Payments,Revenue
Walsall Council,http://opendatacommunities.org/id/metropolitan-district-council/walsall,WC78-458,31/03/2017,Economy & Environment,BEMROSEBOOTH LTD,23/03/2017,696.00,73025-PROFESSIONAL SERVICES-PRIV CONTRACTOR & OTHER AGENCIES,PARKING SERVICES OFF-STREET,Third Party Payments,Revenue
Walsall Council,http://opendatacommunities.org/id/metropolitan-district-council/walsall,WC78-459,31/03/2017,Childrens,BEMROSEBOOTH LTD,13/03/2017,"1,600.00",68001-PUBLICITY & ADVERTISING (NOT STAFF ADVERTISING),INTERNAL FOSTER CARE PROVISION,Supplies & Services,Revenue
Walsall Council,http://opendatacommunities.org/id/metropolitan-district-council/walsall,WC78-460,31/03/2017,Adult Social Care,REDACTED,13/03/2017,"2,887.50",76422-DIRECT PAYMENTS TO SOCIAL SERVICES CLIENTS,LD COMMISSIONING,Transfer Payments,Revenue
Walsall Council,http://opendatacommunities.org/id/metropolitan-district-council/walsall,WC78-461,31/03/2017,Economy & Environment,REDACTED,14/03/2017,378.00,63000-PROFESSIONAL FEES AND SERVICES,EDUCATION INFORMAL,Supplies & Services,Revenue
Walsall Council,http://opendatacommunities.org/id/metropolitan-district-council/walsall,WC78-462,31/03/2017,Adult Social Care,BENTLEY COURT PRIORY,07/03/2017,-379.46,73373-RESIDENTIAL & NURSING CARE PLACEMENTS,MH COMMISSIONING,Third Party Payments,Revenue
Walsall Council,http://opendatacommunities.org/id/metropolitan-district-council/walsall,WC78-463,31/03/2017,Adult Social Care,BENTLEY COURT PRIORY,07/03/2017,-334.82,73373-RESIDENTIAL & NURSING CARE PLACEMENTS,MH COMMISSIONING,Third Party Payments,Revenue
Walsall Council,http://opendatacommunities.org/id/metropolitan-district-council/walsall,WC78-464,31/03/2017,Adult Social Care,BENTLEY COURT PRIORY,07/03/2017,"1,796.20",73373-RESIDENTIAL & NURSING CARE PLACEMENTS,OP COMMISSIONING,Third Party Payments,Revenue
Walsall Council,http://opendatacommunities.org/id/metropolitan-district-council/walsall,WC78-465,31/03/2017,Adult Social Care,BENTLEY COURT PRIORY,07/03/2017,"1,870.56",73373-RESIDENTIAL & NURSING CARE PLACEMENTS,OP COMMISSIONING,Third Party Payments,Revenue
Walsall Council,http://opendatacommunities.org/id/metropolitan-district-council/walsall,WC78-466,31/03/2017,Adult Social Care,BENTLEY COURT PRIORY,07/03/2017,"1,905.12",73373-RESIDENTIAL & NURSING CARE PLACEMENTS,OP COMMISSIONING,Third Party Payments,Revenue
Walsall Council,http://opendatacommunities.org/id/metropolitan-district-council/walsall,WC78-467,31/03/2017,Adult Social Care,BENTLEY COURT PRIORY,28/03/2017,"2,049.80",73373-RESIDENTIAL & NURSING CARE PLACEMENTS,OP COMMISSIONING,Third Party Payments,Revenue
Walsall Council,http://opendatacommunities.org/id/metropolitan-district-council/walsall,WC78-468,31/03/2017,Holding Accounts,BERRYMANS LACE MAWER LLP,16/03/2017,662.40,67001-MISC INSURANCES - PAYMENT OF CLAIMS,PUBLIC LIABILITY,Supplies & Services,Revenue
Walsall Council,http://opendatacommunities.org/id/metropolitan-district-council/walsall,WC78-469,31/03/2017,Holding Accounts,BERRYMANS LACE MAWER LLP,16/03/2017,897.00,67001-MISC INSURANCES - PAYMENT OF CLAIMS,PUBLIC LIABILITY,Supplies & Services,Revenue
Walsall Council,http://opendatacommunities.org/id/metropolitan-district-council/walsall,WC78-470,31/03/2017,Holding Accounts,BERRYMANS LACE MAWER LLP,01/03/2017,"1,840.00",67001-MISC INSURANCES - PAYMENT OF CLAIMS,PUBLIC LIABILITY,Supplies & Services,Revenue
Walsall Council,http://opendatacommunities.org/id/metropolitan-district-council/walsall,WC78-471,31/03/2017,Adult Social Care,REDACTED,13/03/2017,"1,140.00",76422-DIRECT PAYMENTS TO SOCIAL SERVICES CLIENTS,OP COMMISSIONING,Transfer Payments,Revenue
Walsall Council,http://opendatacommunities.org/id/metropolitan-district-council/walsall,WC78-472,31/03/2017,Childrens,REDACTED,01/03/2017,"1,142.88",74006-HOLIDAY/CHRISTMAS ALLOWANCE-FOSTER CARERS-OTH AGENCY PROVISION,INTERNAL FOSTER CARE PROVISION,Third Party Payments,Revenue
Walsall Council,http://opendatacommunities.org/id/metropolitan-district-council/walsall,WC78-473,31/03/2017,Childrens,REDACTED,27/03/2017,"1,142.88",74006-HOLIDAY/CHRISTMAS ALLOWANCE-FOSTER CARERS-OTH AGENCY PROVISION,INTERNAL FOSTER CARE PROVISION,Third Party Payments,Revenue
Walsall Council,http://opendatacommunities.org/id/metropolitan-district-council/walsall,WC78-474,31/03/2017,Childrens,REDACTED,27/03/2017,"1,445.32",62515-MISCELLANEOUS SUPPLIES,INTERNAL FOSTER CARE PROVISION,Supplies & Services,Revenue
Walsall Council,http://opendatacommunities.org/id/metropolitan-district-council/walsall,WC78-475,31/03/2017,Adult Social Care,REDACTED,13/03/2017,"1,210.00",76422-DIRECT PAYMENTS TO SOCIAL SERVICES CLIENTS,OP COMMISSIONING,Transfer Payments,Revenue
Walsall Council,http://opendatacommunities.org/id/metropolitan-district-council/walsall,WC78-476,31/03/2017,Adult Social Care,BESCOT LODGE RESIDENTIAL CARE HOME,15/03/2017,867.86,73373-RESIDENTIAL & NURSING CARE PLACEMENTS,OP COMMISSIONING,Third Party Payments,Revenue
Walsall Council,http://opendatacommunities.org/id/metropolitan-district-council/walsall,WC78-477,31/03/2017,Adult Social Care,BESCOT LODGE RESIDENTIAL CARE HOME,15/03/2017,"1,793.58",73373-RESIDENTIAL & NURSING CARE PLACEMENTS,OP COMMISSIONING,Third Party Payments,Revenue
Walsall Council,http://opendatacommunities.org/id/metropolitan-district-council/walsall,WC78-478,31/03/2017,Adult Social Care,BESCOT LODGE RESIDENTIAL CARE HOME,15/03/2017,"1,992.86",73373-RESIDENTIAL & NURSING CARE PLACEMENTS,OP COMMISSIONING,Third Party Payments,Revenue
Walsall Council,http://opendatacommunities.org/id/metropolitan-district-council/walsall,WC78-479,31/03/2017,Adult Social Care,BESCOT LODGE RESIDENTIAL CARE HOME,15/03/2017,"1,992.86",73373-RESIDENTIAL & NURSING CARE PLACEMENTS,OP COMMISSIONING,Third Party Payments,Revenue
Walsall Council,http://opendatacommunities.org/id/metropolitan-district-council/walsall,WC78-480,31/03/2017,Economy & Environment,BESCOT STADIUM SUNDAY MARKET LTD,14/03/2017,"2,800.00",73025-PROFESSIONAL SERVICES-PRIV CONTRACTOR & OTHER AGENCIES,WILLENHALL MARKET,Third Party Payments,Revenue
Walsall Council,http://opendatacommunities.org/id/metropolitan-district-council/walsall,WC78-481,31/03/2017,Economy & Environment,BESCOT STADIUM SUNDAY MARKET LTD,01/03/2017,"3,500.00",73025-PROFESSIONAL SERVICES-PRIV CONTRACTOR & OTHER AGENCIES,WILLENHALL MARKET,Third Party Payments,Revenue
Walsall Council,http://opendatacommunities.org/id/metropolitan-district-council/walsall,WC78-482,31/03/2017,Adult Social Care,BESS CARE LIMITED,30/03/2017,250.00,73372-DOMICILIARY CARE,OP COMMISSIONING,Third Party Payments,Revenue
Walsall Council,http://opendatacommunities.org/id/metropolitan-district-council/walsall,WC78-483,31/03/2017,Adult Social Care,BESS CARE LIMITED,01/03/2017,345.00,73372-DOMICILIARY CARE,OP COMMISSIONING,Third Party Payments,Revenue
Walsall Council,http://opendatacommunities.org/id/metropolitan-district-council/walsall,WC78-484,31/03/2017,Adult Social Care,BESS CARE LIMITED,24/03/2017,350.00,73372-DOMICILIARY CARE,OP COMMISSIONING,Third Party Payments,Revenue
Walsall Council,http://opendatacommunities.org/id/metropolitan-district-council/walsall,WC78-485,31/03/2017,Adult Social Care,BESS CARE LIMITED,10/03/2017,365.00,73372-DOMICILIARY CARE,OP COMMISSIONING,Third Party Payments,Revenue
Walsall Council,http://opendatacommunities.org/id/metropolitan-district-council/walsall,WC78-486,31/03/2017,Adult Social Care,BESS CARE LIMITED,23/03/2017,525.00,73372-DOMICILIARY CARE,OP COMMISSIONING,Third Party Payments,Revenue
Walsall Council,http://opendatacommunities.org/id/metropolitan-district-council/walsall,WC78-487,31/03/2017,Adult Social Care,BESS CARE LIMITED,01/03/2017,550.00,73372-DOMICILIARY CARE,OP COMMISSIONING,Third Party Payments,Revenue
Walsall Council,http://opendatacommunities.org/id/metropolitan-district-council/walsall,WC78-488,31/03/2017,Adult Social Care,BESS CARE LIMITED,10/03/2017,550.00,73372-DOMICILIARY CARE,OP COMMISSIONING,Third Party Payments,Revenue
Walsall Council,http://opendatacommunities.org/id/metropolitan-district-council/walsall,WC78-489,31/03/2017,Adult Social Care,BETHPHAGE.,23/03/2017,650.00,73374-SUPPORTED & OTHER ACCOMMODATION,LD COMMISSIONING,Third Party Payments,Revenue
Walsall Council,http://opendatacommunities.org/id/metropolitan-district-council/walsall,WC78-490,31/03/2017,Adult Social Care,BETHPHAGE.,23/03/2017,"1,015.92",73374-SUPPORTED & OTHER ACCOMMODATION,LD COMMISSIONING,Third Party Payments,Revenue
Walsall Council,http://opendatacommunities.org/id/metropolitan-district-council/walsall,WC78-491,31/03/2017,Adult Social Care,BETHPHAGE.,23/03/2017,"1,146.45",73374-SUPPORTED & OTHER ACCOMMODATION,LD COMMISSIONING,Third Party Payments,Revenue
Walsall Council,http://opendatacommunities.org/id/metropolitan-district-council/walsall,WC78-492,31/03/2017,Adult Social Care,BETHPHAGE.,23/03/2017,"1,439.24",73374-SUPPORTED & OTHER ACCOMMODATION,LD COMMISSIONING,Third Party Payments,Revenue
Walsall Council,http://opendatacommunities.org/id/metropolitan-district-council/walsall,WC78-493,31/03/2017,Adult Social Care,REDACTED,13/03/2017,"1,186.90",76422-DIRECT PAYMENTS TO SOCIAL SERVICES CLIENTS,MH COMMISSIONING,Transfer Payments,Revenue
Walsall Council,http://opendatacommunities.org/id/metropolitan-district-council/walsall,WC78-494,31/03/2017,Adult Social Care,REDACTED,13/03/2017,"3,459.80",76422-DIRECT PAYMENTS TO SOCIAL SERVICES CLIENTS,OP COMMISSIONING,Transfer Payments,Revenue
Walsall Council,http://opendatacommunities.org/id/metropolitan-district-council/walsall,WC78-495,31/03/2017,Adult Social Care,REDACTED,13/03/2017,400.00,76422-DIRECT PAYMENTS TO SOCIAL SERVICES CLIENTS,OP COMMISSIONING,Transfer Payments,Revenue
Walsall Council,http://opendatacommunities.org/id/metropolitan-district-council/walsall,WC78-496,31/03/2017,Childrens,REDACTED,13/03/2017,609.65,76422-DIRECT PAYMENTS TO SOCIAL SERVICES CLIENTS,FAMILY SUPPORT - DIRECT PAYMENTS,Transfer Payments,Revenue
Walsall Council,http://opendatacommunities.org/id/metropolitan-district-council/walsall,WC78-497,31/03/2017,Childrens,REDACTED,13/03/2017,715.00,76422-DIRECT PAYMENTS TO SOCIAL SERVICES CLIENTS,FAMILY SUPPORT - DIRECT PAYMENTS,Transfer Payments,Revenue
Walsall Council,http://opendatacommunities.org/id/metropolitan-district-council/walsall,WC78-498,31/03/2017,Childrens,BIRCHILLS C OF E COMMUNITY ACADEMY,01/03/2017,530.00,77300-ISB-FORMULA ALLOCATION,BIRCHILLS CE COMMUNITY ACADEMY,Transfer Payments,Revenue
Walsall Council,http://opendatacommunities.org/id/metropolitan-district-council/walsall,WC78-499,31/03/2017,Childrens,BIRCHILLS C OF E COMMUNITY ACADEMY,01/03/2017,649.47,77300-ISB-FORMULA ALLOCATION,BIRCHILLS CE COMMUNITY ACADEMY,Transfer Payments,Revenue
Walsall Council,http://opendatacommunities.org/id/metropolitan-district-council/walsall,WC78-500,31/03/2017,Childrens,BIRCHILLS C OF E COMMUNITY ACADEMY,01/03/2017,768.00,77300-ISB-FORMULA ALLOCATION,BIRCHILLS CE COMMUNITY ACADEMY,Transfer Payments,Revenue
Walsall Council,http://opendatacommunities.org/id/metropolitan-district-council/walsall,WC78-501,31/03/2017,Change and Governance,BIRCHILLS SPORTS ACADEMY,20/03/2017,701.50,62515-MISCELLANEOUS SUPPLIES,AREA 4 - WALSALL SOUTH,Supplies & Services,Revenue
Walsall Council,http://opendatacommunities.org/id/metropolitan-district-council/walsall,WC78-502,31/03/2017,Childrens,BIRMINGHAM CITY COUNCIL,30/03/2017,792.00,66502-TOP UP FUNDING -GRANTS TO SCHOOLS,MAINTAINED PROVIDERS,Third Party Payments,Revenue
Walsall Council,http://opendatacommunities.org/id/metropolitan-district-council/walsall,WC78-503,31/03/2017,Childrens,BIRMINGHAM CITY COUNCIL,30/03/2017,"1,035.00",66502-TOP UP FUNDING -GRANTS TO SCHOOLS,MAINTAINED PROVIDERS,Third Party Payments,Revenue
Walsall Council,http://opendatacommunities.org/id/metropolitan-district-council/walsall,WC78-504,31/03/2017,Childrens,BIRMINGHAM CITY COUNCIL,30/03/2017,"1,224.50",66502-TOP UP FUNDING -GRANTS TO SCHOOLS,MAINTAINED PROVIDERS,Third Party Payments,Revenue
Walsall Council,http://opendatacommunities.org/id/metropolitan-district-council/walsall,WC78-505,31/03/2017,Childrens,BIRMINGHAM CITY COUNCIL,30/03/2017,"1,340.00",66502-TOP UP FUNDING -GRANTS TO SCHOOLS,MAINTAINED PROVIDERS,Third Party Payments,Revenue
Walsall Council,http://opendatacommunities.org/id/metropolitan-district-council/walsall,WC78-506,31/03/2017,Childrens,BIRMINGHAM CITY COUNCIL,30/03/2017,"1,632.67",66502-TOP UP FUNDING -GRANTS TO SCHOOLS,MAINTAINED PROVIDERS,Third Party Payments,Revenue
Walsall Council,http://opendatacommunities.org/id/metropolitan-district-council/walsall,WC78-507,31/03/2017,Childrens,BIRMINGHAM CITY COUNCIL,30/03/2017,"3,169.00",66502-TOP UP FUNDING -GRANTS TO SCHOOLS,MAINTAINED PROVIDERS,Third Party Payments,Revenue
Walsall Council,http://opendatacommunities.org/id/metropolitan-district-council/walsall,WC78-508,31/03/2017,Childrens,BIRMINGHAM CITY COUNCIL,30/03/2017,"3,462.25",66502-TOP UP FUNDING -GRANTS TO SCHOOLS,MAINTAINED PROVIDERS,Third Party Payments,Revenue
Walsall Council,http://opendatacommunities.org/id/metropolitan-district-council/walsall,WC78-509,31/03/2017,Childrens,BIRMINGHAM CITY COUNCIL,30/03/2017,"3,462.25",66502-TOP UP FUNDING -GRANTS TO SCHOOLS,MAINTAINED PROVIDERS,Third Party Payments,Revenue
Walsall Council,http://opendatacommunities.org/id/metropolitan-district-council/walsall,WC78-510,31/03/2017,Childrens,BIRMINGHAM CITY COUNCIL,30/03/2017,"3,462.25",66502-TOP UP FUNDING -GRANTS TO SCHOOLS,MAINTAINED PROVIDERS,Third Party Payments,Revenue
Walsall Council,http://opendatacommunities.org/id/metropolitan-district-council/walsall,WC78-511,31/03/2017,Childrens,BIRMINGHAM CITY COUNCIL,21/03/2017,"3,520.67",66502-TOP UP FUNDING -GRANTS TO SCHOOLS,MAINTAINED PROVIDERS,Third Party Payments,Revenue
Walsall Council,http://opendatacommunities.org/id/metropolitan-district-council/walsall,WC78-512,31/03/2017,Childrens,BIRMINGHAM CITY COUNCIL,30/03/2017,"4,144.00",66502-TOP UP FUNDING -GRANTS TO SCHOOLS,MAINTAINED PROVIDERS,Third Party Payments,Revenue
Walsall Council,http://opendatacommunities.org/id/metropolitan-district-council/walsall,WC78-513,31/03/2017,Childrens,BIRMINGHAM CITY COUNCIL,30/03/2017,"4,629.25",66502-TOP UP FUNDING -GRANTS TO SCHOOLS,MAINTAINED PROVIDERS,Third Party Payments,Revenue
Walsall Council,http://opendatacommunities.org/id/metropolitan-district-council/walsall,WC78-514,31/03/2017,Childrens,BIRMINGHAM CITY COUNCIL,21/03/2017,"5,281.00",66502-TOP UP FUNDING -GRANTS TO SCHOOLS,MAINTAINED PROVIDERS,Third Party Payments,Revenue
Walsall Council,http://opendatacommunities.org/id/metropolitan-district-council/walsall,WC78-515,31/03/2017,Change and Governance,BIRMINGHAM CITY COUNCIL,10/03/2017,"5,383.61",63000-PROFESSIONAL FEES AND SERVICES,CORPORATE EXPENSES,Supplies & Services,Revenue
Walsall Council,http://opendatacommunities.org/id/metropolitan-district-council/walsall,WC78-516,31/03/2017,Childrens,BIRMINGHAM CITY COUNCIL,21/03/2017,"6,448.16",66502-TOP UP FUNDING -GRANTS TO SCHOOLS,MAINTAINED PROVIDERS,Third Party Payments,Revenue
Walsall Council,http://opendatacommunities.org/id/metropolitan-district-council/walsall,WC78-517,31/03/2017,Economy & Environment,BIRMINGHAM CITY UNIVERSITY,29/03/2017,"1,600.00",30030-EXTERNAL TRAINING,PUBLIC HEALTH BUSINESS SUPPORT,Employees,Revenue
Walsall Council,http://opendatacommunities.org/id/metropolitan-district-council/walsall,WC78-518,31/03/2017,Economy & Environment,BIRMINGHAM WOMENS AND CHILDRENS NHS FOUNDATION TRUST,01/03/2017,970.00,74000-OTHER AGENCY FEES,CORONERS SERVICE,Third Party Payments,Revenue
Walsall Council,http://opendatacommunities.org/id/metropolitan-district-council/walsall,WC78-519,31/03/2017,Economy & Environment,BIRMINGHAM WOMENS AND CHILDRENS NHS FOUNDATION TRUST,30/03/2017,"1,870.00",74000-OTHER AGENCY FEES,CORONERS SERVICE,Third Party Payments,Revenue
Walsall Council,http://opendatacommunities.org/id/metropolitan-district-council/walsall,WC78-520,31/03/2017,Economy & Environment,BLACK COUNTRY CONSORTIUM LIMITED,30/03/2017,"31,478.00",66500-GRANTS TO OTHER ORGS,GROWTH DEAL REVENUE,Third Party Payments,Revenue
Walsall Council,http://opendatacommunities.org/id/metropolitan-district-council/walsall,WC78-521,31/03/2017,Economy & Environment,BLACK COUNTRY CONSORTIUM LIMITED,01/03/2017,"46,877.77",65500-GRANTS TO ASSOCIATIONS,LEP- HESELTINE FUNDING,Third Party Payments,Revenue
Walsall Council,http://opendatacommunities.org/id/metropolitan-district-council/walsall,WC78-522,31/03/2017,Economy & Environment,BLACK COUNTRY CONSORTIUM LIMITED,01/03/2017,"52,298.59",65500-GRANTS TO ASSOCIATIONS,LEP CORE FUNDING,Third Party Payments,Revenue
Walsall Council,http://opendatacommunities.org/id/metropolitan-district-council/walsall,WC78-523,31/03/2017,Economy & Environment,BLACK COUNTRY CONSORTIUM LIMITED,21/03/2017,"56,294.81",65500-GRANTS TO ASSOCIATIONS,LEP CORE FUNDING,Third Party Payments,Revenue
Walsall Council,http://opendatacommunities.org/id/metropolitan-district-council/walsall,WC78-524,31/03/2017,Economy & Environment,BLACK COUNTRY CONSORTIUM LIMITED,01/03/2017,"60,448.00",65500-GRANTS TO ASSOCIATIONS,LEP CORE FUNDING,Third Party Payments,Revenue
Walsall Council,http://opendatacommunities.org/id/metropolitan-district-council/walsall,WC78-525,31/03/2017,Economy & Environment,BLACK COUNTRY CONSORTIUM LIMITED,21/03/2017,"70,645.07",65500-GRANTS TO ASSOCIATIONS,LEP- HESELTINE FUNDING,Third Party Payments,Revenue
Walsall Council,http://opendatacommunities.org/id/metropolitan-district-council/walsall,WC78-526,31/03/2017,Economy & Environment,BLACK COUNTRY CONSORTIUM LIMITED,13/03/2017,"81,988.97",01045-PRIVATE GRANTS,CFR 1072 CAPITALISATION OF PROJECT OFFICER COSTS,Capital,Capital
Walsall Council,http://opendatacommunities.org/id/metropolitan-district-council/walsall,WC78-527,31/03/2017,Economy & Environment,BLACK COUNTRY DANCE HUB,16/03/2017,460.00,63000-PROFESSIONAL FEES AND SERVICES,FOREST ARTS CENTRE,Supplies & Services,Revenue
Walsall Council,http://opendatacommunities.org/id/metropolitan-district-council/walsall,WC78-528,31/03/2017,Economy & Environment,BLACK COUNTRY DANCE HUB,16/03/2017,"1,500.00",63000-PROFESSIONAL FEES AND SERVICES,FOREST ARTS CENTRE,Supplies & Services,Revenue
Walsall Council,http://opendatacommunities.org/id/metropolitan-district-council/walsall,WC78-529,31/03/2017,Adult Social Care,BLACK COUNTRY PARTNERSHIP NHS,17/03/2017,"-19,871.00",73375-IN PATIENT BEDS,LD COMMISSIONING,Third Party Payments,Revenue
Walsall Council,http://opendatacommunities.org/id/metropolitan-district-council/walsall,WC78-530,31/03/2017,Adult Social Care,BLACK COUNTRY PARTNERSHIP NHS,17/03/2017,"9,099.00",73375-IN PATIENT BEDS,BCPFT,Third Party Payments,Revenue
Walsall Council,http://opendatacommunities.org/id/metropolitan-district-council/walsall,WC78-531,31/03/2017,Adult Social Care,BLACK COUNTRY PARTNERSHIP NHS,17/03/2017,"11,525.00",73375-IN PATIENT BEDS,BCPFT,Third Party Payments,Revenue
Walsall Council,http://opendatacommunities.org/id/metropolitan-district-council/walsall,WC78-532,31/03/2017,Adult Social Care,BLACK COUNTRY PARTNERSHIP NHS,17/03/2017,"11,525.00",73375-IN PATIENT BEDS,BCPFT,Third Party Payments,Revenue
Walsall Council,http://opendatacommunities.org/id/metropolitan-district-council/walsall,WC78-533,31/03/2017,Adult Social Care,BLACK COUNTRY PARTNERSHIP NHS,17/03/2017,"12,378.60",73375-IN PATIENT BEDS,BCPFT,Third Party Payments,Revenue
Walsall Council,http://opendatacommunities.org/id/metropolitan-district-council/walsall,WC78-534,31/03/2017,Adult Social Care,BLACK COUNTRY PARTNERSHIP NHS,17/03/2017,"19,871.00",73375-IN PATIENT BEDS,LD COMMISSIONING,Third Party Payments,Revenue
Walsall Council,http://opendatacommunities.org/id/metropolitan-district-council/walsall,WC78-535,31/03/2017,Adult Social Care,BLACK COUNTRY PARTNERSHIP NHS,14/03/2017,"155,340.62",71007-CONTRIBUTION TO PCT,BCPFT,Third Party Payments,Revenue
Walsall Council,http://opendatacommunities.org/id/metropolitan-district-council/walsall,WC78-536,31/03/2017,Adult Social Care,BLACK COUNTRY PARTNERSHIP NHS,20/03/2017,"155,340.62",71007-CONTRIBUTION TO PCT,BCPFT,Third Party Payments,Revenue
Walsall Council,http://opendatacommunities.org/id/metropolitan-district-council/walsall,WC78-537,31/03/2017,Economy & Environment,BLACKPOOL TEACHING HOSPITALS NHS FOUNDATION TRUST,23/03/2017,263.81,63000-PROFESSIONAL FEES AND SERVICES,SEXUAL HEALTH,Supplies & Services,Revenue
Walsall Council,http://opendatacommunities.org/id/metropolitan-district-council/walsall,WC78-538,31/03/2017,Childrens,BLAKENALL HEATH JMI SCHOOL,15/03/2017,"1,631.54",66502-TOP UP FUNDING -GRANTS TO SCHOOLS,BLAKENALL HEATH JUNIOR SCHOOL,Third Party Payments,Revenue
Walsall Council,http://opendatacommunities.org/id/metropolitan-district-council/walsall,WC78-539,31/03/2017,Childrens,BLAKENALL HEATH JMI SCHOOL,14/03/2017,"6,345.00",01009-SITE WORKS - OTHER CONTRACTORS,CFR 684 BLAKENALL HEATH JNR DEV FORMULA CAPITAL,Capital,Capital
Walsall Council,http://opendatacommunities.org/id/metropolitan-district-council/walsall,WC78-540,31/03/2017,Economy & Environment,BLE SECURITY,03/03/2017,252.74,73025-PROFESSIONAL SERVICES-PRIV CONTRACTOR & OTHER AGENCIES,DEPOT,Third Party Payments,Revenue
Walsall Council,http://opendatacommunities.org/id/metropolitan-district-council/walsall,WC78-541,31/03/2017,Childrens,BLOXWICH ACADEMY,01/03/2017,500.00,77300-ISB-FORMULA ALLOCATION,BLOXWICH ACADEMY,Transfer Payments,Revenue
Walsall Council,http://opendatacommunities.org/id/metropolitan-district-council/walsall,WC78-542,31/03/2017,Childrens,BLOXWICH ACADEMY,01/03/2017,"27,312.00",66505-OTHER-GRANTS TO OTHER ORGS,EARLY YEARS - 3 YR OLDS,Third Party Payments,Revenue
Walsall Council,http://opendatacommunities.org/id/metropolitan-district-council/walsall,WC78-543,31/03/2017,Adult Social Care,BLOXWICH COMMUNITY PARTNERSHIP.,10/03/2017,324.00,73372-DOMICILIARY CARE,MH COMMISSIONING,Third Party Payments,Revenue
Walsall Council,http://opendatacommunities.org/id/metropolitan-district-council/walsall,WC78-544,31/03/2017,Childrens,BLOXWICH COMMUNITY PARTNERSHIP.,03/03/2017,"6,163.74",60500-GENERAL MATERIALS,PUPIL REFERAL UNIT EXCLUSIONS,Supplies & Services,Revenue
Walsall Council,http://opendatacommunities.org/id/metropolitan-district-council/walsall,WC78-545,31/03/2017,Childrens,BLOXWICH COMMUNITY PARTNERSHIP.,03/03/2017,"9,533.60",60500-GENERAL MATERIALS,PUPIL REFERAL UNIT EXCLUSIONS,Supplies & Services,Revenue
Walsall Council,http://opendatacommunities.org/id/metropolitan-district-council/walsall,WC78-546,31/03/2017,Childrens,BLOXWICH COMMUNITY PARTNERSHIP.,23/03/2017,"25,911.25",66500-GRANTS TO OTHER ORGS,CENTRAL SUPPORT,Third Party Payments,Revenue
Walsall Council,http://opendatacommunities.org/id/metropolitan-district-council/walsall,WC78-547,31/03/2017,Childrens,BLOXWICH COMMUNITY PARTNERSHIP.,23/03/2017,"25,911.25",66500-GRANTS TO OTHER ORGS,CENTRAL SUPPORT,Third Party Payments,Revenue
Walsall Council,http://opendatacommunities.org/id/metropolitan-district-council/walsall,WC78-548,31/03/2017,Childrens,BLOXWICH COMMUNITY PARTNERSHIP.,23/03/2017,"25,911.25",66500-GRANTS TO OTHER ORGS,CENTRAL SUPPORT,Third Party Payments,Revenue
Walsall Council,http://opendatacommunities.org/id/metropolitan-district-council/walsall,WC78-549,31/03/2017,Childrens,BLUE COAT CHURCH OF ENGLAND ACADEMY,30/03/2017,350.00,66502-TOP UP FUNDING -GRANTS TO SCHOOLS,BLUE COAT CofE ACADEMY,Third Party Payments,Revenue
Walsall Council,http://opendatacommunities.org/id/metropolitan-district-council/walsall,WC78-550,31/03/2017,Childrens,BLUE COAT CHURCH OF ENGLAND ACADEMY,29/03/2017,750.00,77300-ISB-FORMULA ALLOCATION,BLUE COAT CofE ACADEMY,Transfer Payments,Revenue
Walsall Council,http://opendatacommunities.org/id/metropolitan-district-council/walsall,WC78-551,31/03/2017,Childrens,BLUE GIRAFFE CHILDCARE,10/03/2017,403.92,66505-OTHER-GRANTS TO OTHER ORGS,EARLY YEARS - 3 YR OLDS,Third Party Payments,Revenue
Walsall Council,http://opendatacommunities.org/id/metropolitan-district-council/walsall,WC78-552,31/03/2017,Childrens,BLUEBELLS #1,27/03/2017,4.83,53000-OFFICERS/STAFF-CAR ALLOWANCES,BLUEBELLS,Transport,Revenue
Walsall Council,http://opendatacommunities.org/id/metropolitan-district-council/walsall,WC78-553,31/03/2017,Childrens,BLUEBELLS #1,27/03/2017,74.50,60006-NEW-FURNITURE & EQUIPMENT,BLUEBELLS,Supplies & Services,Revenue
Walsall Council,http://opendatacommunities.org/id/metropolitan-district-council/walsall,WC78-554,31/03/2017,Childrens,BLUEBELLS #1,27/03/2017,244.11,61016-FOOD AND BEVERAGES-PROVISIONS,BLUEBELLS,Supplies & Services,Revenue
Walsall Council,http://opendatacommunities.org/id/metropolitan-district-council/walsall,WC78-555,31/03/2017,Childrens,BLUEBELLS #1,27/03/2017,247.77,76000-TRANSFER PAYMENTS - SOCIAL SERVICES CLIENTS,BLUEBELLS,Transfer Payments,Revenue
Walsall Council,http://opendatacommunities.org/id/metropolitan-district-council/walsall,WC78-556,31/03/2017,Childrens,BLUEBELLS #1,27/03/2017,298.41,"40000-REPAIRS,ALTERATIONS & MAINTENANCE-PREM",BLUEBELLS,Premises,Revenue
Walsall Council,http://opendatacommunities.org/id/metropolitan-district-council/walsall,WC78-557,31/03/2017,Adult Social Care,BLUEBIRD CARE (MID STAFFS),29/03/2017,432.00,73372-DOMICILIARY CARE,OP COMMISSIONING,Third Party Payments,Revenue
Walsall Council,http://opendatacommunities.org/id/metropolitan-district-council/walsall,WC78-558,31/03/2017,Adult Social Care,BLUEBIRD CARE (MID STAFFS),29/03/2017,576.00,73372-DOMICILIARY CARE,OP COMMISSIONING,Third Party Payments,Revenue
Walsall Council,http://opendatacommunities.org/id/metropolitan-district-council/walsall,WC78-559,31/03/2017,Economy & Environment,BME UNITED LTD,21/03/2017,"4,922.24",66500-GRANTS TO OTHER ORGS,ESF COMMUNITY GRANTS,Third Party Payments,Revenue
Walsall Council,http://opendatacommunities.org/id/metropolitan-district-council/walsall,WC78-560,31/03/2017,Economy & Environment,BME UNITED LTD,17/03/2017,"7,205.00",63000-PROFESSIONAL FEES AND SERVICES,SMOKING CESSATION,Supplies & Services,Revenue
Walsall Council,http://opendatacommunities.org/id/metropolitan-district-council/walsall,WC78-561,31/03/2017,Adult Social Care,BOLDMERE COURT CARE HOME,07/03/2017,"3,476.28",73373-RESIDENTIAL & NURSING CARE PLACEMENTS,OP COMMISSIONING,Third Party Payments,Revenue
Walsall Council,http://opendatacommunities.org/id/metropolitan-district-council/walsall,WC78-562,31/03/2017,Adult Social Care,BOLDMERE COURT CARE HOME,07/03/2017,"3,594.21",73373-RESIDENTIAL & NURSING CARE PLACEMENTS,OP COMMISSIONING,Third Party Payments,Revenue
Walsall Council,http://opendatacommunities.org/id/metropolitan-district-council/walsall,WC78-563,31/03/2017,Childrens,BOULTON TRAVEL LIMITED,08/03/2017,"1,695.00",52000-WITH DRIVER-HIRE OF VEHICLES,SCHOOL TRANSPORT,Transport,Revenue
Walsall Council,http://opendatacommunities.org/id/metropolitan-district-council/walsall,WC78-564,31/03/2017,Childrens,BOULTON TRAVEL LIMITED,08/03/2017,"1,905.00",52000-WITH DRIVER-HIRE OF VEHICLES,SCHOOL TRANSPORT,Transport,Revenue
Walsall Council,http://opendatacommunities.org/id/metropolitan-district-council/walsall,WC78-565,31/03/2017,Change and Governance,BOURNEMOUTH CONVENTION BUREAU LTD,01/03/2017,250.00,34329-HOTEL ACCOMMODATION-EMPLOYEES,CORPORATE MANAGEMENT TEAM,Employees,Revenue
Walsall Council,http://opendatacommunities.org/id/metropolitan-district-council/walsall,WC78-566,31/03/2017,Adult Social Care,BOWDEN DERRA PARK,07/03/2017,"10,502.76",73373-RESIDENTIAL & NURSING CARE PLACEMENTS,LD COMMISSIONING,Third Party Payments,Revenue
Walsall Council,http://opendatacommunities.org/id/metropolitan-district-council/walsall,WC78-567,31/03/2017,Economy & Environment,BRADVALE LTD T/A INSPIRE HEALTHCARE SERVICES,14/03/2017,418.23,60008-MAINTENANCE-FURNITURE & EQUIPMENT,BLOXWICH LEISURE CENTRE,Supplies & Services,Revenue
Walsall Council,http://opendatacommunities.org/id/metropolitan-district-council/walsall,WC78-568,31/03/2017,Childrens,BRANAS ISAF PERSONAL DEVELOPMENT CENTRE LTD,27/03/2017,"19,285.71",74036-EXTERNAL RESIDENTIAL CARE-OTH AGENCY PROVISION,INDEPENDENT RESIDENTIAL HOMES,Third Party Payments,Revenue
Walsall Council,http://opendatacommunities.org/id/metropolitan-district-council/walsall,WC78-569,31/03/2017,Economy & Environment,BRELMAYNE LTD,20/03/2017,526.95,63000-PROFESSIONAL FEES AND SERVICES,FOREST ARTS CENTRE,Supplies & Services,Revenue
Walsall Council,http://opendatacommunities.org/id/metropolitan-district-council/walsall,WC78-570,31/03/2017,Adult Social Care,REDACTED,13/03/2017,550.00,76422-DIRECT PAYMENTS TO SOCIAL SERVICES CLIENTS,LD COMMISSIONING,Transfer Payments,Revenue
Walsall Council,http://opendatacommunities.org/id/metropolitan-district-council/walsall,WC78-571,31/03/2017,Childrens,REDACTED,27/03/2017,"1,445.32",62515-MISCELLANEOUS SUPPLIES,INTERNAL FOSTER CARE PROVISION,Supplies & Services,Revenue
Walsall Council,http://opendatacommunities.org/id/metropolitan-district-council/walsall,WC78-572,31/03/2017,Childrens,REDACTED,01/03/2017,"1,620.64",74006-HOLIDAY/CHRISTMAS ALLOWANCE-FOSTER CARERS-OTH AGENCY PROVISION,INTERNAL FOSTER CARE PROVISION,Third Party Payments,Revenue
Walsall Council,http://opendatacommunities.org/id/metropolitan-district-council/walsall,WC78-573,31/03/2017,Childrens,REDACTED,27/03/2017,"1,620.64",74006-HOLIDAY/CHRISTMAS ALLOWANCE-FOSTER CARERS-OTH AGENCY PROVISION,INTERNAL FOSTER CARE PROVISION,Third Party Payments,Revenue
Walsall Council,http://opendatacommunities.org/id/metropolitan-district-council/walsall,WC78-574,31/03/2017,Economy & Environment,BRENNTAG UK LIMITED,15/03/2017,354.50,60503-CHEMICALS & SCIENTIFIC MATS-MATERIALS,BLOXWICH LEISURE CENTRE,Supplies & Services,Revenue
Walsall Council,http://opendatacommunities.org/id/metropolitan-district-council/walsall,WC78-575,31/03/2017,Economy & Environment,BRENNTAG UK LIMITED,15/03/2017,364.50,60503-CHEMICALS & SCIENTIFIC MATS-MATERIALS,OAK PARK,Supplies & Services,Revenue
Walsall Council,http://opendatacommunities.org/id/metropolitan-district-council/walsall,WC78-576,31/03/2017,Adult Social Care,REDACTED,06/03/2017,"1,337.64",73374-SUPPORTED & OTHER ACCOMMODATION,LD COMMISSIONING,Third Party Payments,Revenue
Walsall Council,http://opendatacommunities.org/id/metropolitan-district-council/walsall,WC78-577,31/03/2017,Adult Social Care,REDACTED,06/03/2017,"1,597.60",73374-SUPPORTED & OTHER ACCOMMODATION,LD COMMISSIONING,Third Party Payments,Revenue
Walsall Council,http://opendatacommunities.org/id/metropolitan-district-council/walsall,WC78-578,31/03/2017,Adult Social Care,REDACTED,13/03/2017,"2,158.00",76422-DIRECT PAYMENTS TO SOCIAL SERVICES CLIENTS,OP COMMISSIONING,Transfer Payments,Revenue
Walsall Council,http://opendatacommunities.org/id/metropolitan-district-council/walsall,WC78-579,31/03/2017,Adult Social Care,REDACTED,13/03/2017,922.50,76422-DIRECT PAYMENTS TO SOCIAL SERVICES CLIENTS,OP COMMISSIONING,Transfer Payments,Revenue
Walsall Council,http://opendatacommunities.org/id/metropolitan-district-council/walsall,WC78-580,31/03/2017,Adult Social Care,BRIDGEWOOD HEALTH CARE LTD,15/03/2017,"5,513.72",73373-RESIDENTIAL & NURSING CARE PLACEMENTS,PD COMMISSIONING,Third Party Payments,Revenue
Walsall Council,http://opendatacommunities.org/id/metropolitan-district-council/walsall,WC78-581,31/03/2017,Childrens,BRIGHT HORIZONS (WISHING WILLOW),16/03/2017,"1,099.63",63120-CRECHE FACILITIES-SERVICES-FEES,FAMILY PLACEMENTS,Supplies & Services,Revenue
Walsall Council,http://opendatacommunities.org/id/metropolitan-district-council/walsall,WC78-582,31/03/2017,Change and Governance,BRISTOL OILSKIN & OVERALL CO,01/03/2017,10.80,55000-CARRIAGE-IN,SCHOOL CROSSING PATROL ADMIN,Transport,Revenue
Walsall Council,http://opendatacommunities.org/id/metropolitan-district-council/walsall,WC78-583,31/03/2017,Change and Governance,BRISTOL OILSKIN & OVERALL CO,01/03/2017,838.06,61502-PROTECTIVE CLOTHING & UNIFORM,SCHOOL CROSSING PATROL ADMIN,Supplies & Services,Revenue
Walsall Council,http://opendatacommunities.org/id/metropolitan-district-council/walsall,WC78-584,31/03/2017,Change and Governance,BRISTOW & SUTOR,31/03/2017,575.37,73014-LEGAL FEES-PRIV CONTRACTOR FEES,REVENUES,Third Party Payments,Revenue
Walsall Council,http://opendatacommunities.org/id/metropolitan-district-council/walsall,WC78-585,31/03/2017,Change and Governance,BRISTOW & SUTOR,10/03/2017,738.67,73014-LEGAL FEES-PRIV CONTRACTOR FEES,REVENUES,Third Party Payments,Revenue
Walsall Council,http://opendatacommunities.org/id/metropolitan-district-council/walsall,WC78-586,31/03/2017,Change and Governance,BRISTOW & SUTOR,10/03/2017,949.14,73014-LEGAL FEES-PRIV CONTRACTOR FEES,REVENUES,Third Party Payments,Revenue
Walsall Council,http://opendatacommunities.org/id/metropolitan-district-council/walsall,WC78-587,31/03/2017,Change and Governance,BRISTOW & SUTOR,31/03/2017,"4,440.72",73014-LEGAL FEES-PRIV CONTRACTOR FEES,REVENUES,Third Party Payments,Revenue
Walsall Council,http://opendatacommunities.org/id/metropolitan-district-council/walsall,WC78-588,31/03/2017,Change and Governance,BRITISH GAS BUSINESS,22/03/2017,"-4,258.68",42000-GAS-ENERGY COSTS,REDUNDANT BUILDINGS,Premises,Revenue
Walsall Council,http://opendatacommunities.org/id/metropolitan-district-council/walsall,WC78-589,31/03/2017,Change and Governance,BRITISH GAS BUSINESS,22/03/2017,"-2,472.85",42000-GAS-ENERGY COSTS,CENTRAL OFFICE ACCOMMODATION,Premises,Revenue
Walsall Council,http://opendatacommunities.org/id/metropolitan-district-council/walsall,WC78-590,31/03/2017,Change and Governance,BRITISH GAS BUSINESS,22/03/2017,"-2,292.41",42000-GAS-ENERGY COSTS,CENTRALISED ENERGY,Premises,Revenue
Walsall Council,http://opendatacommunities.org/id/metropolitan-district-council/walsall,WC78-591,31/03/2017,Change and Governance,BRITISH GAS BUSINESS,22/03/2017,"-2,044.80",42000-GAS-ENERGY COSTS,CENTRAL OFFICE ACCOMMODATION,Premises,Revenue
Walsall Council,http://opendatacommunities.org/id/metropolitan-district-council/walsall,WC78-592,31/03/2017,Change and Governance,BRITISH GAS BUSINESS,22/03/2017,"-2,029.55",42000-GAS-ENERGY COSTS,CENTRAL OFFICE ACCOMMODATION,Premises,Revenue
Walsall Council,http://opendatacommunities.org/id/metropolitan-district-council/walsall,WC78-593,31/03/2017,Change and Governance,BRITISH GAS BUSINESS,22/03/2017,-772.98,42000-GAS-ENERGY COSTS,REDUNDANT BUILDINGS,Premises,Revenue
Walsall Council,http://opendatacommunities.org/id/metropolitan-district-council/walsall,WC78-594,31/03/2017,Change and Governance,BRITISH GAS BUSINESS,22/03/2017,-772.98,42000-GAS-ENERGY COSTS,REDUNDANT BUILDINGS,Premises,Revenue
Walsall Council,http://opendatacommunities.org/id/metropolitan-district-council/walsall,WC78-595,31/03/2017,Change and Governance,BRITISH GAS BUSINESS,22/03/2017,-748.05,42000-GAS-ENERGY COSTS,REDUNDANT BUILDINGS,Premises,Revenue
Walsall Council,http://opendatacommunities.org/id/metropolitan-district-council/walsall,WC78-596,31/03/2017,Change and Governance,BRITISH GAS BUSINESS,22/03/2017,-748.05,42000-GAS-ENERGY COSTS,REDUNDANT BUILDINGS,Premises,Revenue
Walsall Council,http://opendatacommunities.org/id/metropolitan-district-council/walsall,WC78-597,31/03/2017,Change and Governance,BRITISH GAS BUSINESS,22/03/2017,-732.20,42000-GAS-ENERGY COSTS,REDUNDANT BUILDINGS,Premises,Revenue
Walsall Council,http://opendatacommunities.org/id/metropolitan-district-council/walsall,WC78-598,31/03/2017,Change and Governance,BRITISH GAS BUSINESS,22/03/2017,-732.20,42000-GAS-ENERGY COSTS,REDUNDANT BUILDINGS,Premises,Revenue
Walsall Council,http://opendatacommunities.org/id/metropolitan-district-council/walsall,WC78-599,31/03/2017,Change and Governance,BRITISH GAS BUSINESS,22/03/2017,-732.20,42000-GAS-ENERGY COSTS,REDUNDANT BUILDINGS,Premises,Revenue
Walsall Council,http://opendatacommunities.org/id/metropolitan-district-council/walsall,WC78-600,31/03/2017,Change and Governance,BRITISH GAS BUSINESS,22/03/2017,-708.57,42000-GAS-ENERGY COSTS,REDUNDANT BUILDINGS,Premises,Revenue
Walsall Council,http://opendatacommunities.org/id/metropolitan-district-council/walsall,WC78-601,31/03/2017,Change and Governance,BRITISH GAS BUSINESS,22/03/2017,-592.08,42000-GAS-ENERGY COSTS,CENTRALISED ENERGY,Premises,Revenue
Walsall Council,http://opendatacommunities.org/id/metropolitan-district-council/walsall,WC78-602,31/03/2017,Change and Governance,BRITISH GAS BUSINESS,22/03/2017,214.57,42000-GAS-ENERGY COSTS,CENTRALISED ENERGY,Premises,Revenue
Walsall Council,http://opendatacommunities.org/id/metropolitan-district-council/walsall,WC78-603,31/03/2017,Change and Governance,BRITISH GAS BUSINESS,22/03/2017,224.33,42000-GAS-ENERGY COSTS,CENTRALISED ENERGY,Premises,Revenue
Walsall Council,http://opendatacommunities.org/id/metropolitan-district-council/walsall,WC78-604,31/03/2017,Change and Governance,BRITISH GAS BUSINESS,22/03/2017,225.72,42000-GAS-ENERGY COSTS,CENTRALISED ENERGY,Premises,Revenue
Walsall Council,http://opendatacommunities.org/id/metropolitan-district-council/walsall,WC78-605,31/03/2017,Change and Governance,BRITISH GAS BUSINESS,22/03/2017,229.35,42000-GAS-ENERGY COSTS,CENTRALISED ENERGY,Premises,Revenue
Walsall Council,http://opendatacommunities.org/id/metropolitan-district-council/walsall,WC78-606,31/03/2017,Change and Governance,BRITISH GAS BUSINESS,01/03/2017,233.83,42000-GAS-ENERGY COSTS,CENTRALISED ENERGY,Premises,Revenue
Walsall Council,http://opendatacommunities.org/id/metropolitan-district-council/walsall,WC78-607,31/03/2017,Change and Governance,BRITISH GAS BUSINESS,16/03/2017,239.33,42000-GAS-ENERGY COSTS,CENTRALISED ENERGY,Premises,Revenue
Walsall Council,http://opendatacommunities.org/id/metropolitan-district-council/walsall,WC78-608,31/03/2017,Childrens,BRITISH GAS BUSINESS,09/03/2017,239.34,42000-GAS-ENERGY COSTS,LOCALITY FAMILY SUPPORT-CENTRAL & EAST,Premises,Revenue
Walsall Council,http://opendatacommunities.org/id/metropolitan-district-council/walsall,WC78-609,31/03/2017,Change and Governance,BRITISH GAS BUSINESS,22/03/2017,244.16,42000-GAS-ENERGY COSTS,REDUNDANT BUILDINGS,Premises,Revenue
Walsall Council,http://opendatacommunities.org/id/metropolitan-district-council/walsall,WC78-610,31/03/2017,Economy & Environment,BRITISH GAS BUSINESS,31/03/2017,247.58,42000-GAS-ENERGY COSTS,ARBORETUM VISITOR CENTRE,Premises,Revenue
Walsall Council,http://opendatacommunities.org/id/metropolitan-district-council/walsall,WC78-611,31/03/2017,Change and Governance,BRITISH GAS BUSINESS,22/03/2017,250.48,42000-GAS-ENERGY COSTS,CENTRALISED ENERGY,Premises,Revenue
Walsall Council,http://opendatacommunities.org/id/metropolitan-district-council/walsall,WC78-612,31/03/2017,Change and Governance,BRITISH GAS BUSINESS,22/03/2017,260.15,42000-GAS-ENERGY COSTS,CENTRALISED ENERGY,Premises,Revenue
Walsall Council,http://opendatacommunities.org/id/metropolitan-district-council/walsall,WC78-613,31/03/2017,Change and Governance,BRITISH GAS BUSINESS,22/03/2017,263.06,42000-GAS-ENERGY COSTS,CENTRALISED ENERGY,Premises,Revenue
Walsall Council,http://opendatacommunities.org/id/metropolitan-district-council/walsall,WC78-614,31/03/2017,Change and Governance,BRITISH GAS BUSINESS,22/03/2017,268.77,42000-GAS-ENERGY COSTS,CENTRALISED ENERGY,Premises,Revenue
Walsall Council,http://opendatacommunities.org/id/metropolitan-district-council/walsall,WC78-615,31/03/2017,Childrens,BRITISH GAS BUSINESS,16/03/2017,275.47,42000-GAS-ENERGY COSTS,LOCALITY FAMILY SUPPORT-NORTH,Premises,Revenue
Walsall Council,http://opendatacommunities.org/id/metropolitan-district-council/walsall,WC78-616,31/03/2017,Change and Governance,BRITISH GAS BUSINESS,16/03/2017,275.47,42000-GAS-ENERGY COSTS,CENTRALISED ENERGY,Premises,Revenue
Walsall Council,http://opendatacommunities.org/id/metropolitan-district-council/walsall,WC78-617,31/03/2017,Change and Governance,BRITISH GAS BUSINESS,22/03/2017,278.88,42000-GAS-ENERGY COSTS,CENTRALISED ENERGY,Premises,Revenue
Walsall Council,http://opendatacommunities.org/id/metropolitan-district-council/walsall,WC78-618,31/03/2017,Change and Governance,BRITISH GAS BUSINESS,22/03/2017,280.80,42000-GAS-ENERGY COSTS,RECHARGEABLE UTILITIES,Premises,Revenue
Walsall Council,http://opendatacommunities.org/id/metropolitan-district-council/walsall,WC78-619,31/03/2017,Change and Governance,BRITISH GAS BUSINESS,22/03/2017,292.26,42000-GAS-ENERGY COSTS,CENTRALISED ENERGY,Premises,Revenue
Walsall Council,http://opendatacommunities.org/id/metropolitan-district-council/walsall,WC78-620,31/03/2017,Change and Governance,BRITISH GAS BUSINESS,22/03/2017,296.66,42000-GAS-ENERGY COSTS,CENTRALISED ENERGY,Premises,Revenue
Walsall Council,http://opendatacommunities.org/id/metropolitan-district-council/walsall,WC78-621,31/03/2017,Change and Governance,BRITISH GAS BUSINESS,01/03/2017,299.68,42000-GAS-ENERGY COSTS,CENTRALISED ENERGY,Premises,Revenue
Walsall Council,http://opendatacommunities.org/id/metropolitan-district-council/walsall,WC78-622,31/03/2017,Change and Governance,BRITISH GAS BUSINESS,16/03/2017,313.36,42000-GAS-ENERGY COSTS,CENTRALISED ENERGY,Premises,Revenue
Walsall Council,http://opendatacommunities.org/id/metropolitan-district-council/walsall,WC78-623,31/03/2017,Change and Governance,BRITISH GAS BUSINESS,22/03/2017,327.88,42000-GAS-ENERGY COSTS,CENTRALISED ENERGY,Premises,Revenue
Walsall Council,http://opendatacommunities.org/id/metropolitan-district-council/walsall,WC78-624,31/03/2017,Change and Governance,BRITISH GAS BUSINESS,22/03/2017,345.68,42000-GAS-ENERGY COSTS,CENTRALISED ENERGY,Premises,Revenue
Walsall Council,http://opendatacommunities.org/id/metropolitan-district-council/walsall,WC78-625,31/03/2017,Change and Governance,BRITISH GAS BUSINESS,22/03/2017,348.08,42000-GAS-ENERGY COSTS,CENTRALISED ENERGY,Premises,Revenue
Walsall Council,http://opendatacommunities.org/id/metropolitan-district-council/walsall,WC78-626,31/03/2017,Change and Governance,BRITISH GAS BUSINESS,01/03/2017,357.18,42000-GAS-ENERGY COSTS,CENTRALISED ENERGY,Premises,Revenue
Walsall Council,http://opendatacommunities.org/id/metropolitan-district-council/walsall,WC78-627,31/03/2017,Change and Governance,BRITISH GAS BUSINESS,16/03/2017,369.47,42000-GAS-ENERGY COSTS,CENTRALISED ENERGY,Premises,Revenue
Walsall Council,http://opendatacommunities.org/id/metropolitan-district-council/walsall,WC78-628,31/03/2017,Change and Governance,BRITISH GAS BUSINESS,01/03/2017,373.03,42000-GAS-ENERGY COSTS,CENTRALISED ENERGY,Premises,Revenue
Walsall Council,http://opendatacommunities.org/id/metropolitan-district-council/walsall,WC78-629,31/03/2017,Change and Governance,BRITISH GAS BUSINESS,22/03/2017,374.72,42000-GAS-ENERGY COSTS,CENTRALISED ENERGY,Premises,Revenue
Walsall Council,http://opendatacommunities.org/id/metropolitan-district-council/walsall,WC78-630,31/03/2017,Change and Governance,BRITISH GAS BUSINESS,22/03/2017,402.68,42000-GAS-ENERGY COSTS,CENTRALISED ENERGY,Premises,Revenue
Walsall Council,http://opendatacommunities.org/id/metropolitan-district-council/walsall,WC78-631,31/03/2017,Change and Governance,BRITISH GAS BUSINESS,22/03/2017,405.41,42000-GAS-ENERGY COSTS,CENTRALISED ENERGY,Premises,Revenue
Walsall Council,http://opendatacommunities.org/id/metropolitan-district-council/walsall,WC78-632,31/03/2017,Change and Governance,BRITISH GAS BUSINESS,22/03/2017,419.38,42000-GAS-ENERGY COSTS,CENTRALISED ENERGY,Premises,Revenue
Walsall Council,http://opendatacommunities.org/id/metropolitan-district-council/walsall,WC78-633,31/03/2017,Change and Governance,BRITISH GAS BUSINESS,22/03/2017,486.08,42000-GAS-ENERGY COSTS,CENTRALISED ENERGY,Premises,Revenue
Walsall Council,http://opendatacommunities.org/id/metropolitan-district-council/walsall,WC78-634,31/03/2017,Change and Governance,BRITISH GAS BUSINESS,22/03/2017,503.11,42000-GAS-ENERGY COSTS,CENTRALISED ENERGY,Premises,Revenue
Walsall Council,http://opendatacommunities.org/id/metropolitan-district-council/walsall,WC78-635,31/03/2017,Change and Governance,BRITISH GAS BUSINESS,22/03/2017,513.82,42000-GAS-ENERGY COSTS,REDUNDANT BUILDINGS,Premises,Revenue
Walsall Council,http://opendatacommunities.org/id/metropolitan-district-council/walsall,WC78-636,31/03/2017,Change and Governance,BRITISH GAS BUSINESS,22/03/2017,559.16,42000-GAS-ENERGY COSTS,CENTRALISED ENERGY,Premises,Revenue
Walsall Council,http://opendatacommunities.org/id/metropolitan-district-council/walsall,WC78-637,31/03/2017,Change and Governance,BRITISH GAS BUSINESS,22/03/2017,561.80,42000-GAS-ENERGY COSTS,CENTRALISED ENERGY,Premises,Revenue
Walsall Council,http://opendatacommunities.org/id/metropolitan-district-council/walsall,WC78-638,31/03/2017,Change and Governance,BRITISH GAS BUSINESS,08/03/2017,592.08,42000-GAS-ENERGY COSTS,CENTRALISED ENERGY,Premises,Revenue
Walsall Council,http://opendatacommunities.org/id/metropolitan-district-council/walsall,WC78-639,31/03/2017,Change and Governance,BRITISH GAS BUSINESS,22/03/2017,834.70,42000-GAS-ENERGY COSTS,CENTRALISED ENERGY,Premises,Revenue
Walsall Council,http://opendatacommunities.org/id/metropolitan-district-council/walsall,WC78-640,31/03/2017,Change and Governance,BRITISH GAS BUSINESS,22/03/2017,883.41,42000-GAS-ENERGY COSTS,CENTRALISED ENERGY,Premises,Revenue
Walsall Council,http://opendatacommunities.org/id/metropolitan-district-council/walsall,WC78-641,31/03/2017,Change and Governance,BRITISH GAS BUSINESS,08/03/2017,926.45,42000-GAS-ENERGY COSTS,CENTRALISED ENERGY,Premises,Revenue
Walsall Council,http://opendatacommunities.org/id/metropolitan-district-council/walsall,WC78-642,31/03/2017,Change and Governance,BRITISH GAS BUSINESS,22/03/2017,960.77,42000-GAS-ENERGY COSTS,RECHARGEABLE UTILITIES,Premises,Revenue
Walsall Council,http://opendatacommunities.org/id/metropolitan-district-council/walsall,WC78-643,31/03/2017,Change and Governance,BRITISH GAS BUSINESS,22/03/2017,968.08,42000-GAS-ENERGY COSTS,CENTRALISED ENERGY,Premises,Revenue
Walsall Council,http://opendatacommunities.org/id/metropolitan-district-council/walsall,WC78-644,31/03/2017,Change and Governance,BRITISH GAS BUSINESS,22/03/2017,"1,031.18",42000-GAS-ENERGY COSTS,DARLASTON TOWN HALL,Premises,Revenue
Walsall Council,http://opendatacommunities.org/id/metropolitan-district-council/walsall,WC78-645,31/03/2017,Change and Governance,BRITISH GAS BUSINESS,22/03/2017,"1,052.75",42000-GAS-ENERGY COSTS,RECHARGEABLE UTILITIES,Premises,Revenue
Walsall Council,http://opendatacommunities.org/id/metropolitan-district-council/walsall,WC78-646,31/03/2017,Change and Governance,BRITISH GAS BUSINESS,22/03/2017,"1,063.62",42000-GAS-ENERGY COSTS,CENTRALISED ENERGY,Premises,Revenue
Walsall Council,http://opendatacommunities.org/id/metropolitan-district-council/walsall,WC78-647,31/03/2017,Change and Governance,BRITISH GAS BUSINESS,22/03/2017,"1,095.89",42000-GAS-ENERGY COSTS,CENTRALISED ENERGY,Premises,Revenue
Walsall Council,http://opendatacommunities.org/id/metropolitan-district-council/walsall,WC78-648,31/03/2017,Change and Governance,BRITISH GAS BUSINESS,01/03/2017,"1,098.33",42000-GAS-ENERGY COSTS,RECHARGEABLE UTILITIES,Premises,Revenue
Walsall Council,http://opendatacommunities.org/id/metropolitan-district-council/walsall,WC78-649,31/03/2017,Change and Governance,BRITISH GAS BUSINESS,22/03/2017,"1,109.53",42000-GAS-ENERGY COSTS,RECHARGEABLE UTILITIES,Premises,Revenue
Walsall Council,http://opendatacommunities.org/id/metropolitan-district-council/walsall,WC78-650,31/03/2017,Change and Governance,BRITISH GAS BUSINESS,22/03/2017,"1,268.73",42000-GAS-ENERGY COSTS,RECHARGEABLE UTILITIES,Premises,Revenue
Walsall Council,http://opendatacommunities.org/id/metropolitan-district-council/walsall,WC78-651,31/03/2017,Change and Governance,BRITISH GAS BUSINESS,22/03/2017,"1,345.12",42000-GAS-ENERGY COSTS,CENTRALISED ENERGY,Premises,Revenue
Walsall Council,http://opendatacommunities.org/id/metropolitan-district-council/walsall,WC78-652,31/03/2017,Change and Governance,BRITISH GAS BUSINESS,22/03/2017,"1,372.98",42000-GAS-ENERGY COSTS,CENTRAL OFFICE ACCOMMODATION,Premises,Revenue
Walsall Council,http://opendatacommunities.org/id/metropolitan-district-council/walsall,WC78-653,31/03/2017,Change and Governance,BRITISH GAS BUSINESS,22/03/2017,"1,390.68",42000-GAS-ENERGY COSTS,CENTRALISED ENERGY,Premises,Revenue
Walsall Council,http://opendatacommunities.org/id/metropolitan-district-council/walsall,WC78-654,31/03/2017,Change and Governance,BRITISH GAS BUSINESS,22/03/2017,"1,537.03",42000-GAS-ENERGY COSTS,CHALLENGE BUILDING,Premises,Revenue
Walsall Council,http://opendatacommunities.org/id/metropolitan-district-council/walsall,WC78-655,31/03/2017,Change and Governance,BRITISH GAS BUSINESS,16/03/2017,"2,292.41",42000-GAS-ENERGY COSTS,CENTRALISED ENERGY,Premises,Revenue
Walsall Council,http://opendatacommunities.org/id/metropolitan-district-council/walsall,WC78-656,31/03/2017,Change and Governance,BRITISH GAS BUSINESS,22/03/2017,"2,292.41",42000-GAS-ENERGY COSTS,CENTRALISED ENERGY,Premises,Revenue
Walsall Council,http://opendatacommunities.org/id/metropolitan-district-council/walsall,WC78-657,31/03/2017,Change and Governance,BRITISH GAS BUSINESS,22/03/2017,"2,985.58",42000-GAS-ENERGY COSTS,CENTRALISED ENERGY,Premises,Revenue
Walsall Council,http://opendatacommunities.org/id/metropolitan-district-council/walsall,WC78-658,31/03/2017,Change and Governance,BRITISH GAS BUSINESS,22/03/2017,"3,638.75",42000-GAS-ENERGY COSTS,CENTRALISED ENERGY,Premises,Revenue
Walsall Council,http://opendatacommunities.org/id/metropolitan-district-council/walsall,WC78-659,31/03/2017,Change and Governance,BRITISH GAS BUSINESS,01/03/2017,"3,842.58",42000-GAS-ENERGY COSTS,RECHARGEABLE UTILITIES,Premises,Revenue
Walsall Council,http://opendatacommunities.org/id/metropolitan-district-council/walsall,WC78-660,31/03/2017,Change and Governance,BRITISH GAS BUSINESS,22/03/2017,"3,880.45",42000-GAS-ENERGY COSTS,WALSALL TOWN HALL,Premises,Revenue
Walsall Council,http://opendatacommunities.org/id/metropolitan-district-council/walsall,WC78-661,31/03/2017,Change and Governance,BRITISH GAS BUSINESS,16/03/2017,"3,933.68",42000-GAS-ENERGY COSTS,RECHARGEABLE UTILITIES,Premises,Revenue
Walsall Council,http://opendatacommunities.org/id/metropolitan-district-council/walsall,WC78-662,31/03/2017,Change and Governance,BRITISH GAS BUSINESS,08/03/2017,"4,048.36",42000-GAS-ENERGY COSTS,RECHARGEABLE UTILITIES,Premises,Revenue
Walsall Council,http://opendatacommunities.org/id/metropolitan-district-council/walsall,WC78-663,31/03/2017,Change and Governance,BRITISH GAS BUSINESS,16/03/2017,"4,048.36",42000-GAS-ENERGY COSTS,RECHARGEABLE UTILITIES,Premises,Revenue
Walsall Council,http://opendatacommunities.org/id/metropolitan-district-council/walsall,WC78-664,31/03/2017,Change and Governance,BRITISH GAS BUSINESS,08/03/2017,"4,099.08",42000-GAS-ENERGY COSTS,RECHARGEABLE UTILITIES,Premises,Revenue
Walsall Council,http://opendatacommunities.org/id/metropolitan-district-council/walsall,WC78-665,31/03/2017,Change and Governance,BRITISH GAS BUSINESS,16/03/2017,"4,099.08",42000-GAS-ENERGY COSTS,RECHARGEABLE UTILITIES,Premises,Revenue
Walsall Council,http://opendatacommunities.org/id/metropolitan-district-council/walsall,WC78-666,31/03/2017,Change and Governance,BRITISH GAS BUSINESS,22/03/2017,"4,173.82",42000-GAS-ENERGY COSTS,RECHARGEABLE UTILITIES,Premises,Revenue
Walsall Council,http://opendatacommunities.org/id/metropolitan-district-council/walsall,WC78-667,31/03/2017,Change and Governance,BRITISH GAS BUSINESS,22/03/2017,"5,968.02",42000-GAS-ENERGY COSTS,CENTRAL OFFICE ACCOMMODATION,Premises,Revenue
Walsall Council,http://opendatacommunities.org/id/metropolitan-district-council/walsall,WC78-668,31/03/2017,Change and Governance,BRITISH GAS BUSINESS,22/03/2017,"6,470.43",42000-GAS-ENERGY COSTS,CENTRALISED ENERGY,Premises,Revenue
Walsall Council,http://opendatacommunities.org/id/metropolitan-district-council/walsall,WC78-669,31/03/2017,Change and Governance,BRITISH GAS BUSINESS,22/03/2017,"6,698.63",42000-GAS-ENERGY COSTS,CENTRALISED ENERGY,Premises,Revenue
Walsall Council,http://opendatacommunities.org/id/metropolitan-district-council/walsall,WC78-670,31/03/2017,Childrens,BRITISH MUSLIM YOUTH GROUP,24/03/2017,"34,212.11",66500-GRANTS TO OTHER ORGS,CENTRAL SUPPORT,Third Party Payments,Revenue
Walsall Council,http://opendatacommunities.org/id/metropolitan-district-council/walsall,WC78-671,31/03/2017,Holding Accounts,BROWNE JACOBSON SOLICITORS,06/03/2017,775.20,67001-MISC INSURANCES - PAYMENT OF CLAIMS,PUBLIC LIABILITY,Supplies & Services,Revenue
Walsall Council,http://opendatacommunities.org/id/metropolitan-district-council/walsall,WC78-672,31/03/2017,Holding Accounts,BROWNE JACOBSON SOLICITORS,20/03/2017,811.40,67001-MISC INSURANCES - PAYMENT OF CLAIMS,PUBLIC LIABILITY,Supplies & Services,Revenue
Walsall Council,http://opendatacommunities.org/id/metropolitan-district-council/walsall,WC78-673,31/03/2017,Economy & Environment,BROWNHILLS ASPHALT & TARMAC LIMITED,06/03/2017,983.00,"40000-REPAIRS,ALTERATIONS & MAINTENANCE-PREM",INFRASTRUCTURE MAINTENANCE,Premises,Revenue
Walsall Council,http://opendatacommunities.org/id/metropolitan-district-council/walsall,WC78-674,31/03/2017,Economy & Environment,BROWNHILLS ASPHALT & TARMAC LIMITED,06/03/2017,"1,162.00","40000-REPAIRS,ALTERATIONS & MAINTENANCE-PREM",INFRASTRUCTURE MAINTENANCE,Premises,Revenue
Walsall Council,http://opendatacommunities.org/id/metropolitan-district-council/walsall,WC78-675,31/03/2017,Change and Governance,BROWNHILLS ASPHALT & TARMAC LIMITED,15/03/2017,"3,960.00",01006-SITE WORKS MAIN CONTRACTORS,CON 59 DARLASTON RECREATION GROUND,Capital,Capital
Walsall Council,http://opendatacommunities.org/id/metropolitan-district-council/walsall,WC78-676,31/03/2017,Economy & Environment,BROWNHILLS ASPHALT & TARMAC LIMITED,20/03/2017,"4,520.00","40000-REPAIRS,ALTERATIONS & MAINTENANCE-PREM",INFRASTRUCTURE MAINTENANCE,Premises,Revenue
Walsall Council,http://opendatacommunities.org/id/metropolitan-district-council/walsall,WC78-677,31/03/2017,Change and Governance,BROWNHILLS COMMUNITY ASSOCIATION,29/03/2017,"1,300.00",62515-MISCELLANEOUS SUPPLIES,AREA 1 - BROWNHILLS,Supplies & Services,Revenue
Walsall Council,http://opendatacommunities.org/id/metropolitan-district-council/walsall,WC78-678,31/03/2017,Childrens,BROWNHILLS COMMUNITY ASSOCIATION,09/03/2017,"4,048.92",66505-OTHER-GRANTS TO OTHER ORGS,EARLY YEARS - 2 YR OLDS,Third Party Payments,Revenue
Walsall Council,http://opendatacommunities.org/id/metropolitan-district-council/walsall,WC78-679,31/03/2017,Childrens,BROWNHILLS COMMUNITY ASSOCIATION,28/03/2017,"11,159.50",66500-GRANTS TO OTHER ORGS,CENTRAL SUPPORT,Third Party Payments,Revenue
Walsall Council,http://opendatacommunities.org/id/metropolitan-district-council/walsall,WC78-680,31/03/2017,Economy & Environment,BROXAP LTD,20/03/2017,"1,235.00",01009-SITE WORKS - OTHER CONTRACTORS,CFR 1147 SAFER ROUTES TO SCHOOLS-NEW INVENTION INFANT,Capital,Capital
Walsall Council,http://opendatacommunities.org/id/metropolitan-district-council/walsall,WC78-681,31/03/2017,Economy & Environment,BROXAP LTD,20/03/2017,"2,499.00",01009-SITE WORKS - OTHER CONTRACTORS,CFR 1147 SAFER ROUTES TO SCHOOLS-NEW INVENTION INFANT,Capital,Capital
Walsall Council,http://opendatacommunities.org/id/metropolitan-district-council/walsall,WC78-682,31/03/2017,Adult Social Care,REDACTED,13/03/2017,"1,912.50",76422-DIRECT PAYMENTS TO SOCIAL SERVICES CLIENTS,LD COMMISSIONING,Transfer Payments,Revenue
Walsall Council,http://opendatacommunities.org/id/metropolitan-district-council/walsall,WC78-683,31/03/2017,Change and Governance,REDACTED,15/03/2017,500.00,"40000-REPAIRS,ALTERATIONS & MAINTENANCE-PREM",CENTRALISED MAINTENANCE,Premises,Revenue
Walsall Council,http://opendatacommunities.org/id/metropolitan-district-council/walsall,WC78-684,31/03/2017,Economy & Environment,REDACTED,22/03/2017,700.00,63000-PROFESSIONAL FEES AND SERVICES,EXTL FUNDED CREATIVE PROJECT MANAGEMENT,Supplies & Services,Revenue
Walsall Council,http://opendatacommunities.org/id/metropolitan-district-council/walsall,WC78-685,31/03/2017,Childrens,REDACTED,15/03/2017,"18,768.00",74036-EXTERNAL RESIDENTIAL CARE-OTH AGENCY PROVISION,INDEPENDENT RESIDENTIAL HOMES,Third Party Payments,Revenue
Walsall Council,http://opendatacommunities.org/id/metropolitan-district-council/walsall,WC78-686,31/03/2017,Childrens,REDACTED,15/03/2017,"20,778.86",74036-EXTERNAL RESIDENTIAL CARE-OTH AGENCY PROVISION,INDEPENDENT RESIDENTIAL HOMES,Third Party Payments,Revenue
Walsall Council,http://opendatacommunities.org/id/metropolitan-district-council/walsall,WC78-687,31/03/2017,Change and Governance,BT,03/03/2017,835.00,63603-COST OF CALLS-TELEPHONES,PROCESSING,Supplies & Services,Revenue
Walsall Council,http://opendatacommunities.org/id/metropolitan-district-council/walsall,WC78-688,31/03/2017,Change and Governance,BT PLC,02/03/2017,"1,268.35",63601-COSTS (NOT INTERNAL RECHARGES)-TELEPHONES,RECHARGEABLE EQUIPMENT,Supplies & Services,Revenue
Walsall Council,http://opendatacommunities.org/id/metropolitan-district-council/walsall,WC78-689,31/03/2017,Change and Governance,BT PLC,08/03/2017,"4,354.66",63601-COSTS (NOT INTERNAL RECHARGES)-TELEPHONES,CENTRAL COMMUNICATIONS RECHARGES,Supplies & Services,Revenue
Walsall Council,http://opendatacommunities.org/id/metropolitan-district-council/walsall,WC78-690,31/03/2017,Change and Governance,BT PLC,09/03/2017,"14,852.00",63601-COSTS (NOT INTERNAL RECHARGES)-TELEPHONES,CENTRAL COMMUNICATIONS RECHARGES,Supplies & Services,Revenue
Walsall Council,http://opendatacommunities.org/id/metropolitan-district-council/walsall,WC78-691,31/03/2017,Economy & Environment,BUILDING BRIDGES TRAINING C I C,29/03/2017,"4,497.00",66500-GRANTS TO OTHER ORGS,ESF COMMUNITY GRANTS,Third Party Payments,Revenue
Walsall Council,http://opendatacommunities.org/id/metropolitan-district-council/walsall,WC78-692,31/03/2017,Adult Social Care,BUPA CARE HOMES (CFHCARE) LTD,07/03/2017,"-1,237.35",73373-RESIDENTIAL & NURSING CARE PLACEMENTS,OP COMMISSIONING,Third Party Payments,Revenue
Walsall Council,http://opendatacommunities.org/id/metropolitan-district-council/walsall,WC78-693,31/03/2017,Adult Social Care,BUPA CARE HOMES (CFHCARE) LTD,22/03/2017,"1,929.77",73373-RESIDENTIAL & NURSING CARE PLACEMENTS,OP COMMISSIONING,Third Party Payments,Revenue
Walsall Council,http://opendatacommunities.org/id/metropolitan-district-council/walsall,WC78-694,31/03/2017,Adult Social Care,BUPA CARE HOMES (CFHCARE) LTD,07/03/2017,"2,001.24",73373-RESIDENTIAL & NURSING CARE PLACEMENTS,OP COMMISSIONING,Third Party Payments,Revenue
Walsall Council,http://opendatacommunities.org/id/metropolitan-district-council/walsall,WC78-695,31/03/2017,Adult Social Care,BUPA CARE HOMES (CFHCARE) LTD,22/03/2017,"2,001.24",73373-RESIDENTIAL & NURSING CARE PLACEMENTS,OP COMMISSIONING,Third Party Payments,Revenue
Walsall Council,http://opendatacommunities.org/id/metropolitan-district-council/walsall,WC78-696,31/03/2017,Adult Social Care,BUPA CARE HOMES (CFHCARE) LTD,22/03/2017,"2,001.24",73373-RESIDENTIAL & NURSING CARE PLACEMENTS,OP COMMISSIONING,Third Party Payments,Revenue
Walsall Council,http://opendatacommunities.org/id/metropolitan-district-council/walsall,WC78-697,31/03/2017,Adult Social Care,BUPA CARE HOMES (CFHCARE) LTD,22/03/2017,"2,001.24",73373-RESIDENTIAL & NURSING CARE PLACEMENTS,OP COMMISSIONING,Third Party Payments,Revenue
Walsall Council,http://opendatacommunities.org/id/metropolitan-district-council/walsall,WC78-698,31/03/2017,Adult Social Care,BUPA CARE HOMES (CFHCARE) LTD,07/03/2017,"3,380.20",73373-RESIDENTIAL & NURSING CARE PLACEMENTS,OP COMMISSIONING,Third Party Payments,Revenue
Walsall Council,http://opendatacommunities.org/id/metropolitan-district-council/walsall,WC78-699,31/03/2017,Adult Social Care,BUPA TRENEWYDD CARE HOME,22/03/2017,"3,120.00",73373-RESIDENTIAL & NURSING CARE PLACEMENTS,OP COMMISSIONING,Third Party Payments,Revenue
Walsall Council,http://opendatacommunities.org/id/metropolitan-district-council/walsall,WC78-700,31/03/2017,Adult Social Care,BUSH HOME LTD,07/03/2017,"1,620.00",73373-RESIDENTIAL & NURSING CARE PLACEMENTS,OP COMMISSIONING,Third Party Payments,Revenue
Walsall Council,http://opendatacommunities.org/id/metropolitan-district-council/walsall,WC78-701,31/03/2017,Adult Social Care,BUSH HOME LTD,07/03/2017,"1,620.00",73373-RESIDENTIAL & NURSING CARE PLACEMENTS,OP COMMISSIONING,Third Party Payments,Revenue
Walsall Council,http://opendatacommunities.org/id/metropolitan-district-council/walsall,WC78-702,31/03/2017,Adult Social Care,BUSH HOME LTD,07/03/2017,"1,620.00",73373-RESIDENTIAL & NURSING CARE PLACEMENTS,OP COMMISSIONING,Third Party Payments,Revenue
Walsall Council,http://opendatacommunities.org/id/metropolitan-district-council/walsall,WC78-703,31/03/2017,Adult Social Care,BUSH HOME LTD,07/03/2017,"1,620.00",73373-RESIDENTIAL & NURSING CARE PLACEMENTS,OP COMMISSIONING,Third Party Payments,Revenue
Walsall Council,http://opendatacommunities.org/id/metropolitan-district-council/walsall,WC78-704,31/03/2017,Adult Social Care,BUSH HOME LTD,07/03/2017,"1,620.00",73373-RESIDENTIAL & NURSING CARE PLACEMENTS,OP COMMISSIONING,Third Party Payments,Revenue
Walsall Council,http://opendatacommunities.org/id/metropolitan-district-council/walsall,WC78-705,31/03/2017,Adult Social Care,BUSH HOME LTD,07/03/2017,"1,620.00",73373-RESIDENTIAL & NURSING CARE PLACEMENTS,OP COMMISSIONING,Third Party Payments,Revenue
Walsall Council,http://opendatacommunities.org/id/metropolitan-district-council/walsall,WC78-706,31/03/2017,Adult Social Care,BUSH HOME LTD,07/03/2017,"1,799.99",73373-RESIDENTIAL & NURSING CARE PLACEMENTS,MH COMMISSIONING,Third Party Payments,Revenue
Walsall Council,http://opendatacommunities.org/id/metropolitan-district-council/walsall,WC78-707,31/03/2017,Adult Social Care,BUSH HOME LTD,07/03/2017,"1,800.00",73373-RESIDENTIAL & NURSING CARE PLACEMENTS,OP COMMISSIONING,Third Party Payments,Revenue
Walsall Council,http://opendatacommunities.org/id/metropolitan-district-council/walsall,WC78-708,31/03/2017,Adult Social Care,BUSH HOME LTD,07/03/2017,"1,800.00",73373-RESIDENTIAL & NURSING CARE PLACEMENTS,OP COMMISSIONING,Third Party Payments,Revenue
Walsall Council,http://opendatacommunities.org/id/metropolitan-district-council/walsall,WC78-709,31/03/2017,Adult Social Care,BUSH HOME LTD,07/03/2017,"1,800.00",73373-RESIDENTIAL & NURSING CARE PLACEMENTS,OP COMMISSIONING,Third Party Payments,Revenue
Walsall Council,http://opendatacommunities.org/id/metropolitan-district-council/walsall,WC78-710,31/03/2017,Adult Social Care,BUSH HOME LTD,07/03/2017,"1,800.00",73373-RESIDENTIAL & NURSING CARE PLACEMENTS,OP COMMISSIONING,Third Party Payments,Revenue
Walsall Council,http://opendatacommunities.org/id/metropolitan-district-council/walsall,WC78-711,31/03/2017,Adult Social Care,BUSH HOME LTD,07/03/2017,"1,800.00",73373-RESIDENTIAL & NURSING CARE PLACEMENTS,OP COMMISSIONING,Third Party Payments,Revenue
Walsall Council,http://opendatacommunities.org/id/metropolitan-district-council/walsall,WC78-712,31/03/2017,Adult Social Care,BUSH HOME LTD,07/03/2017,"1,800.00",73373-RESIDENTIAL & NURSING CARE PLACEMENTS,OP COMMISSIONING,Third Party Payments,Revenue
Walsall Council,http://opendatacommunities.org/id/metropolitan-district-council/walsall,WC78-713,31/03/2017,Adult Social Care,BUSH HOME LTD,07/03/2017,"1,800.00",73373-RESIDENTIAL & NURSING CARE PLACEMENTS,OP COMMISSIONING,Third Party Payments,Revenue
Walsall Council,http://opendatacommunities.org/id/metropolitan-district-council/walsall,WC78-714,31/03/2017,Adult Social Care,BUSH HOME LTD,07/03/2017,"1,800.00",73373-RESIDENTIAL & NURSING CARE PLACEMENTS,OP COMMISSIONING,Third Party Payments,Revenue
Walsall Council,http://opendatacommunities.org/id/metropolitan-district-council/walsall,WC78-715,31/03/2017,Adult Social Care,BUSH HOME LTD,07/03/2017,"1,800.00",73373-RESIDENTIAL & NURSING CARE PLACEMENTS,OP COMMISSIONING,Third Party Payments,Revenue
Walsall Council,http://opendatacommunities.org/id/metropolitan-district-council/walsall,WC78-716,31/03/2017,Adult Social Care,BUSH HOME LTD,07/03/2017,"1,800.00",73373-RESIDENTIAL & NURSING CARE PLACEMENTS,OP COMMISSIONING,Third Party Payments,Revenue
Walsall Council,http://opendatacommunities.org/id/metropolitan-district-council/walsall,WC78-717,31/03/2017,Adult Social Care,BUSH HOME LTD,07/03/2017,"1,800.00",73373-RESIDENTIAL & NURSING CARE PLACEMENTS,OP COMMISSIONING,Third Party Payments,Revenue
Walsall Council,http://opendatacommunities.org/id/metropolitan-district-council/walsall,WC78-718,31/03/2017,Adult Social Care,BUSH HOME LTD,07/03/2017,"1,800.00",73373-RESIDENTIAL & NURSING CARE PLACEMENTS,OP COMMISSIONING,Third Party Payments,Revenue
Walsall Council,http://opendatacommunities.org/id/metropolitan-district-council/walsall,WC78-719,31/03/2017,Childrens,BUSY BEES CHILDCARE LTD,10/03/2017,"2,064.48",66505-OTHER-GRANTS TO OTHER ORGS,EARLY YEARS - 3 YR OLDS,Third Party Payments,Revenue
Walsall Council,http://opendatacommunities.org/id/metropolitan-district-council/walsall,WC78-720,31/03/2017,Childrens,BY THE BRIDGE,06/03/2017,"-1,439.29",74037-INDEPENDENT FOSTER CARE-OTH AGENCY PROVISION,EXTERNAL FOSTER CARE PROVISION,Third Party Payments,Revenue
Walsall Council,http://opendatacommunities.org/id/metropolitan-district-council/walsall,WC78-721,31/03/2017,Childrens,BY THE BRIDGE,06/03/2017,"3,151.15",74037-INDEPENDENT FOSTER CARE-OTH AGENCY PROVISION,EXTERNAL FOSTER CARE PROVISION,Third Party Payments,Revenue
Walsall Council,http://opendatacommunities.org/id/metropolitan-district-council/walsall,WC78-722,31/03/2017,Childrens,BY THE BRIDGE,06/03/2017,"3,168.64",74037-INDEPENDENT FOSTER CARE-OTH AGENCY PROVISION,EXTERNAL FOSTER CARE PROVISION,Third Party Payments,Revenue
Walsall Council,http://opendatacommunities.org/id/metropolitan-district-council/walsall,WC78-723,31/03/2017,Adult Social Care,C & V ORCHARD MANOR LTD,15/03/2017,"1,512.60",73373-RESIDENTIAL & NURSING CARE PLACEMENTS,OP COMMISSIONING,Third Party Payments,Revenue
Walsall Council,http://opendatacommunities.org/id/metropolitan-district-council/walsall,WC78-724,31/03/2017,Adult Social Care,C & V ORCHARD MANOR LTD,15/03/2017,"1,620.00",73373-RESIDENTIAL & NURSING CARE PLACEMENTS,OP COMMISSIONING,Third Party Payments,Revenue
Walsall Council,http://opendatacommunities.org/id/metropolitan-district-council/walsall,WC78-725,31/03/2017,Adult Social Care,C & V ORCHARD MANOR LTD,15/03/2017,"1,620.00",73373-RESIDENTIAL & NURSING CARE PLACEMENTS,LD COMMISSIONING,Third Party Payments,Revenue
Walsall Council,http://opendatacommunities.org/id/metropolitan-district-council/walsall,WC78-726,31/03/2017,Adult Social Care,C & V ORCHARD MANOR LTD,15/03/2017,"1,620.00",73373-RESIDENTIAL & NURSING CARE PLACEMENTS,OP COMMISSIONING,Third Party Payments,Revenue
Walsall Council,http://opendatacommunities.org/id/metropolitan-district-council/walsall,WC78-727,31/03/2017,Adult Social Care,C & V ORCHARD MANOR LTD,15/03/2017,"1,620.00",73373-RESIDENTIAL & NURSING CARE PLACEMENTS,MH COMMISSIONING,Third Party Payments,Revenue
Walsall Council,http://opendatacommunities.org/id/metropolitan-district-council/walsall,WC78-728,31/03/2017,Adult Social Care,C & V ORCHARD MANOR LTD,15/03/2017,"1,620.00",73373-RESIDENTIAL & NURSING CARE PLACEMENTS,MH COMMISSIONING,Third Party Payments,Revenue
Walsall Council,http://opendatacommunities.org/id/metropolitan-district-council/walsall,WC78-729,31/03/2017,Adult Social Care,C & V ORCHARD MANOR LTD,15/03/2017,"1,620.00",73373-RESIDENTIAL & NURSING CARE PLACEMENTS,MH COMMISSIONING,Third Party Payments,Revenue
Walsall Council,http://opendatacommunities.org/id/metropolitan-district-council/walsall,WC78-730,31/03/2017,Adult Social Care,C & V ORCHARD MANOR LTD,15/03/2017,"1,620.60",73373-RESIDENTIAL & NURSING CARE PLACEMENTS,OP COMMISSIONING,Third Party Payments,Revenue
Walsall Council,http://opendatacommunities.org/id/metropolitan-district-council/walsall,WC78-731,31/03/2017,Adult Social Care,C & V ORCHARD MANOR LTD,15/03/2017,"1,800.00",73373-RESIDENTIAL & NURSING CARE PLACEMENTS,OP COMMISSIONING,Third Party Payments,Revenue
Walsall Council,http://opendatacommunities.org/id/metropolitan-district-council/walsall,WC78-732,31/03/2017,Adult Social Care,C & V ORCHARD MANOR LTD,15/03/2017,"1,800.00",73373-RESIDENTIAL & NURSING CARE PLACEMENTS,OP COMMISSIONING,Third Party Payments,Revenue
Walsall Council,http://opendatacommunities.org/id/metropolitan-district-council/walsall,WC78-733,31/03/2017,Adult Social Care,C & V ORCHARD MANOR LTD,15/03/2017,"1,800.00",73373-RESIDENTIAL & NURSING CARE PLACEMENTS,MH COMMISSIONING,Third Party Payments,Revenue
Walsall Council,http://opendatacommunities.org/id/metropolitan-district-council/walsall,WC78-734,31/03/2017,Adult Social Care,C & V ORCHARD MANOR LTD,15/03/2017,"1,800.00",73373-RESIDENTIAL & NURSING CARE PLACEMENTS,MH COMMISSIONING,Third Party Payments,Revenue
Walsall Council,http://opendatacommunities.org/id/metropolitan-district-council/walsall,WC78-735,31/03/2017,Adult Social Care,C & V ORCHARD MANOR LTD,15/03/2017,"1,800.00",73373-RESIDENTIAL & NURSING CARE PLACEMENTS,OP COMMISSIONING,Third Party Payments,Revenue
Walsall Council,http://opendatacommunities.org/id/metropolitan-district-council/walsall,WC78-736,31/03/2017,Adult Social Care,C & V ORCHARD MANOR LTD,15/03/2017,"1,800.00",73373-RESIDENTIAL & NURSING CARE PLACEMENTS,OP COMMISSIONING,Third Party Payments,Revenue
Walsall Council,http://opendatacommunities.org/id/metropolitan-district-council/walsall,WC78-737,31/03/2017,Adult Social Care,C & V ORCHARD MANOR LTD,22/03/2017,"2,571.40",73373-RESIDENTIAL & NURSING CARE PLACEMENTS,OP COMMISSIONING,Third Party Payments,Revenue
Walsall Council,http://opendatacommunities.org/id/metropolitan-district-council/walsall,WC78-738,31/03/2017,Adult Social Care,C & V ORCHARD MANOR LTD,15/03/2017,"21,407.12",73373-RESIDENTIAL & NURSING CARE PLACEMENTS,OP COMMISSIONING,Third Party Payments,Revenue
Walsall Council,http://opendatacommunities.org/id/metropolitan-district-council/walsall,WC78-739,31/03/2017,Adult Social Care,C & V ORCHARD RESIDENTIAL LTD,07/03/2017,347.10,73373-RESIDENTIAL & NURSING CARE PLACEMENTS,OP COMMISSIONING,Third Party Payments,Revenue
Walsall Council,http://opendatacommunities.org/id/metropolitan-district-council/walsall,WC78-740,31/03/2017,Adult Social Care,C & V ORCHARD RESIDENTIAL LTD,07/03/2017,520.71,73373-RESIDENTIAL & NURSING CARE PLACEMENTS,OP COMMISSIONING,Third Party Payments,Revenue
Walsall Council,http://opendatacommunities.org/id/metropolitan-district-council/walsall,WC78-741,31/03/2017,Adult Social Care,C & V ORCHARD RESIDENTIAL LTD,07/03/2017,835.92,73373-RESIDENTIAL & NURSING CARE PLACEMENTS,OP COMMISSIONING,Third Party Payments,Revenue
Walsall Council,http://opendatacommunities.org/id/metropolitan-district-council/walsall,WC78-742,31/03/2017,Adult Social Care,C & V ORCHARD RESIDENTIAL LTD,07/03/2017,"1,620.00",73373-RESIDENTIAL & NURSING CARE PLACEMENTS,OP COMMISSIONING,Third Party Payments,Revenue
Walsall Council,http://opendatacommunities.org/id/metropolitan-district-council/walsall,WC78-743,31/03/2017,Adult Social Care,C & V ORCHARD RESIDENTIAL LTD,07/03/2017,"1,620.00",73373-RESIDENTIAL & NURSING CARE PLACEMENTS,OP COMMISSIONING,Third Party Payments,Revenue
Walsall Council,http://opendatacommunities.org/id/metropolitan-district-council/walsall,WC78-744,31/03/2017,Adult Social Care,C & V ORCHARD RESIDENTIAL LTD,07/03/2017,"1,799.96",73373-RESIDENTIAL & NURSING CARE PLACEMENTS,OP COMMISSIONING,Third Party Payments,Revenue
Walsall Council,http://opendatacommunities.org/id/metropolitan-district-council/walsall,WC78-745,31/03/2017,Adult Social Care,C & V ORCHARD RESIDENTIAL LTD,07/03/2017,"1,800.00",73373-RESIDENTIAL & NURSING CARE PLACEMENTS,OP COMMISSIONING,Third Party Payments,Revenue
Walsall Council,http://opendatacommunities.org/id/metropolitan-district-council/walsall,WC78-746,31/03/2017,Adult Social Care,C & V ORCHARD RESIDENTIAL LTD,07/03/2017,"1,800.00",73373-RESIDENTIAL & NURSING CARE PLACEMENTS,MH COMMISSIONING,Third Party Payments,Revenue
Walsall Council,http://opendatacommunities.org/id/metropolitan-district-council/walsall,WC78-747,31/03/2017,Adult Social Care,C & V ORCHARD RESIDENTIAL LTD,07/03/2017,"1,800.00",73373-RESIDENTIAL & NURSING CARE PLACEMENTS,OP COMMISSIONING,Third Party Payments,Revenue
Walsall Council,http://opendatacommunities.org/id/metropolitan-district-council/walsall,WC78-748,31/03/2017,Adult Social Care,C & V ORCHARD RESIDENTIAL LTD,07/03/2017,"1,800.00",73373-RESIDENTIAL & NURSING CARE PLACEMENTS,OP COMMISSIONING,Third Party Payments,Revenue
Walsall Council,http://opendatacommunities.org/id/metropolitan-district-council/walsall,WC78-749,31/03/2017,Adult Social Care,C & V ORCHARD RESIDENTIAL LTD,07/03/2017,"1,800.00",73373-RESIDENTIAL & NURSING CARE PLACEMENTS,OP COMMISSIONING,Third Party Payments,Revenue
Walsall Council,http://opendatacommunities.org/id/metropolitan-district-council/walsall,WC78-750,31/03/2017,Adult Social Care,C & V ORCHARD RESIDENTIAL LTD,07/03/2017,"1,800.00",73373-RESIDENTIAL & NURSING CARE PLACEMENTS,OP COMMISSIONING,Third Party Payments,Revenue
Walsall Council,http://opendatacommunities.org/id/metropolitan-district-council/walsall,WC78-751,31/03/2017,Adult Social Care,C & V ORCHARD RESIDENTIAL LTD,07/03/2017,"1,800.00",73373-RESIDENTIAL & NURSING CARE PLACEMENTS,OP COMMISSIONING,Third Party Payments,Revenue
Walsall Council,http://opendatacommunities.org/id/metropolitan-district-council/walsall,WC78-752,31/03/2017,Adult Social Care,C & V ORCHARD RESIDENTIAL LTD,07/03/2017,"1,800.00",73373-RESIDENTIAL & NURSING CARE PLACEMENTS,OP COMMISSIONING,Third Party Payments,Revenue
Walsall Council,http://opendatacommunities.org/id/metropolitan-district-council/walsall,WC78-753,31/03/2017,Adult Social Care,C & V ORCHARD RESIDENTIAL LTD,07/03/2017,"1,800.00",73373-RESIDENTIAL & NURSING CARE PLACEMENTS,OP COMMISSIONING,Third Party Payments,Revenue
Walsall Council,http://opendatacommunities.org/id/metropolitan-district-council/walsall,WC78-754,31/03/2017,Adult Social Care,C & V ORCHARD RESIDENTIAL LTD,07/03/2017,"1,800.00",73373-RESIDENTIAL & NURSING CARE PLACEMENTS,MH COMMISSIONING,Third Party Payments,Revenue
Walsall Council,http://opendatacommunities.org/id/metropolitan-district-council/walsall,WC78-755,31/03/2017,Economy & Environment,C ART ART TRANSPORT LTD,01/03/2017,775.00,73032-TRANSPORTATION-PRIV CONTRACTOR FEES,EXHIBITIONS - SPECIAL PROJECTS/PARTNERSHIPS,Third Party Payments,Revenue
Walsall Council,http://opendatacommunities.org/id/metropolitan-district-council/walsall,WC78-756,31/03/2017,Economy & Environment,C ART ART TRANSPORT LTD,01/03/2017,875.00,73032-TRANSPORTATION-PRIV CONTRACTOR FEES,PHOTOGRAPHY EXHIBITION NO. 2 WSA,Third Party Payments,Revenue
Walsall Council,http://opendatacommunities.org/id/metropolitan-district-council/walsall,WC78-757,31/03/2017,Childrens,REDACTED,27/03/2017,"4,317.64",62515-MISCELLANEOUS SUPPLIES,INTERNAL FOSTER CARE PROVISION,Supplies & Services,Revenue
Walsall Council,http://opendatacommunities.org/id/metropolitan-district-council/walsall,WC78-758,31/03/2017,Childrens,REDACTED,01/03/2017,"5,212.80",74006-HOLIDAY/CHRISTMAS ALLOWANCE-FOSTER CARERS-OTH AGENCY PROVISION,INTERNAL FOSTER CARE PROVISION,Third Party Payments,Revenue
Walsall Council,http://opendatacommunities.org/id/metropolitan-district-council/walsall,WC78-759,31/03/2017,Childrens,REDACTED,27/03/2017,"6,516.00",74006-HOLIDAY/CHRISTMAS ALLOWANCE-FOSTER CARERS-OTH AGENCY PROVISION,INTERNAL FOSTER CARE PROVISION,Third Party Payments,Revenue
Walsall Council,http://opendatacommunities.org/id/metropolitan-district-council/walsall,WC78-760,31/03/2017,Childrens,REDACTED,27/03/2017,"1,445.32",62515-MISCELLANEOUS SUPPLIES,INTERNAL FOSTER CARE PROVISION,Supplies & Services,Revenue
Walsall Council,http://opendatacommunities.org/id/metropolitan-district-council/walsall,WC78-761,31/03/2017,Childrens,REDACTED,01/03/2017,"1,620.64",74006-HOLIDAY/CHRISTMAS ALLOWANCE-FOSTER CARERS-OTH AGENCY PROVISION,INTERNAL FOSTER CARE PROVISION,Third Party Payments,Revenue
Walsall Council,http://opendatacommunities.org/id/metropolitan-district-council/walsall,WC78-762,31/03/2017,Childrens,REDACTED,27/03/2017,"1,823.22",74006-HOLIDAY/CHRISTMAS ALLOWANCE-FOSTER CARERS-OTH AGENCY PROVISION,INTERNAL FOSTER CARE PROVISION,Third Party Payments,Revenue
Walsall Council,http://opendatacommunities.org/id/metropolitan-district-council/walsall,WC78-763,31/03/2017,Economy & Environment,C P DAVIDSON & SONS LTD,17/03/2017,422.90,60500-GENERAL MATERIALS,FLEET,Supplies & Services,Revenue
Walsall Council,http://opendatacommunities.org/id/metropolitan-district-council/walsall,WC78-764,31/03/2017,Childrens,REDACTED,13/03/2017,"1,222.36",74006-HOLIDAY/CHRISTMAS ALLOWANCE-FOSTER CARERS-OTH AGENCY PROVISION,INTERNAL FOSTER CARE PROVISION,Third Party Payments,Revenue
Walsall Council,http://opendatacommunities.org/id/metropolitan-district-council/walsall,WC78-765,31/03/2017,Change and Governance,CABINET OFFICE,01/03/2017,"4,000.00",63000-PROFESSIONAL FEES AND SERVICES,CORPORATE EXPENSES,Supplies & Services,Revenue
Walsall Council,http://opendatacommunities.org/id/metropolitan-district-council/walsall,WC78-766,31/03/2017,Childrens,CACI  LIMITED,15/03/2017,499.59,63000-PROFESSIONAL FEES AND SERVICES,YOUTH JUSTICE SERVICE,Supplies & Services,Revenue
Walsall Council,http://opendatacommunities.org/id/metropolitan-district-council/walsall,WC78-767,31/03/2017,Change and Governance,CAE TECHNOLOGY SERVICES LTD,14/03/2017,"1,896.95",63800-COMPUTER EQUIPMENT AND SUPPLIES,RECHARGEABLE EQUIPMENT,Supplies & Services,Revenue
Walsall Council,http://opendatacommunities.org/id/metropolitan-district-council/walsall,WC78-768,31/03/2017,Adult Social Care,CALDENE  REST HOME,15/03/2017,"1,620.00",73373-RESIDENTIAL & NURSING CARE PLACEMENTS,OP COMMISSIONING,Third Party Payments,Revenue
Walsall Council,http://opendatacommunities.org/id/metropolitan-district-council/walsall,WC78-769,31/03/2017,Adult Social Care,CALDMORE AREA HOUSING ASS LTD,28/03/2017,265.43,73373-RESIDENTIAL & NURSING CARE PLACEMENTS,MH COMMISSIONING,Third Party Payments,Revenue
Walsall Council,http://opendatacommunities.org/id/metropolitan-district-council/walsall,WC78-770,31/03/2017,Adult Social Care,CALDMORE AREA HOUSING ASS LTD,23/03/2017,304.22,73374-SUPPORTED & OTHER ACCOMMODATION,MH COMMISSIONING,Third Party Payments,Revenue
Walsall Council,http://opendatacommunities.org/id/metropolitan-district-council/walsall,WC78-771,31/03/2017,Adult Social Care,CALDMORE AREA HOUSING ASS LTD,01/03/2017,356.16,73374-SUPPORTED & OTHER ACCOMMODATION,MH COMMISSIONING,Third Party Payments,Revenue
Walsall Council,http://opendatacommunities.org/id/metropolitan-district-council/walsall,WC78-772,31/03/2017,Adult Social Care,CALDMORE AREA HOUSING ASS LTD,27/03/2017,376.96,73372-DOMICILIARY CARE,MH COMMISSIONING,Third Party Payments,Revenue
Walsall Council,http://opendatacommunities.org/id/metropolitan-district-council/walsall,WC78-773,31/03/2017,Adult Social Care,CALDMORE AREA HOUSING ASS LTD,01/03/2017,429.97,73372-DOMICILIARY CARE,MH COMMISSIONING,Third Party Payments,Revenue
Walsall Council,http://opendatacommunities.org/id/metropolitan-district-council/walsall,WC78-774,31/03/2017,Adult Social Care,CALDMORE AREA HOUSING ASS LTD,28/03/2017,530.85,73373-RESIDENTIAL & NURSING CARE PLACEMENTS,MH COMMISSIONING,Third Party Payments,Revenue
Walsall Council,http://opendatacommunities.org/id/metropolitan-district-council/walsall,WC78-775,31/03/2017,Adult Social Care,CALDMORE AREA HOUSING ASS LTD,28/03/2017,530.85,73373-RESIDENTIAL & NURSING CARE PLACEMENTS,MH COMMISSIONING,Third Party Payments,Revenue
Walsall Council,http://opendatacommunities.org/id/metropolitan-district-council/walsall,WC78-776,31/03/2017,Adult Social Care,CALDMORE AREA HOUSING ASS LTD,22/03/2017,542.79,73373-RESIDENTIAL & NURSING CARE PLACEMENTS,MH COMMISSIONING,Third Party Payments,Revenue
Walsall Council,http://opendatacommunities.org/id/metropolitan-district-council/walsall,WC78-777,31/03/2017,Adult Social Care,CALDMORE AREA HOUSING ASS LTD,01/03/2017,579.28,73374-SUPPORTED & OTHER ACCOMMODATION,MH COMMISSIONING,Third Party Payments,Revenue
Walsall Council,http://opendatacommunities.org/id/metropolitan-district-council/walsall,WC78-778,31/03/2017,Adult Social Care,CALDMORE AREA HOUSING ASS LTD,01/03/2017,598.20,73374-SUPPORTED & OTHER ACCOMMODATION,MH COMMISSIONING,Third Party Payments,Revenue
Walsall Council,http://opendatacommunities.org/id/metropolitan-district-council/walsall,WC78-779,31/03/2017,Adult Social Care,CALDMORE AREA HOUSING ASS LTD,29/03/2017,598.20,73374-SUPPORTED & OTHER ACCOMMODATION,MH COMMISSIONING,Third Party Payments,Revenue
Walsall Council,http://opendatacommunities.org/id/metropolitan-district-council/walsall,WC78-780,31/03/2017,Adult Social Care,CALDMORE AREA HOUSING ASS LTD,01/03/2017,604.48,73374-SUPPORTED & OTHER ACCOMMODATION,MH COMMISSIONING,Third Party Payments,Revenue
Walsall Council,http://opendatacommunities.org/id/metropolitan-district-council/walsall,WC78-781,31/03/2017,Adult Social Care,CALDMORE AREA HOUSING ASS LTD,29/03/2017,604.48,73374-SUPPORTED & OTHER ACCOMMODATION,MH COMMISSIONING,Third Party Payments,Revenue
Walsall Council,http://opendatacommunities.org/id/metropolitan-district-council/walsall,WC78-782,31/03/2017,Adult Social Care,CALDMORE AREA HOUSING ASS LTD,08/03/2017,697.48,73374-SUPPORTED & OTHER ACCOMMODATION,MH COMMISSIONING,Third Party Payments,Revenue
Walsall Council,http://opendatacommunities.org/id/metropolitan-district-council/walsall,WC78-783,31/03/2017,Adult Social Care,CALDMORE AREA HOUSING ASS LTD,08/03/2017,746.08,73374-SUPPORTED & OTHER ACCOMMODATION,MH COMMISSIONING,Third Party Payments,Revenue
Walsall Council,http://opendatacommunities.org/id/metropolitan-district-council/walsall,WC78-784,31/03/2017,Adult Social Care,CALDMORE AREA HOUSING ASS LTD,01/03/2017,868.92,73374-SUPPORTED & OTHER ACCOMMODATION,MH COMMISSIONING,Third Party Payments,Revenue
